Dept/Family,Entity,Expense Type,Expense Area,Supplier,Description,Payment Date, Amount ,SME,UNSPCC Code,UNSPCC Description
"Ministry of Housing, Communities and Local Government",Homes England,Economic Assets Nw Prog,North West,BARTON GRANGE LANDSCAPES,DAP2838-SERVICE-Landscape Maintenance Contract at the Former,06/02/2018,1064.29,L,72101500,Building maintenance and repair services
"Ministry of Housing, Communities and Local Government",Homes England,Economic Assets Nw Prog,North West,BARTON GRANGE LANDSCAPES,DAP3360-SERVICE-To provide gritting to Pathfinders Drive on a,14/02/2018,425,L,72101500,Building maintenance and repair services
"Ministry of Housing, Communities and Local Government",Homes England,Capital Grant to Local Authorities,North West,MANCHESTER CITY COUNCIL,Daily IMS payment,02/03/2018,213600,G,N/A,Grant
"Ministry of Housing, Communities and Local Government",Homes England,Capital Grant to Local Authorities,North West,MANCHESTER CITY COUNCIL,Daily IMS payment,02/03/2018,267000,G,N/A,Grant
"Ministry of Housing, Communities and Local Government",Homes England,Capital Grant to Local Authorities,North West,MANCHESTER CITY COUNCIL,Daily IMS payment,02/03/2018,587400,G,N/A,Grant
"Ministry of Housing, Communities and Local Government",Homes England,Capital Grant to Local Authorities,North East And Yorkshire,BARNSLEY METROPOLITAN BOROUGH COUNCIL,Daily IMS payment,12/02/2018,3000,G,N/A,Grant
"Ministry of Housing, Communities and Local Government",Homes England,Capital Grant to Local Authorities,North East And Yorkshire,BARNSLEY METROPOLITAN BOROUGH COUNCIL,Daily IMS payment,27/02/2018,7500,G,N/A,Grant
"Ministry of Housing, Communities and Local Government",Homes England,Capital Grant to Local Authorities,North East And Yorkshire,BARNSLEY METROPOLITAN BOROUGH COUNCIL,Daily IMS payment,27/02/2018,2500,G,N/A,Grant
"Ministry of Housing, Communities and Local Government",Homes England,Capital Grant to Local Authorities,North East And Yorkshire,BARNSLEY METROPOLITAN BOROUGH COUNCIL,Daily IMS payment,27/02/2018,7500,G,N/A,Grant
"Ministry of Housing, Communities and Local Government",Homes England,Capital Grant to Local Authorities,North East And Yorkshire,BARNSLEY METROPOLITAN BOROUGH COUNCIL,Daily IMS payment,27/02/2018,7500,G,N/A,Grant
"Ministry of Housing, Communities and Local Government",Homes England,Capital Grant to Local Authorities,North East And Yorkshire,DONCASTER METROPOLITAN BOROUGH COUNCIL,Daily IMS payment,15/02/2018,88500,G,N/A,Grant
"Ministry of Housing, Communities and Local Government",Homes England,Capital Grant to Local Authorities,North East And Yorkshire,DONCASTER METROPOLITAN BOROUGH COUNCIL,Daily IMS payment,27/02/2018,1222125,G,N/A,Grant
"Ministry of Housing, Communities and Local Government",Homes England,Capital Grant to Local Authorities,North East And Yorkshire,SHEFFIELD CITY COUNCIL,Daily IMS payment,20/02/2018,15000,G,N/A,Grant
"Ministry of Housing, Communities and Local Government",Homes England,Capital Grant to Local Authorities,North East And Yorkshire,SHEFFIELD CITY COUNCIL,Daily IMS payment,27/02/2018,15000,G,N/A,Grant
"Ministry of Housing, Communities and Local Government",Homes England,Capital Grant to Local Authorities,North East And Yorkshire,SHEFFIELD CITY COUNCIL,Daily IMS payment,02/03/2018,15000,G,N/A,Grant
"Ministry of Housing, Communities and Local Government",Homes England,Capital Grant to Local Authorities,North East And Yorkshire,SHEFFIELD CITY COUNCIL,Daily IMS payment,07/03/2018,15000,G,N/A,Grant
"Ministry of Housing, Communities and Local Government",Homes England,Capital Grant to Local Authorities,North East And Yorkshire,GATESHEAD METROPOLITAN BOROUGH COUNCIL,Daily IMS payment,20/02/2018,17333,G,N/A,Grant
"Ministry of Housing, Communities and Local Government",Homes England,Capital Grant to Local Authorities,North East And Yorkshire,GATESHEAD METROPOLITAN BOROUGH COUNCIL,Daily IMS payment,26/02/2018,9329,G,N/A,Grant
"Ministry of Housing, Communities and Local Government",Homes England,Capital Grant to Local Authorities,North East And Yorkshire,GATESHEAD METROPOLITAN BOROUGH COUNCIL,Daily IMS payment,05/03/2018,24491,G,N/A,Grant
"Ministry of Housing, Communities and Local Government",Homes England,Capital Grant to Local Authorities,North East And Yorkshire,CITY OF BRADFORD METROPOLITAN DISTRICT,Daily IMS payment,07/03/2018,234000,G,N/A,Grant
"Ministry of Housing, Communities and Local Government",Homes England,Capital Grant to Local Authorities,North East And Yorkshire,LEEDS CITY COUNCIL,Daily IMS payment,12/02/2018,20852,G,N/A,Grant
"Ministry of Housing, Communities and Local Government",Homes England,Capital Grant to Local Authorities,North East And Yorkshire,LEEDS CITY COUNCIL,Daily IMS payment,12/02/2018,20852,G,N/A,Grant
"Ministry of Housing, Communities and Local Government",Homes England,Capital Grant to Local Authorities,North East And Yorkshire,LEEDS CITY COUNCIL,Daily IMS payment,14/02/2018,20852,G,N/A,Grant
"Ministry of Housing, Communities and Local Government",Homes England,Capital Grant to Local Authorities,North East And Yorkshire,LEEDS CITY COUNCIL,Daily IMS payment,14/02/2018,20852,G,N/A,Grant
"Ministry of Housing, Communities and Local Government",Homes England,Capital Grant to Local Authorities,North East And Yorkshire,LEEDS CITY COUNCIL,Daily IMS payment,15/02/2018,20852,G,N/A,Grant
"Ministry of Housing, Communities and Local Government",Homes England,Capital Grant to Local Authorities,North East And Yorkshire,LEEDS CITY COUNCIL,Daily IMS payment,15/02/2018,20852,G,N/A,Grant
"Ministry of Housing, Communities and Local Government",Homes England,Capital Grant to Local Authorities,North East And Yorkshire,LEEDS CITY COUNCIL,Daily IMS payment,07/03/2018,6950,G,N/A,Grant
"Ministry of Housing, Communities and Local Government",Homes England,Capital Grant to Local Authorities,North East And Yorkshire,HARTLEPOOL BOROUGH COUNCIL,Daily IMS payment,19/02/2018,27750,G,N/A,Grant
"Ministry of Housing, Communities and Local Government",Homes England,Capital Grant to Local Authorities,North East And Yorkshire,HARTLEPOOL BOROUGH COUNCIL,Daily IMS payment,19/02/2018,27750,G,N/A,Grant
"Ministry of Housing, Communities and Local Government",Homes England,Capital Grant to Local Authorities,North East And Yorkshire,NORTHUMBERLAND COUNTY COUNCIL,Daily IMS payment,16/02/2018,9624,G,N/A,Grant
"Ministry of Housing, Communities and Local Government",Homes England,Capital Grant to Local Authorities,North East And Yorkshire,KINGSTON UPON HULL CITY COUNCIL,Daily IMS payment,02/03/2018,8500,G,N/A,Grant
"Ministry of Housing, Communities and Local Government",Homes England,Capital Grant to Local Authorities,North East And Yorkshire,KINGSTON UPON HULL CITY COUNCIL,Daily IMS payment,07/03/2018,8500,G,N/A,Grant
"Ministry of Housing, Communities and Local Government",Homes England,Capital Grant to Local Authorities,North East And Yorkshire,EAST RIDING OF YORKSHIRE COUNCIL,Daily IMS payment,20/02/2018,18750,G,N/A,Grant
"Ministry of Housing, Communities and Local Government",Homes England,Capital Grant to Local Authorities,North East And Yorkshire,EAST RIDING OF YORKSHIRE COUNCIL,Daily IMS payment,27/02/2018,18750,G,N/A,Grant
"Ministry of Housing, Communities and Local Government",Homes England,Capital Grant to Local Authorities,North East And Yorkshire,EAST RIDING OF YORKSHIRE COUNCIL,Daily IMS payment,27/02/2018,6250,G,N/A,Grant
"Ministry of Housing, Communities and Local Government",Homes England,Capital Grant to Local Authorities,North East And Yorkshire,EAST RIDING OF YORKSHIRE COUNCIL,Daily IMS payment,05/03/2018,18750,G,N/A,Grant
"Ministry of Housing, Communities and Local Government",Homes England,Capital Grant to Local Authorities,North East And Yorkshire,EAST RIDING OF YORKSHIRE COUNCIL,Daily IMS payment,05/03/2018,18750,G,N/A,Grant
"Ministry of Housing, Communities and Local Government",Homes England,Capital Grant to Local Authorities,North East And Yorkshire,EAST RIDING OF YORKSHIRE COUNCIL,Daily IMS payment,07/03/2018,6250,G,N/A,Grant
"Ministry of Housing, Communities and Local Government",Homes England,Capital Grant to Local Authorities,North East And Yorkshire,EAST RIDING OF YORKSHIRE COUNCIL,Daily IMS payment,07/03/2018,6250,G,N/A,Grant
"Ministry of Housing, Communities and Local Government",Homes England,Capital Grant to Local Authorities,Midlands,NOTTINGHAM CITY COUNCIL,Daily IMS payment,07/03/2018,300000,G,N/A,Grant
"Ministry of Housing, Communities and Local Government",Homes England,Capital Grant to Local Authorities,Midlands,SHROPSHIRE COUNCIL,Daily IMS payment,07/03/2018,22500,G,N/A,Grant
"Ministry of Housing, Communities and Local Government",Homes England,East And Se Cambs Herts And Bu,East And South East,WELWYN HATFIELD COUNCIL,DEE0003-SERVICE-Refund of fees related to project and CPO,13/02/2018,5521.5,G,80131800,Real estate management services
"Ministry of Housing, Communities and Local Government",Homes England,Estate Management Yorks,North West,R D LANDSCAPES LTD,DAP3961-SERVICE-Tattenhoe Park - Traveller works to re-defend,14/02/2018,1800,S,72101500,Building maintenance and repair services
"Ministry of Housing, Communities and Local Government",Homes England,Area Dir Mids South East Midla,Midlands,R D LANDSCAPES LTD,DAP3856-SERVICE-Sandy Lane - removal of 1 x burnt out caravan,14/02/2018,420,S,72101500,Building maintenance and repair services
"Ministry of Housing, Communities and Local Government",Homes England,Estate Management Yorks,North West,GEOFFREY LEAVER SOLICITORS,DAP1829-SERVICE-Payment of MK Parks Trust's legal fees to dea,12/02/2018,1750,S,80121600,Business law services
"Ministry of Housing, Communities and Local Government",Homes England,Budget 2013 - Midlands Wm,Midlands,SIMON TRANTER LANDSCAPE CONTRACTORS,DAP3956-SERVICE-Barnsley Hall - cut back vegetation and strim,13/02/2018,2195,S,72101500,Building maintenance and repair services
"Ministry of Housing, Communities and Local Government",Homes England,Estate Management Yorks,North West,SIMON TRANTER LANDSCAPE CONTRACTORS,DAP3960-SERVICE-ractor mowing and Ragwort removal Priorslee,13/02/2018,685,S,72101500,Building maintenance and repair services
"Ministry of Housing, Communities and Local Government",Homes England,Estate Management Yorks,North West,SIMON TRANTER LANDSCAPE CONTRACTORS,DAP3960-SERVICE-Dawley Bank fence repairs,13/02/2018,1080,S,72101500,Building maintenance and repair services
"Ministry of Housing, Communities and Local Government",Homes England,Estate Management Yorks,North West,SIMON TRANTER LANDSCAPE CONTRACTORS,DAP3960-SERVICE-General fence repair and maintenance vacant p,13/02/2018,2735,S,72101500,Building maintenance and repair services
"Ministry of Housing, Communities and Local Government",Homes England,Budget 2013 - Midlands Wm,Midlands,SIMON TRANTER LANDSCAPE CONTRACTORS,DAP3957-SERVICE-Ridge Hill - remove fly tipped rubbish tree b,13/02/2018,1010,S,72101500,Building maintenance and repair services
"Ministry of Housing, Communities and Local Government",Homes England,Budget 2013 - Midlands Wm,Midlands,SIMON TRANTER LANDSCAPE CONTRACTORS,DAP3958-SERVICE-York Road - supply and fix signs around build,13/02/2018,905,S,72101500,Building maintenance and repair services
"Ministry of Housing, Communities and Local Government",Homes England,Budget 2013 - Midlands Wm,Midlands,SIMON TRANTER LANDSCAPE CONTRACTORS,"DAP3954-SERVICE-Lea Castle - works to buildings, provision of",23/02/2018,3770,S,72101500,Building maintenance and repair services
"Ministry of Housing, Communities and Local Government",Homes England,East And Se Cambs Herts And Bu,East And South East,CROWN ESTATE COMMISSIONERS,DEE0044-SERVICE-Payment of consultants for planning app.,02/02/2018,3567.99,L,80131500,Lease and rental of property or building
"Ministry of Housing, Communities and Local Government",Homes England,Spatial Intelligence Telford,Programmes,FAREHAM BOROUGH COUNCIL,Garden Village Funding,22/02/2018,275000,G,N/A,Grant
"Ministry of Housing, Communities and Local Government",Homes England,Comms Transition Budget,Finance & Corporate Services,KNIGHT FRANK LLP,DAP4321-SERVICE-Service charge relating to Building 5,27/02/2018,2258.26,L,80131500,Lease and rental of property or building
"Ministry of Housing, Communities and Local Government",Homes England,Company Secretary Mh,Finance & Corporate Services,IRON MOUNTAIN (UK) LTD,DAP1504-SERVICE-Iron Mountain Storage,12/02/2018,6647.83,L,78131800,Specialized warehousing and storage
"Ministry of Housing, Communities and Local Government",Homes England,Spatial Intelligence Telford,Programmes,VALUATION OFFICE AGENCY ADMINISTRATION,IT74923-SERVICE-AC Local Authority DVA � AC131-01 � Selworthy,22/02/2018,2500,G,80131800,Real estate management services
"Ministry of Housing, Communities and Local Government",Homes England,Spatial Intelligence Telford,Programmes,VALUATION OFFICE AGENCY ADMINISTRATION,IT74924-SERVICE-AC Local Authority DVA � AC131-04 � Land nort,22/02/2018,2500,G,80131800,Real estate management services
"Ministry of Housing, Communities and Local Government",Homes England,Spatial Intelligence Telford,Programmes,VALUATION OFFICE AGENCY ADMINISTRATION,IT74925-SERVICE-AC Local Authority DVA � AC131-015 -  Land so,22/02/2018,2500,G,80131800,Real estate management services
"Ministry of Housing, Communities and Local Government",Homes England,Spatial Intelligence Telford,Programmes,VALUATION OFFICE AGENCY ADMINISTRATION,IT74801-SERVICE-Public Sector Land Programme - Valuation (HCA,26/02/2018,5000,G,80131800,Real estate management services
"Ministry of Housing, Communities and Local Government",Homes England,Economic Assets Ne-Y Prog,North East And Yorkshire,C A BLACKWELL (CONTRACTS) LIMITED,"DAP2432-SERVICE-The Avenue site - construction of a reed bed,",16/02/2018,78118.67,S,72101500,Building maintenance and repair services
"Ministry of Housing, Communities and Local Government",Homes England,Spatial Intelligence Telford,Programmes,WARD HADAWAY,TRANSFER OF TRENGWEATH MENTAL HEALTH UNI,27/02/2018,230000,,N/A,Acquisitions
"Ministry of Housing, Communities and Local Government",Homes England,Capital Grant to Local Authorities,East And South East,ASHFORD BOROUGH COUNCIL,Daily IMS payment,05/03/2018,20000,G,N/A,Grant
"Ministry of Housing, Communities and Local Government",Homes England,Capital Grant to Local Authorities,East And South East,THANET DISTRICT COUNCIL,Daily IMS payment,21/02/2018,53003,G,N/A,Grant
"Ministry of Housing, Communities and Local Government",Homes England,Capital Grant to Local Authorities,East And South East,THANET DISTRICT COUNCIL,Daily IMS payment,21/02/2018,28364,G,N/A,Grant
"Ministry of Housing, Communities and Local Government",Homes England,Capital Grant to Local Authorities,East And South East,THANET DISTRICT COUNCIL,Daily IMS payment,01/03/2018,47612,G,N/A,Grant
"Ministry of Housing, Communities and Local Government",Homes England,Capital Grant to Local Authorities,East And South East,THANET DISTRICT COUNCIL,Daily IMS payment,07/03/2018,51908,G,N/A,Grant
"Ministry of Housing, Communities and Local Government",Homes England,Comms Transition Budget,Finance & Corporate Services,GREENHAM TRADING LTD,DAP0110-SERVICE-Call off order for PPE for HCA,01/02/2018,255.18,L,46181500,Safety footwear
"Ministry of Housing, Communities and Local Government",Homes England,Comms Transition Budget,Finance & Corporate Services,GREENHAM TRADING LTD,DAP2707-SERVICE-PPE re-brand for the organisation to Homes En,06/02/2018,375.2,L,46181500,Safety footwear
"Ministry of Housing, Communities and Local Government",Homes England,Comms Transition Budget,Finance & Corporate Services,GREENHAM TRADING LTD,DAP2707-SERVICE-PPE re-brand for the organisation to Homes En,14/02/2018,255.39,L,46181500,Safety footwear
"Ministry of Housing, Communities and Local Government",Homes England,Comms Transition Budget,Finance & Corporate Services,GREENHAM TRADING LTD,DAP2707-SERVICE-PPE re-brand for the organisation to Homes En,15/02/2018,938,L,46181500,Safety footwear
"Ministry of Housing, Communities and Local Government",Homes England,Comms Transition Budget,Finance & Corporate Services,GREENHAM TRADING LTD,DAP2707-SERVICE-PPE re-brand for the organisation to Homes En,15/02/2018,938,L,46181500,Safety footwear
"Ministry of Housing, Communities and Local Government",Homes England,Comms Transition Budget,Finance & Corporate Services,GREENHAM TRADING LTD,DAP2707-SERVICE-PPE re-brand for the organisation to Homes En,19/02/2018,938,L,46181500,Safety footwear
"Ministry of Housing, Communities and Local Government",Homes England,Comms Transition Budget,Finance & Corporate Services,GREENHAM TRADING LTD,DAP2707-SERVICE-PPE re-brand for the organisation to Homes En,27/02/2018,546,L,46181500,Safety footwear
"Ministry of Housing, Communities and Local Government",Homes England,Estate Management Yorks,North West,ODELL AND COMPANY LIMITED,DAP3765-SERVICE-Upton -,09/02/2018,1392,S,72102900,Facility maintenance and repair services
"Ministry of Housing, Communities and Local Government",Homes England,Comms Transition Budget,Finance & Corporate Services,ACTION 8,DAP3903-SERVICE-Annual Service to Movemate Cabinet Mover - Li,23/02/2018,265,S,72102900,Facility maintenance and repair services
"Ministry of Housing, Communities and Local Government",Homes England,Comms Transition Budget,Finance & Corporate Services,DIRECT TAXIS,DAP3243-SERVICE-Taxi services to HCA Warrington,05/02/2018,403,S,78111800,Passenger road transportation
"Ministry of Housing, Communities and Local Government",Homes England,Comms Transition Budget,Finance & Corporate Services,MK LONDON LINK,DAP4004-SERVICE-Call off courier services to Homes England Be,02/02/2018,2139.72,S,78102200,Postal and small parcel and courier services
"Ministry of Housing, Communities and Local Government",Homes England,Comms Transition Budget,Finance & Corporate Services,BAGNALL & MORRIS WASTE SERVICES LTD,DAP0109-SERVICE-COLLECTION OF WASTE AND RECYCLING FROM HCA,02/02/2018,415.08,M,76121500,Refuse collection and disposal
"Ministry of Housing, Communities and Local Government",Homes England,Economic Assets Ne-Y Prog,North East And Yorkshire,GROUND CONTROL LIMITED,DAP2897-SERVICE-Carr Lodge Farm - Gritting service,26/02/2018,1144,L,72101500,Building maintenance and repair services
"Ministry of Housing, Communities and Local Government",Homes England,Economic Assets S&Sw Prog,South West,GROUND CONTROL LIMITED,DSW1110-SERVICE-Daedalus - grounds maintenance work to the re,26/02/2018,1329,L,72101500,Building maintenance and repair services
"Ministry of Housing, Communities and Local Government",Homes England,Economic Assets S&Sw Prog,South West,GROUND CONTROL LIMITED,DSW1110-SERVICE-Daedalus - grounds maintenance work to the re,26/02/2018,1329,L,72101500,Building maintenance and repair services
"Ministry of Housing, Communities and Local Government",Homes England,Economic Assets S&Sw Prog,South West,GROUND CONTROL LIMITED,DSW1110-SERVICE-Daedalus - grounds maintenance work to the re,26/02/2018,1329,L,72101500,Building maintenance and repair services
"Ministry of Housing, Communities and Local Government",Homes England,Economic Assets S&Sw Prog,South West,GROUND CONTROL LIMITED,DSW1110-SERVICE-Daedalus - grounds maintenance work to the re,26/02/2018,1329,L,72101500,Building maintenance and repair services
"Ministry of Housing, Communities and Local Government",Homes England,Economic Assets Ne-Y Prog,North East And Yorkshire,GROUND CONTROL LIMITED,DAP3616-SERVICE-Foxcover - Filling in of potholes along the b,28/02/2018,760,L,72101500,Building maintenance and repair services
"Ministry of Housing, Communities and Local Government",Homes England,Capital Grant to Local Authorities,North East And Yorkshire,HARROGATE BOROUGH COUNCIL,Daily IMS payment,27/02/2018,40500,G,N/A,Grant
"Ministry of Housing, Communities and Local Government",Homes England,Capital Grant to Local Authorities,North East And Yorkshire,HARROGATE BOROUGH COUNCIL,Daily IMS payment,06/03/2018,21938,G,N/A,Grant
"Ministry of Housing, Communities and Local Government",Homes England,Budget 2013 - Midlands Wm,Midlands,SHROPSHIRE COUNTY COUNCIL,PLANNING APP MILE BANK ROAD,19/02/2018,25619,G,80131800,Real estate management services
"Ministry of Housing, Communities and Local Government",Homes England,Spatial Intelligence Telford,Programmes,LANCASTER CITY COUNCIL,Garden Village Funding,22/02/2018,130000,G,N/A,Grant
"Ministry of Housing, Communities and Local Government",Homes England,Capital Grant to Local Authorities,North West,CANNOCK CHASE DISTRICT COUNCIL,Daily IMS payment,20/02/2018,24000,,N/A,Grant
"Ministry of Housing, Communities and Local Government",Homes England,Capital Grant to Local Authorities,North West,FIRST CHOICE HOMES OLDHAM LIMITED,Daily IMS payment,09/02/2018,9000,,N/A,Grant
"Ministry of Housing, Communities and Local Government",Homes England,Capital Grant to Local Authorities,North West,FIRST CHOICE HOMES OLDHAM LIMITED,Daily IMS payment,26/02/2018,990000,,N/A,Grant
"Ministry of Housing, Communities and Local Government",Homes England,Capital Grant to Local Authorities,North West,FIRST CHOICE HOMES OLDHAM LIMITED,Daily IMS payment,26/02/2018,24750,,N/A,Grant
"Ministry of Housing, Communities and Local Government",Homes England,Capital Grant to Local Authorities,North West,FIRST CHOICE HOMES OLDHAM LIMITED,Daily IMS payment,26/02/2018,204000,,N/A,Grant
"Ministry of Housing, Communities and Local Government",Homes England,Capital Grant to Local Authorities,North West,GLOUCESTER CITY HOMES,Daily IMS payment,28/02/2018,18000,,N/A,Grant
"Ministry of Housing, Communities and Local Government",Homes England,Capital Grant to RPs,East And South East,YMCA DOWNSLINK GROUP,Daily IMS payment,13/02/2018,56250,,N/A,Grant
"Ministry of Housing, Communities and Local Government",Homes England,Capital Grant to RPs,East And South East,YMCA DOWNSLINK GROUP,Daily IMS payment,13/02/2018,56250,,N/A,Grant
"Ministry of Housing, Communities and Local Government",Homes England,Capital Grant to RPs,East And South East,YMCA DOWNSLINK GROUP,Daily IMS payment,16/02/2018,68250,,N/A,Grant
"Ministry of Housing, Communities and Local Government",Homes England,Capital Grant to RPs,East And South East,YMCA DOWNSLINK GROUP,Daily IMS payment,26/02/2018,18750,,N/A,Grant
"Ministry of Housing, Communities and Local Government",Homes England,Capital Grant to RPs,East And South East,YMCA DOWNSLINK GROUP,Daily IMS payment,26/02/2018,18750,,N/A,Grant
"Ministry of Housing, Communities and Local Government",Homes England,Capital Grant to RPs,East And South East,YMCA DOWNSLINK GROUP,Daily IMS payment,01/03/2018,22750,,N/A,Grant
"Ministry of Housing, Communities and Local Government",Homes England,Capital Grant to RPs,North East And Yorkshire,KARBON HOMES -ISOS HOUSING LIMITED,Daily IMS payment,09/02/2018,62500,,N/A,Grant
"Ministry of Housing, Communities and Local Government",Homes England,Capital Grant to RPs,North East And Yorkshire,KARBON HOMES -ISOS HOUSING LIMITED,Daily IMS payment,27/02/2018,46000,,N/A,Grant
"Ministry of Housing, Communities and Local Government",Homes England,Capital Grant to RPs,North East And Yorkshire,KEELMAN HOMES,Daily IMS payment,14/02/2018,26250,,N/A,Grant
"Ministry of Housing, Communities and Local Government",Homes England,Capital Grant to RPs,North East And Yorkshire,KEELMAN HOMES,Daily IMS payment,20/02/2018,6250,,N/A,Grant
"Ministry of Housing, Communities and Local Government",Homes England,Capital Grant to RPs,North East And Yorkshire,KEELMAN HOMES,Daily IMS payment,20/02/2018,7500,,N/A,Grant
"Ministry of Housing, Communities and Local Government",Homes England,Capital Grant to RPs,North East And Yorkshire,KEELMAN HOMES,Daily IMS payment,26/02/2018,30000,,N/A,Grant
"Ministry of Housing, Communities and Local Government",Homes England,Capital Grant to RPs,North West,REGENDA LIMITED,Daily IMS payment,05/03/2018,18750,,N/A,Grant
"Ministry of Housing, Communities and Local Government",Homes England,Capital Grant to RPs,North East And Yorkshire,ACTION HOUSING AND SUPPORT,Daily IMS payment,15/02/2018,4500,,N/A,Grant
"Ministry of Housing, Communities and Local Government",Homes England,Capital Grant to RPs,Midlands,BROMFORD HOME OWNERSHIP LTD,Daily IMS payment,01/03/2018,525000,,N/A,Grant
"Ministry of Housing, Communities and Local Government",Homes England,Capital Grant to RPs,Midlands,BROMFORD HOME OWNERSHIP LTD,Daily IMS payment,01/03/2018,66000,,N/A,Grant
"Ministry of Housing, Communities and Local Government",Homes England,Capital Grant to RPs,Midlands,THE EXTRACARE CHARITABLE TRUST,Daily IMS payment,02/03/2018,896350,,N/A,Grant
"Ministry of Housing, Communities and Local Government",Homes England,Capital Grant to RPs,North East And Yorkshire,DISC,Daily IMS payment,20/02/2018,16875,,N/A,Grant
"Ministry of Housing, Communities and Local Government",Homes England,Capital Grant to RPs,North East And Yorkshire,DISC,Daily IMS payment,20/02/2018,16875,,N/A,Grant
"Ministry of Housing, Communities and Local Government",Homes England,Capital Grant to RPs,North East And Yorkshire,DISC,Daily IMS payment,20/02/2018,16875,,N/A,Grant
"Ministry of Housing, Communities and Local Government",Homes England,Capital Grant to RPs,North West,J & M RESIDENTIAL LETTINGS LIMITED,Daily IMS payment,21/02/2018,8000,,N/A,Grant
"Ministry of Housing, Communities and Local Government",Homes England,Capital Grant to RPs,North West,J & M RESIDENTIAL LETTINGS LIMITED,Daily IMS payment,22/02/2018,15000,,N/A,Grant
"Ministry of Housing, Communities and Local Government",Homes England,Capital Grant to RPs,North West,J & M RESIDENTIAL LETTINGS LIMITED,Daily IMS payment,22/02/2018,7000,,N/A,Grant
"Ministry of Housing, Communities and Local Government",Homes England,Capital Grant to RPs,North West,J & M RESIDENTIAL LETTINGS LIMITED,Daily IMS payment,06/03/2018,5000,,N/A,Grant
"Ministry of Housing, Communities and Local Government",Homes England,Capital Grant to RPs,North East And Yorkshire,TCUK HOMES LIMITED,Daily IMS payment,08/02/2018,16500,,N/A,Grant
"Ministry of Housing, Communities and Local Government",Homes England,Capital Grant to RPs,North East And Yorkshire,HIGHSTONE HOUSING ASSOCIATION,Daily IMS payment,02/03/2018,180000,,N/A,Grant
"Ministry of Housing, Communities and Local Government",Homes England,Capital Grant to RPs,North East And Yorkshire,HIGHSTONE HOUSING ASSOCIATION,Daily IMS payment,02/03/2018,525000,,N/A,Grant
"Ministry of Housing, Communities and Local Government",Homes England,Capital Grant to RPs,North East And Yorkshire,HIGHSTONE HOUSING ASSOCIATION,Daily IMS payment,02/03/2018,135000,,N/A,Grant
"Ministry of Housing, Communities and Local Government",Homes England,Capital Grant to RPs,North East And Yorkshire,SOUTH TYNESIDE HOUSING VENTURE TRUST LTD,Daily IMS payment,05/03/2018,13425,,N/A,Grant
"Ministry of Housing, Communities and Local Government",Homes England,Capital Grant to RPs,North East And Yorkshire,SOUTH TYNESIDE HOUSING VENTURE TRUST LTD,Daily IMS payment,07/03/2018,13425,,N/A,Grant
"Ministry of Housing, Communities and Local Government",Homes England,Capital Grant to RPs,North East And Yorkshire,FORTIS LIVING GROUP,Daily IMS payment,26/02/2018,72000,,N/A,Grant
"Ministry of Housing, Communities and Local Government",Homes England,Capital Grant to RPs,North East And Yorkshire,FORTIS LIVING GROUP,Daily IMS payment,26/02/2018,15000,,N/A,Grant
"Ministry of Housing, Communities and Local Government",Homes England,Capital Grant to RPs,North East And Yorkshire,FORTIS LIVING GROUP,Daily IMS payment,26/02/2018,15000,,N/A,Grant
"Ministry of Housing, Communities and Local Government",Homes England,Capital Grant to RPs,North East And Yorkshire,FORTIS LIVING GROUP,Daily IMS payment,26/02/2018,15000,,N/A,Grant
"Ministry of Housing, Communities and Local Government",Homes England,Capital Grant to RPs,North East And Yorkshire,FORTIS LIVING GROUP,Daily IMS payment,26/02/2018,15000,,N/A,Grant
"Ministry of Housing, Communities and Local Government",Homes England,Capital Grant to RPs,North East And Yorkshire,FORTIS LIVING GROUP,Daily IMS payment,26/02/2018,15000,,N/A,Grant
"Ministry of Housing, Communities and Local Government",Homes England,Capital Grant to RPs,North East And Yorkshire,FORTIS LIVING GROUP,Daily IMS payment,27/02/2018,5000,,N/A,Grant
"Ministry of Housing, Communities and Local Government",Homes England,Capital Grant to RPs,North East And Yorkshire,FORTIS LIVING GROUP,Daily IMS payment,27/02/2018,5000,,N/A,Grant
"Ministry of Housing, Communities and Local Government",Homes England,Capital Grant to RPs,North East And Yorkshire,FORTIS LIVING GROUP,Daily IMS payment,27/02/2018,5000,,N/A,Grant
"Ministry of Housing, Communities and Local Government",Homes England,Capital Grant to RPs,North East And Yorkshire,FORTIS LIVING GROUP,Daily IMS payment,27/02/2018,5000,,N/A,Grant
"Ministry of Housing, Communities and Local Government",Homes England,Capital Grant to RPs,North East And Yorkshire,FORTIS LIVING GROUP,Daily IMS payment,27/02/2018,5000,,N/A,Grant
"Ministry of Housing, Communities and Local Government",Homes England,Capital Grant to RPs,North East And Yorkshire,FORTIS LIVING GROUP,Daily IMS payment,02/03/2018,15000,,N/A,Grant
"Ministry of Housing, Communities and Local Government",Homes England,Capital Grant to RPs,North East And Yorkshire,FORTIS LIVING GROUP,Daily IMS payment,02/03/2018,15000,,N/A,Grant
"Ministry of Housing, Communities and Local Government",Homes England,Capital Grant to RPs,North East And Yorkshire,FORTIS LIVING GROUP,Daily IMS payment,05/03/2018,15000,,N/A,Grant
"Ministry of Housing, Communities and Local Government",Homes England,Capital Grant to RPs,North East And Yorkshire,FORTIS LIVING GROUP,Daily IMS payment,05/03/2018,5000,,N/A,Grant
"Ministry of Housing, Communities and Local Government",Homes England,Capital Grant to RPs,North East And Yorkshire,FORTIS LIVING GROUP,Daily IMS payment,05/03/2018,5000,,N/A,Grant
"Ministry of Housing, Communities and Local Government",Homes England,Capital Grant to RPs,North East And Yorkshire,FORTIS LIVING GROUP,Daily IMS payment,06/03/2018,5000,,N/A,Grant
"Ministry of Housing, Communities and Local Government",Homes England,Capital Grant to RPs,South West,DEVON AND CORNWALL HOUSING LIMITED,Daily IMS payment,07/03/2018,65250,,N/A,Grant
"Ministry of Housing, Communities and Local Government",Homes England,Capital Grant to RPs,South West,LODDON HOMES LIMITED,Daily IMS payment,16/02/2018,78999,,N/A,Grant
"Ministry of Housing, Communities and Local Government",Homes England,Capital Grant to RPs,South West,LODDON HOMES LIMITED,Daily IMS payment,16/02/2018,92626,,N/A,Grant
"Ministry of Housing, Communities and Local Government",Homes England,Public Land and Regeneration,Programmes,BEVAN BRITTAN,WALTON HOSPITAL COMPLETION,23/02/2018,976452,,N/A,Acquisitions
"Ministry of Housing, Communities and Local Government",Homes England,Economic Assets S&Sw Prog,South West,MARINA PROJECTS LIMITED,DSW1066-SERVICE-East Cowes-Eelgrass surveys,28/02/2018,750,M,80131800,Real estate management services
"Ministry of Housing, Communities and Local Government",Homes England,Budget 2013 - Midlands Wm,Midlands,AMION CONSULTING LTD,IT75141-SERVICE-Economic Appraisal of Acquisition NW,01/02/2018,5000,S,81121500,Economic analysis
"Ministry of Housing, Communities and Local Government",Homes England,Budget 2013 - Midlands Wm,Midlands,AMION CONSULTING LTD,IT74805-SERVICE-Economic Appraisal of Acquisition ,01/02/2018,5000,S,81121500,Economic analysis
"Ministry of Housing, Communities and Local Government",Homes England,Land And Regeneration National,Programmes,AMION CONSULTING LTD,IT73566-SERVICE-Senior Specialist Economics Cover ,01/02/2018,7517.3,S,81121500,Economic analysis
"Ministry of Housing, Communities and Local Government",Homes England,Spatial Intelligence Telford,Programmes,AMION CONSULTING LTD,IT74973-SERVICE-Extension to March 2018,01/02/2018,2897.19,S,81121500,Economic analysis
"Ministry of Housing, Communities and Local Government",Homes England,HCA Investment Credit Risk Man,Programmes,ADECCO UK LTD,DAP2433-SERVICE-Agency Staff,01/02/2018,604.8,L,80111600,Temporary personnel services
"Ministry of Housing, Communities and Local Government",Homes England,HCA Investment Credit Risk Man,Programmes,ADECCO UK LTD,DAP2433-SERVICE-Agency Staff,01/02/2018,922.74,L,80111600,Temporary personnel services
"Ministry of Housing, Communities and Local Government",Homes England,Land And Regeneration Mh,Programmes,ADECCO UK LTD,DAP3715-SERVICE-Adecco Agency Staff,12/02/2018,662.9,L,80111600,Temporary personnel services
"Ministry of Housing, Communities and Local Government",Homes England,HCA Investment Credit Risk Man,Programmes,ADECCO UK LTD,DAP2433-SERVICE-Agency Staff,15/02/2018,905,L,80111600,Temporary personnel services
"Ministry of Housing, Communities and Local Government",Homes England,HCA Investment Credit Risk Man,Programmes,ADECCO UK LTD,DAP2433-SERVICE-Agency Staff,15/02/2018,834.02,L,80111600,Temporary personnel services
"Ministry of Housing, Communities and Local Government",Homes England,Land And Regeneration Mh,Programmes,ADECCO UK LTD,DAP3715-SERVICE-Adecco Agency Staff,21/02/2018,662.9,L,80111600,Temporary personnel services
"Ministry of Housing, Communities and Local Government",Homes England,Land And Regeneration Mh,Programmes,ADECCO UK LTD,DAP3715-SERVICE-Adecco Agency Staff,21/02/2018,662.9,L,80111600,Temporary personnel services
"Ministry of Housing, Communities and Local Government",Homes England,HCA Investment Credit Risk Man,Programmes,ADECCO UK LTD,DAP2433-SERVICE-Agency Staff,27/02/2018,881.34,L,80111600,Temporary personnel services
"Ministry of Housing, Communities and Local Government",Homes England,HCA Investment Credit Risk Man,Programmes,ADECCO UK LTD,DAP2433-SERVICE-Agency Staff,27/02/2018,798.53,L,80111600,Temporary personnel services
"Ministry of Housing, Communities and Local Government",Homes England,Land And Regeneration Mh,Programmes,ADECCO UK LTD,DAP3715-SERVICE-Adecco Agency Staff,27/02/2018,662.9,L,80111600,Temporary personnel services
"Ministry of Housing, Communities and Local Government",Homes England,Economic Assets Ne-Y Prog,North East And Yorkshire,WESTERN POWER DISTRIBUTION,DAP4009-SERVICE-Disconnection of services at North Avon Magis,08/02/2018,623.53,L,72101500,Building maintenance and repair services
"Ministry of Housing, Communities and Local Government",Homes England,Economic Assets Ne-Y Prog,North East And Yorkshire,ALPHA HEATING (CHESTERFIELD) LTD,DAP2590-SERVICE-Gas boiler heating system and radiator checks,09/02/2018,1283,S,72101500,Building maintenance and repair services
"Ministry of Housing, Communities and Local Government",Homes England,Economic Assets Ne-Y Prog,North East And Yorkshire,ALPHA HEATING (CHESTERFIELD) LTD,DAP3372-SERVICE-Supply and install a boiler thermostat to the,09/02/2018,1275.92,S,72101500,Building maintenance and repair services
"Ministry of Housing, Communities and Local Government",Homes England,Land And Regeneration Mh,Programmes,ALPHABET (GB) LTD,DAP3509-SERVICE-LEASE COSTS,07/02/2018,2292.23,L,25101500,Passenger motor vehicles
"Ministry of Housing, Communities and Local Government",Homes England,Land And Regeneration Mh,Programmes,ALPHABET (GB) LTD,DAP3509-SERVICE-SERVICE COSTS,07/02/2018,2935.08,L,25101500,Passenger motor vehicles
"Ministry of Housing, Communities and Local Government",Homes England,Facilities Allerton Bywater,Finance & Corporate Services,ALPHABET (GB) LTD,DGC1562-SERVICE-INFORMAL EXT SERVICE COSTS,07/02/2018,266.6,L,25101500,Passenger motor vehicles
"Ministry of Housing, Communities and Local Government",Homes England,Spatial Intelligence Telford,Programmes,ALPHABET (GB) LTD,DGC1543-SERVICE-INFORMAL EXT SERVICE COSTS,09/02/2018,259.47,L,25101500,Passenger motor vehicles
"Ministry of Housing, Communities and Local Government",Homes England,Economic Assets Hub Transition,Economic Assets Hub,ABERFELDY NEW VILLAGE LLP,THBF LTF-Aberfeldy New Village-Feb18,19/02/2018,499027.5,,N/A,Loans
"Ministry of Housing, Communities and Local Government",Homes England,Comms Transition Budget,Finance & Corporate Services,AMBER SCREEN AND DISPLAY,DAP3951-SERVICE-Re-brand Homes England signage ,05/02/2018,403.89,S,72102900,Facility maintenance and repair services
"Ministry of Housing, Communities and Local Government",Homes England,Comms Transition Budget,Finance & Corporate Services,AMBER SCREEN AND DISPLAY,DAP3952-SERVICE-Re-brand Homes England signage,05/02/2018,429.77,S,72102900,Facility maintenance and repair services
"Ministry of Housing, Communities and Local Government",Homes England,Economic Assets Ne-Y Prog,North East And Yorkshire,ARVAL UK LIMITED,DGC1761-SERVICE-LEASE COSTS,01/02/2018,1180.7,L,25101500,Passenger motor vehicles
"Ministry of Housing, Communities and Local Government",Homes England,Economic Assets Ne-Y Prog,North East And Yorkshire,ARVAL UK LIMITED,DGC1761-SERVICE-SERVICE COSTS,01/02/2018,1541.89,L,25101500,Passenger motor vehicles
"Ministry of Housing, Communities and Local Government",Homes England,Economic Assets Nw Prog,North West,ARVAL UK LIMITED,DGC1630-SERVICE-LEASE COSTS,06/02/2018,1181.52,L,25101500,Passenger motor vehicles
"Ministry of Housing, Communities and Local Government",Homes England,Economic Assets Nw Prog,North West,ARVAL UK LIMITED,DGC1630-SERVICE-SERVICE COSTS,06/02/2018,1750.21,L,25101500,Passenger motor vehicles
"Ministry of Housing, Communities and Local Government",Homes England,Corporate Assurance-Mh,Finance & Corporate Services,ARVAL UK LIMITED,DGC1763-SERVICE-LEASE COSTS,07/02/2018,1097.68,L,25101500,Passenger motor vehicles
"Ministry of Housing, Communities and Local Government",Homes England,Corporate Assurance-Mh,Finance & Corporate Services,ARVAL UK LIMITED,DGC1763-SERVICE-SERVICE COSTS,07/02/2018,1704.04,L,25101500,Passenger motor vehicles
"Ministry of Housing, Communities and Local Government",Homes England,It - Rda Transition,Finance & Corporate Services,ACS BUSINESS SUPPLIES,DAP3809-SERVICE-16 x HP Elitebook 820 G3 T9X42EA~ABU,07/02/2018,16238.88,M,43211900,Computer displays
"Ministry of Housing, Communities and Local Government",Homes England,It - Rda Transition,Finance & Corporate Services,ACS BUSINESS SUPPLIES,DAP3910-SERVICE-8 x HP EliteBook 820 G3 T9X42EA~ABU ,07/02/2018,8119.44,M,43211900,Computer displays
"Ministry of Housing, Communities and Local Government",Homes England,Economic Assets Hub Transition,Economic Assets Hub,ACROM HOLDINGS LIMITED,"STF - Quarry Site, Louth - L D - Feb 18",08/02/2018,101180,,N/A,Loans
"Ministry of Housing, Communities and Local Government",Homes England,Economic Assets Hub Transition,Economic Assets Hub,ACROM HOLDINGS LIMITED,THBF STF-Quarry Site-Feb18,28/02/2018,100875,,N/A,Loans
"Ministry of Housing, Communities and Local Government",Homes England,Economic Assets Hub Transition,Economic Assets Hub,ASH GREEN (HOLDINGS) LTD,STF - Ash Green - Ln Drdn - Feb 18,05/02/2018,41356,,N/A,Loans
"Ministry of Housing, Communities and Local Government",Homes England,Economic Assets Hub Transition,Economic Assets Hub,ASH GREEN (HOLDINGS) LTD,STF - Ash Green - Ln Drdn - Feb 18,05/02/2018,64730,,N/A,Loans
"Ministry of Housing, Communities and Local Government",Homes England,Economic Assets Ne-Y Prog,North East And Yorkshire,AIREDALE FORESTRY,DAP3642-SERVICE-St Georges Hospital - Installation of bollard,08/02/2018,957,S,72101500,Building maintenance and repair services
"Ministry of Housing, Communities and Local Government",Homes England,Economic Assets Ne-Y Prog,North East And Yorkshire,AIREDALE FORESTRY,"DAP2210-SERVICE-Electrolux, Spennymoor - Landscape maintenanc",09/02/2018,390.25,S,72101500,Building maintenance and repair services
"Ministry of Housing, Communities and Local Government",Homes England,Economic Assets Ne-Y Prog,North East And Yorkshire,AIREDALE FORESTRY,DAP1159-SERVICE-Provision of Landscape maintenance works for,09/02/2018,362.83,S,72101500,Building maintenance and repair services
"Ministry of Housing, Communities and Local Government",Homes England,Ne-Y North East Washington,North East And Yorkshire,AIREDALE FORESTRY,DAP0435-SERVICE-Landscape maintenance at St Georges for one y,12/02/2018,635.5,S,72101500,Building maintenance and repair services
"Ministry of Housing, Communities and Local Government",Homes England,Economic Assets Ne-Y Prog,North East And Yorkshire,AIREDALE FORESTRY,"DAP3838-SERVICE-Ouseburn Sites, Newcastle (PCS Budget) ",14/02/2018,262,S,72101500,Building maintenance and repair services
"Ministry of Housing, Communities and Local Government",Homes England,Economic Assets Ne-Y Prog,North East And Yorkshire,AIREDALE FORESTRY,"DAP3784-SERVICE-Ouseburn Sites, Newcastle (PCS Budget) -",14/02/2018,250,S,72101500,Building maintenance and repair services
"Ministry of Housing, Communities and Local Government",Homes England,Economic Assets Ne-Y Prog,North East And Yorkshire,AIREDALE FORESTRY,"DAP3648-SERVICE-Ouseburn Sites, Newcastle - Replace 5no missi",14/02/2018,384,S,72101500,Building maintenance and repair services
"Ministry of Housing, Communities and Local Government",Homes England,Economic Assets Ne-Y Prog,North East And Yorkshire,AIREDALE FORESTRY,DAP3660-SERVICE-Removal of wires and rebar across the bank. I,13/02/2018,541,S,72101500,Building maintenance and repair services
"Ministry of Housing, Communities and Local Government",Homes England,Economic Assets Ne-Y Prog,North East And Yorkshire,AIREDALE FORESTRY,"DAP3713-SERVICE-Burt Street Units, Blyth Quayside -",16/02/2018,2508,S,72101500,Building maintenance and repair services
"Ministry of Housing, Communities and Local Government",Homes England,Economic Assets Ne-Y Prog,North East And Yorkshire,AIREDALE FORESTRY,DAP2911-SERVICE-Ashwood - Replace three missing fencing slats,21/02/2018,269,S,72101500,Building maintenance and repair services
"Ministry of Housing, Communities and Local Government",Homes England,Spatial Intelligence Telford,Programmes,AIREDALE FORESTRY,DAP3055-SERVICE-Longbenton - Removing a section of fencing to,28/02/2018,618,S,72101500,Building maintenance and repair services
"Ministry of Housing, Communities and Local Government",Homes England,Spatial Intelligence Telford,Programmes,AIREDALE FORESTRY,DAP3055-SERVICE-Longbenton - Initial grass cut to get the are,28/02/2018,975,S,72101500,Building maintenance and repair services
"Ministry of Housing, Communities and Local Government",Homes England,Spatial Intelligence Telford,Programmes,AIREDALE FORESTRY,DAP3615-SERVICE-Longbenton - Ad hoc works to remove items fro,28/02/2018,269,S,72101500,Building maintenance and repair services
"Ministry of Housing, Communities and Local Government",Homes England,Budget 2013 - Midlands Wm,Midlands,KIER INTERGRATED SERVICES LIMITED,"DAP2659-SERVICE-Upton, Northampton - gritting of High Street",19/02/2018,4000,L,72101500,Building maintenance and repair services
"Ministry of Housing, Communities and Local Government",Homes England,HCA Investment Invest FRY BDG,Programmes,ARNOLD CLARK FINANCE LIMITED,DGC1236-SERVICE-Lease Rental,19/02/2018,2273.22,L,25101500,Passenger motor vehicles
"Ministry of Housing, Communities and Local Government",Homes England,HCA Investment Invest FRY BDG,Programmes,ARNOLD CLARK FINANCE LIMITED,DGC1236-SERVICE-Service Rental,19/02/2018,2675.46,L,25101500,Passenger motor vehicles
"Ministry of Housing, Communities and Local Government",Homes England,Economic Assets S&Sw Prog,South West,ARNOLD CLARK FINANCE LIMITED,DAP3707-SERVICE-LEASE COST,20/02/2018,1756.44,L,25101500,Passenger motor vehicles
"Ministry of Housing, Communities and Local Government",Homes England,Economic Assets S&Sw Prog,South West,ARNOLD CLARK FINANCE LIMITED,DAP3707-SERVICE-SERVICE COSTS,20/02/2018,2220.48,L,25101500,Passenger motor vehicles
"Ministry of Housing, Communities and Local Government",Homes England,Economic Assets Ne-Y Prog,North East And Yorkshire,ALPHA FIRE AND SECURITY SOLUTIONS LTD,DAP3764-SERVICE-Moreton in Marsh - Electrical checks and fire,09/02/2018,380,S,72102900,Facility maintenance and repair services
"Ministry of Housing, Communities and Local Government",Homes England,Economic Assets Ne-Y Prog,North East And Yorkshire,BERWIN LEIGHTON PAISNER,IS12895-SERVICE-Advice relating to lease with Martin Baker at,05/02/2018,11174,L,80121600,Business law services
"Ministry of Housing, Communities and Local Government",Homes England,East And South East,East And South East,BERWIN LEIGHTON PAISNER,IS13075-SERVICE-Tinsley Lane,06/02/2018,3500,L,80121600,Business law services
"Ministry of Housing, Communities and Local Government",Homes England,Economic Assets Ne-Y Prog,North East And Yorkshire,BERWIN LEIGHTON PAISNER,IS12895-SERVICE-Advice relating to lease with Martin Baker at,08/02/2018,19726.5,L,80121600,Business law services
"Ministry of Housing, Communities and Local Government",Homes England,East And Se Cambs Herts And Bu,East And South East,BERWIN LEIGHTON PAISNER,IS12867-SERVICE-Marcmont Farm/Picotts End. Collaboration Agre,08/02/2018,732,L,80121600,Business law services
"Ministry of Housing, Communities and Local Government",Homes England,Economic Assets Ne-Y Prog,North East And Yorkshire,BERWIN LEIGHTON PAISNER,IS13032-SERVICE-Dover Magistrates Court,08/02/2018,3800,L,80121600,Business law services
"Ministry of Housing, Communities and Local Government",Homes England,HCA Investment Invest FRY BDG,Programmes,BERWIN LEIGHTON PAISNER,IS12375-SERVICE-Glenvale Park,12/02/2018,41700.5,L,80121600,Business law services
"Ministry of Housing, Communities and Local Government",Homes England,East And Se Essex And Kent,East And South East,BERWIN LEIGHTON PAISNER,IS11740-SERVICE-Officer's Mess,13/02/2018,1311,L,80121600,Business law services
"Ministry of Housing, Communities and Local Government",Homes England,Land And Regeneration Mh,Programmes,BERWIN LEIGHTON PAISNER,IS12259-SERVICE-GBB - Ashlands Phase 2,19/02/2018,10000,L,80121600,Business law services
"Ministry of Housing, Communities and Local Government",Homes England,Land And Regeneration Mh,Programmes,BERWIN LEIGHTON PAISNER,IS12259-SERVICE-GBB - Ashlands Phase 2,19/02/2018,750,L,80121600,Business law services
"Ministry of Housing, Communities and Local Government",Homes England,Land And Regeneration Mh,Programmes,BERWIN LEIGHTON PAISNER,IS12259-SERVICE-GBB - Ashlands Phase 2,19/02/2018,2500,L,80121600,Business law services
"Ministry of Housing, Communities and Local Government",Homes England,Programme Management Mh,Finance & Corporate Services,BERWIN LEIGHTON PAISNER,DAP4238-SERVICE-Homebuy agent VAT advice,21/02/2018,3500,L,80121600,Business law services
"Ministry of Housing, Communities and Local Government",Homes England,East And South East,East And South East,BERWIN LEIGHTON PAISNER,IS12994-SERVICE-Hazlewell Hall Farm,23/02/2018,1500,L,80121600,Business law services
"Ministry of Housing, Communities and Local Government",Homes England,Investment South East,East And South East,BERWIN LEIGHTON PAISNER,IS12790-SERVICE-Lakeside Arena Site,28/02/2018,8058,L,80121600,Business law services
"Ministry of Housing, Communities and Local Government",Homes England,It - Rda Transition,Finance & Corporate Services,BUSINESS IT,DAP4048-SERVICE-4 x Catalyst 2960-X Felxstack,12/02/2018,1380,S,81112300,Computer hardware maintenance and support
"Ministry of Housing, Communities and Local Government",Homes England,It - Rda Transition,Finance & Corporate Services,BUSINESS IT,DAP4048-SERVICE-4 x Cisco 2960-X 48p POE,12/02/2018,7116,S,81112300,Computer hardware maintenance and support
"Ministry of Housing, Communities and Local Government",Homes England,It - Rda Transition,Finance & Corporate Services,BUSINESS IT,DAP4059-SERVICE-4 x Catalyst 2960-X Felxstack,12/02/2018,690,S,81112300,Computer hardware maintenance and support
"Ministry of Housing, Communities and Local Government",Homes England,It - Rda Transition,Finance & Corporate Services,BUSINESS IT,DAP4059-SERVICE-4 x Cisco 2960-X 48p POE,12/02/2018,3558,S,81112300,Computer hardware maintenance and support
"Ministry of Housing, Communities and Local Government",Homes England,It - Rda Transition,Finance & Corporate Services,BUSINESS IT,DAP4059-SERVICE-2 x Cisco 3650 24p,12/02/2018,4700,S,81112300,Computer hardware maintenance and support
"Ministry of Housing, Communities and Local Government",Homes England,It - Rda Transition,Finance & Corporate Services,BUSINESS IT,DAP4080-SERVICE-1 x Cisco Catalyst 2960-X 24p,14/02/2018,649,S,81112300,Computer hardware maintenance and support
"Ministry of Housing, Communities and Local Government",Homes England,It - Rda Transition,Finance & Corporate Services,BUSINESS IT,DAP4080-SERVICE-1 x Catalyst 2960-X Stacking module,16/02/2018,338,S,81112300,Computer hardware maintenance and support
"Ministry of Housing, Communities and Local Government",Homes England,It - Rda Transition,Finance & Corporate Services,BUSINESS IT,DAP4080-SERVICE-2 x Cisco Catalyst 3650 stack kit,16/02/2018,1050,S,81112300,Computer hardware maintenance and support
"Ministry of Housing, Communities and Local Government",Homes England,It - Rda Transition,Finance & Corporate Services,BUSINESS IT,DAP4080-SERVICE-16 x Cisco Glc-Sx-Mmd Network Transceiver Mod,16/02/2018,2384,S,81112300,Computer hardware maintenance and support
"Ministry of Housing, Communities and Local Government",Homes England,It - Rda Transition,Finance & Corporate Services,BUSINESS IT,DAP4191-SERVICE-1 x HP Proliant DL380 Gen10 Server (SQUO00092,21/02/2018,3993.94,S,81112300,Computer hardware maintenance and support
"Ministry of Housing, Communities and Local Government",Homes England,It - Rda Transition,Finance & Corporate Services,BUSINESS IT,DAP4191-SERVICE-1 x HP Proliant DL380 Gen10 Server (SQUO00092,27/02/2018,4375.72,S,81112300,Computer hardware maintenance and support
"Ministry of Housing, Communities and Local Government",Homes England,It - Rda Transition,Finance & Corporate Services,BUSINESS IT,DAP4253-SERVICE-70 x HP USB mouse,28/02/2018,598.5,S,81112300,Computer hardware maintenance and support
"Ministry of Housing, Communities and Local Government",Homes England,It - Rda Transition,Finance & Corporate Services,BUSINESS IT,DAP4253-SERVICE-70 x 45w AC Adapter,28/02/2018,1186.5,S,81112300,Computer hardware maintenance and support
"Ministry of Housing, Communities and Local Government",Homes England,It - Rda Transition,Finance & Corporate Services,BUSINESS IT,DAP4253-SERVICE-70 x HP USB keyboard,28/02/2018,840,S,81112300,Computer hardware maintenance and support
"Ministry of Housing, Communities and Local Government",Homes England,It - Rda Transition,Finance & Corporate Services,BUSINESS IT,DAP4253-SERVICE-70 x Kensingto USB Docking station - K33972EU,28/02/2018,7350,S,81112300,Computer hardware maintenance and support
"Ministry of Housing, Communities and Local Government",Homes England,Economic Assets Hub Transition,Economic Assets Hub,BLOSSOM IRON DEVELOPMENTS LIMITED,BtR - Blossom Iron - Ln Drdn - Feb 18,01/02/2018,823860.62,,N/A,Loans
"Ministry of Housing, Communities and Local Government",Homes England,Economic Assets Hub Transition,Economic Assets Hub,BLOSSOM IRON DEVELOPMENTS LIMITED,BTR-Blossom Iron-Ln Drawdown-Feb18,20/02/2018,791768.19,,N/A,Loans
"Ministry of Housing, Communities and Local Government",Homes England,Estate Management Yorks,North West,BROWNE JACOBSON LLP,IS13256-SERVICE-Land off Redditch Ringway,01/02/2018,1196.5,L,80121600,Business law services
"Ministry of Housing, Communities and Local Government",Homes England,Land And Regeneration Mh,Programmes,BROWNE JACOBSON LLP,TS00023-SERVICE-27559 - Southfield Housing Development Ltd �,05/02/2018,22152.8,L,80121600,Business law services
"Ministry of Housing, Communities and Local Government",Homes England,Estate Management Yorks,North West,BROWNE JACOBSON LLP,IS13256-SERVICE-Land off Redditch Ringway,06/02/2018,1353,L,80121600,Business law services
"Ministry of Housing, Communities and Local Government",Homes England,Economic Assets S&Sw Prog,South West,BROWNE JACOBSON LLP,IS13172-SERVICE-Land at Zone E Vision Development,06/02/2018,2512,L,80121600,Business law services
"Ministry of Housing, Communities and Local Government",Homes England,Area Dir Mids Worcs-Shrop-Here,Midlands,BROWNE JACOBSON LLP,IS12684-SERVICE-Bucknall Hospital - Release of Charge,08/02/2018,892.5,L,80121600,Business law services
"Ministry of Housing, Communities and Local Government",Homes England,Budget 2013 - Midlands Wm,Midlands,BROWNE JACOBSON LLP,IS13157-SERVICE-Plots 3,14/02/2018,3024,L,80121600,Business law services
"Ministry of Housing, Communities and Local Government",Homes England,East And South East,East And South East,BROWNE JACOBSON LLP,IS13184-SERVICE-Magnet Building,16/02/2018,1506,L,80121600,Business law services
"Ministry of Housing, Communities and Local Government",Homes England,East And South East,East And South East,BROWNE JACOBSON LLP,IS13230-SERVICE-Northfleet Embankment Employment Land (South),19/02/2018,1500,L,80121600,Business law services
"Ministry of Housing, Communities and Local Government",Homes England,Economic Assets S&Sw Prog,South West,BROWNE JACOBSON LLP,IS11753-SERVICE-Centenary Quay,21/02/2018,2000,L,80121600,Business law services
"Ministry of Housing, Communities and Local Government",Homes England,Economic Assets S&Sw Prog,South West,BROWNE JACOBSON LLP,IS13262-SERVICE-Blackberry Hill/Cedar House,22/02/2018,7500,L,80121600,Business law services
"Ministry of Housing, Communities and Local Government",Homes England,Economic Assets Nw Prog,North West,BROWNE JACOBSON LLP,IS13187-SERVICE-Phoenix House,22/02/2018,12950,L,80121600,Business law services
"Ministry of Housing, Communities and Local Government",Homes England,South West Berks-Wiltshire,South West,BROWNE JACOBSON LLP,IS11518-SERVICE-To instruct Browne Jacobson to write a letter,23/02/2018,1700,L,80121600,Business law services
"Ministry of Housing, Communities and Local Government",Homes England,Land And Regeneration Mh,Programmes,BROWNE JACOBSON LLP,IS11590-SERVICE-Phase 2,27/02/2018,3253.9,L,80121600,Business law services
"Ministry of Housing, Communities and Local Government",Homes England,Economic Assets Nw Prog,North West,BUILDING DESIGN PARTNERSHIP,IT75124-SERVICE-Technical Due Diligence - Westwood Park,01/02/2018,7395,L,80131800,Real estate management services
"Ministry of Housing, Communities and Local Government",Homes England,Land And Regeneration Mh,Programmes,BUILDING DESIGN PARTNERSHIP,IT73531-SERVICE-RLB sub contractor Monitoring Surveyor Middle,05/02/2018,1800,L,80131800,Real estate management services
"Ministry of Housing, Communities and Local Government",Homes England,Spatial Intelligence Telford,Programmes,BUILDING DESIGN PARTNERSHIP,IT73821-SERVICE-Technical Support Manager Secondment,07/02/2018,6666,L,80131800,Real estate management services
"Ministry of Housing, Communities and Local Government",Homes England,Budget 2013 - Midlands Wm,Midlands,CANAL & RIVER TRUST,DAP3877-SERVICE-Leasehold Rent to CRT for 12 months,26/02/2018,657.5,L,80131500,Lease and rental of property or building
"Ministry of Housing, Communities and Local Government",Homes England,Budget 2013 - Midlands Wm,Midlands,CANAL & RIVER TRUST,DAP3877-SERVICE-Leasehold Rent to CRT for 12 months,26/02/2018,333.75,L,80131500,Lease and rental of property or building
"Ministry of Housing, Communities and Local Government",Homes England,Economic Assets S&Sw Prog,South West,BRUNEL PROJECT MANAGEMENT LTD,DSW1024-SERVICE-Bristol & Bath Science Park fee retainer for,09/02/2018,570,S,80131800,Real estate management services
"Ministry of Housing, Communities and Local Government",Homes England,South West Of Eng-Glouc-Oxford,South West,PETER BRETT ASSOCIATES LLP,IT71946-SERVICE-Weston Links Remediation Investigation and St,01/02/2018,1277.78,L,80131800,Real estate management services
"Ministry of Housing, Communities and Local Government",Homes England,Economic Assets S&Sw Prog,South West,PETER BRETT ASSOCIATES LLP,IT74058-SERVICE-Ben Thank you for your time on the phone yest,01/02/2018,11682.3,L,80131800,Real estate management services
"Ministry of Housing, Communities and Local Government",Homes England,Land And Regeneration Mh,Programmes,PETER BRETT ASSOCIATES LLP,IT73530-SERVICE-DN7 Unity doncaster Monitoring Surveyor,05/02/2018,4450,L,80131800,Real estate management services
"Ministry of Housing, Communities and Local Government",Homes England,South West Hants-Iow-Dorset-Bu,South West,PETER BRETT ASSOCIATES LLP,IT72530-SERVICE-Outline Planning,07/02/2018,31459,L,80131800,Real estate management services
"Ministry of Housing, Communities and Local Government",Homes England,Land And Regeneration Mh,Programmes,PETER BRETT ASSOCIATES LLP,IT73958-SERVICE-3yr Engineering for Kingsmead South,08/02/2018,264,L,80131800,Real estate management services
"Ministry of Housing, Communities and Local Government",Homes England,Economic Assets S&Sw Prog,South West,PETER BRETT ASSOCIATES LLP,IT74561-SERVICE-Utility due diligence - Hampshire,08/02/2018,1751.88,L,80131800,Real estate management services
"Ministry of Housing, Communities and Local Government",Homes England,Economic Assets S&Sw Prog,South West,PETER BRETT ASSOCIATES LLP,IT74368-SERVICE-Blandford Brewery - Demolition and infrastruc,26/02/2018,24640.28,L,80131800,Real estate management services
"Ministry of Housing, Communities and Local Government",Homes England,Economic Assets S&Sw Prog,South West,PETER BRETT ASSOCIATES LLP,IT75205-SERVICE-Brue Farm - Surface water rhyne cost assessme,27/02/2018,3450,L,80131800,Real estate management services
"Ministry of Housing, Communities and Local Government",Homes England,Economic Assets S&Sw Prog,South West,PETER BRETT ASSOCIATES LLP,IT74902-SERVICE-Utility capacity Study - Tesco site Hanham ,27/02/2018,1625,L,80131800,Real estate management services
"Ministry of Housing, Communities and Local Government",Homes England,Economic Assets S&Sw Prog,South West,PETER BRETT ASSOCIATES LLP,IT75001-SERVICE-Hanham Tesco site ,27/02/2018,3650,L,80131800,Real estate management services
"Ministry of Housing, Communities and Local Government",Homes England,Economic Assets S&Sw Prog,South West,PETER BRETT ASSOCIATES LLP,IT74492-SERVICE-Demolition,27/02/2018,14000,L,80131800,Real estate management services
"Ministry of Housing, Communities and Local Government",Homes England,Economic Assets S&Sw Prog,South West,PETER BRETT ASSOCIATES LLP,IT74564-SERVICE-Lace Works,27/02/2018,17342,L,80131800,Real estate management services
"Ministry of Housing, Communities and Local Government",Homes England,Economic Assets S&Sw Prog,South West,PETER BRETT ASSOCIATES LLP,IT75148-SERVICE-Raleigh Park,27/02/2018,20631.3,L,80131800,Real estate management services
"Ministry of Housing, Communities and Local Government",Homes England,Land And Regeneration Mh,Programmes,PETER BRETT ASSOCIATES LLP,IT73958-SERVICE-3yr Engineering for Kingsmead South,28/02/2018,1829.5,L,80131800,Real estate management services
"Ministry of Housing, Communities and Local Government",Homes England,Land And Regeneration National,Programmes,PETER BRETT ASSOCIATES LLP,IT72927-SERVICE-Support with Direct Commissioning technical s,28/02/2018,5000,L,80131800,Real estate management services
"Ministry of Housing, Communities and Local Government",Homes England,Economic Assets Ne-Y Prog,North East And Yorkshire,BIFFA WASTE SERVICE LTD,"DAP0852-SERVICE-Burt Street, Blyth - Biffa Contract Number 14",23/02/2018,496.1,L,76121500,Refuse collection and disposal
"Ministry of Housing, Communities and Local Government",Homes England,Economic Assets Ne-Y Prog,North East And Yorkshire,BIFFA WASTE SERVICE LTD,"DAP0852-SERVICE-Burt Street, Blyth - Biffa Contract Number 14",27/02/2018,496.1,L,76121500,Refuse collection and disposal
"Ministry of Housing, Communities and Local Government",Homes England,Communications Allerton,Executive Office,BADENOCH & CLARK,DAP3267-SERVICE-(events coordinator) salary plus,12/02/2018,879.05,L,80111600,Temporary personnel services
"Ministry of Housing, Communities and Local Government",Homes England,Communications Allerton,Executive Office,BADENOCH & CLARK,DAP3267-SERVICE-(events coordinator) salary plus,15/02/2018,809.53,L,80111600,Temporary personnel services
"Ministry of Housing, Communities and Local Government",Homes England,Communications Allerton,Executive Office,BADENOCH & CLARK,DAP3267-SERVICE-(events coordinator) salary plus,20/02/2018,809.53,L,80111600,Temporary personnel services
"Ministry of Housing, Communities and Local Government",Homes England,Communications Allerton,Executive Office,BWA DESIGN LLP,DAP4058-SERVICE-Critical assessment of Homes England brand wo,16/02/2018,640,S,80131800,Real estate management services
"Ministry of Housing, Communities and Local Government",Homes England,It - Rda Transition,Finance & Corporate Services,BRITISH TELECOMMUNICATIONS PLC,DAP0673-SERVICE-Broadband usage for Contractual Homeworkers,06/02/2018,957,L,83111500,Local and long distance telephone communications
"Ministry of Housing, Communities and Local Government",Homes England,It - Rda Transition,Finance & Corporate Services,BRITISH TELECOMMUNICATIONS PLC,DAP0673-SERVICE-Broadband usage for Contractual Homeworkers,26/02/2018,1157,L,83111500,Local and long distance telephone communications
"Ministry of Housing, Communities and Local Government",Homes England,Area Dir Mids Worcs-Shrop-Here,Midlands,BRITISH GAS BUSINESS,DWM0689-SERVICE-Electricity supply to Lickey end Buildings,01/02/2018,592.7,L,83101800,Electric utilities
"Ministry of Housing, Communities and Local Government",Homes England,Economic Assets S&Sw Prog,South West,BRITISH GAS BUSINESS,DAP3933-SERVICE-Oxford Street 20% VAT,01/02/2018,995.11,L,83101800,Electric utilities
"Ministry of Housing, Communities and Local Government",Homes England,Economic Assets Ne-Y Prog,North East And Yorkshire,BRITISH GAS BUSINESS,"DAP3993-SERVICE-Supply of Electricity to St Domingo Place, We",05/02/2018,728.25,L,83101800,Electric utilities
"Ministry of Housing, Communities and Local Government",Homes England,Economic Assets Ne-Y Prog,North East And Yorkshire,BRITISH GAS BUSINESS,DAP0498-SERVICE-Compton - call off order,06/02/2018,323.96,L,83101800,Electric utilities
"Ministry of Housing, Communities and Local Government",Homes England,Economic Assets Ne-Y Prog,North East And Yorkshire,BRITISH GAS BUSINESS,DAP1852-SERVICE-To supply electricity to Wakefield magistrate,06/02/2018,1016.8,L,83101800,Electric utilities
"Ministry of Housing, Communities and Local Government",Homes England,Estate Management Yorks,North West,BRITISH GAS BUSINESS,DAP1642-SERVICE-20% vat,13/02/2018,467.88,L,83101800,Electric utilities
"Ministry of Housing, Communities and Local Government",Homes England,Economic Assets S&Sw Prog,South West,BRITISH GAS BUSINESS,DAP0800-SERVICE-20% VAT,19/02/2018,737.83,L,83101800,Electric utilities
"Ministry of Housing, Communities and Local Government",Homes England,Economic Assets S&Sw Prog,South West,BRITISH GAS BUSINESS,DSW1144-SERVICE-Daedalus Waterfront - site electricity bill,26/02/2018,600.47,L,83101800,Electric utilities
"Ministry of Housing, Communities and Local Government",Homes England,Economic Assets Hub Transition,Economic Assets Hub,BEAUCHIEF HOMES LIMITED,STF - Beauchief Homes - Ln Drdn - Feb 18,16/02/2018,185788.15,S,81121500,Economic analysis
"Ministry of Housing, Communities and Local Government",Homes England,Land And Regeneration National,Programmes,BBP REGENERATION LTD,IT73724-SERVICE-Maternity cover for Cynthia Kalyan for the pe,28/02/2018,3700,S,81121500,Economic analysis
"Ministry of Housing, Communities and Local Government",Homes England,Land And Regeneration National,Programmes,BBP REGENERATION LTD,IT73724-SERVICE-Maternity cover for Cynthia Kalyan for the pe,28/02/2018,5900,S,81112105,World wide web WWW site operation host services�
"Ministry of Housing, Communities and Local Government",Homes England,Spatial Intelligence Telford,Programmes,BRENTWOOD BOROUGH COUNCIL,Garden Village Funding,22/02/2018,230000,G,N/A,Grant
"Ministry of Housing, Communities and Local Government",Homes England,Economic Assets Hub Transition,Economic Assets Hub,BROADACRES SERVICES LIMITED,STF - Richmond House - Ln Drdn - Feb 18,15/02/2018,50027,,N/A,Loans
"Ministry of Housing, Communities and Local Government",Homes England,Facilities Allerton Bywater,Finance & Corporate Services,BPP PROFESSIONAL EDUCATION,DAP4143-SERVICE-'First course booked: 50% of non member price,15/02/2018,307.5,L,86101800,In service training and manpower development
"Ministry of Housing, Communities and Local Government",Homes England,Facilities Allerton Bywater,Finance & Corporate Services,BPP PROFESSIONAL EDUCATION,DAP4143-SERVICE-'Organisational Membership: 834.00,15/02/2018,695,L,86101800,In service training and manpower development
"Ministry of Housing, Communities and Local Government",Homes England,Facilities Allerton Bywater,Finance & Corporate Services,BPP PROFESSIONAL EDUCATION,DAP4143-SERVICE-8 Students at the 20% discount: 'Consumer Cre,15/02/2018,3920,L,86101800,In service training and manpower development
"Ministry of Housing, Communities and Local Government",Homes England,Economic Assets Hub Transition,Economic Assets Hub,BURRINGTON ESTATES (TRISPEN) LIMITED,STF - Burrington Estates - LnDd - Feb 18,26/02/2018,1955007,,N/A,Loans
"Ministry of Housing, Communities and Local Government",Homes England,Comms Transition Budget,Finance & Corporate Services,BRITISH GAS BUSINESS,DOF0401-SERVICE-BIS %,09/02/2018,1646.16,L,83101800,Electric utilities
"Ministry of Housing, Communities and Local Government",Homes England,Comms Transition Budget,Finance & Corporate Services,BRITISH GAS BUSINESS,DOF0401-SERVICE-afegd 1106 01,09/02/2018,3568.15,L,83101800,Electric utilities
"Ministry of Housing, Communities and Local Government",Homes England,It - Rda Transition,Finance & Corporate Services,BLACKBERRY UK LTD,DAP3178-SERVICE-BES Mobility Suite - Collaboration - Quote Q-,05/02/2018,672,L,43231500,Business function specific software
"Ministry of Housing, Communities and Local Government",Homes England,It - Rda Transition,Finance & Corporate Services,BLACKBERRY UK LTD,DAP3178-SERVICE-BES Enterprise Mobility Suite - Enterprise Ed,05/02/2018,1920,L,43231500,Business function specific software
"Ministry of Housing, Communities and Local Government",Homes England,It - Rda Transition,Finance & Corporate Services,BLACKBERRY UK LTD,DAP3178-SERVICE-GFE extended EOL support - Quote Q-339804,05/02/2018,20000,L,43231500,Business function specific software
"Ministry of Housing, Communities and Local Government",Homes England,Budget 2013 - Midlands Wm,Midlands,BIRMINGHAM CITY COUNCIL,YORK ROAD HALL GREEN,21/02/2018,2028,G,80131500,Lease and rental of property or building
"Ministry of Housing, Communities and Local Government",Homes England,East And South East,East And South East,BERWIN LEIGHTON PAISNER,ACQUISITION OF LAND AT SHEPWAY,13/02/2018,7500000,L,80121600,Business law services
"Ministry of Housing, Communities and Local Government",Homes England,Economic Assets S&Sw Prog,South West,BERWIN LEIGHTON PAISNER,LEGAL FEES JKAT/LMRN/F0332749,16/02/2018,3600,L,80121600,Business law services
"Ministry of Housing, Communities and Local Government",Homes England,Comms Transition Budget,Finance & Corporate Services,BOUYGUES E&S FM UK LTD,DAP0129-SERVICE-Call off order for catering at 2MS,06/02/2018,488.7,L,90101600,Banquet and catering services
"Ministry of Housing, Communities and Local Government",Homes England,Economic Assets Hub Transition,Economic Assets Hub,BOVIS HOMES LTD,STF - Stanton Cross - Ln Drdn - Feb 18,02/02/2018,2769691.03,,N/A,Loans
"Ministry of Housing, Communities and Local Government",Homes England,Land And Regeneration Mh,Programmes,BNP PARIBAS REAL ESTATE,IT74261-SERVICE-East Percy Street Red Book Valuation,01/02/2018,2500,L,80131800,Real estate management services
"Ministry of Housing, Communities and Local Government",Homes England,Land And Regeneration Mh,Programmes,BNP PARIBAS REAL ESTATE,IT73629-SERVICE-Intial monitoring report and monthly monitori,01/02/2018,650,L,80131800,Real estate management services
"Ministry of Housing, Communities and Local Government",Homes England,Land And Regeneration Mh,Programmes,BNP PARIBAS REAL ESTATE,IT69846-SERVICE-Monitoring Surveyor Services,01/02/2018,500,L,80131800,Real estate management services
"Ministry of Housing, Communities and Local Government",Homes England,Land And Regeneration Mh,Programmes,BNP PARIBAS REAL ESTATE,IT71359-SERVICE-Monitoring Surveyor Sevices - Hill Top Farm (,01/02/2018,500,L,80131800,Real estate management services
"Ministry of Housing, Communities and Local Government",Homes England,Land And Regeneration Mh,Programmes,BNP PARIBAS REAL ESTATE,IT73594-SERVICE-Project Monitoring Surveyor Services - The Qu,01/02/2018,500,L,80131800,Real estate management services
"Ministry of Housing, Communities and Local Government",Homes England,Land And Regeneration Mh,Programmes,BNP PARIBAS REAL ESTATE,IT73586-SERVICE-Moordale (North East) Ltd - Land to the rear ,01/02/2018,1800,L,80131800,Real estate management services
"Ministry of Housing, Communities and Local Government",Homes England,Land And Regeneration Mh,Programmes,BNP PARIBAS REAL ESTATE,IT69739-SERVICE-Following previous discussions and the Monito,02/02/2018,500,L,80131800,Real estate management services
"Ministry of Housing, Communities and Local Government",Homes England,Land And Regeneration Mh,Programmes,BNP PARIBAS REAL ESTATE,IT72088-SERVICE-Regents Park Phase 2a,02/02/2018,500,L,80131800,Real estate management services
"Ministry of Housing, Communities and Local Government",Homes England,Land And Regeneration Mh,Programmes,BNP PARIBAS REAL ESTATE,IT71459-SERVICE-Monitoring Instruction,02/02/2018,500,L,80131800,Real estate management services
"Ministry of Housing, Communities and Local Government",Homes England,Land And Regeneration Mh,Programmes,BNP PARIBAS REAL ESTATE,IT72603-SERVICE-Conniscliffe Rise MS Instruction,02/02/2018,500,L,80131800,Real estate management services
"Ministry of Housing, Communities and Local Government",Homes England,Land And Regeneration Mh,Programmes,BNP PARIBAS REAL ESTATE,IT70724-SERVICE-Phase 4 Central Park,08/02/2018,600,L,80131800,Real estate management services
"Ministry of Housing, Communities and Local Government",Homes England,Land And Regeneration Mh,Programmes,BNP PARIBAS REAL ESTATE,IT70740-SERVICE-Earl Marshal,08/02/2018,600,L,80131800,Real estate management services
"Ministry of Housing, Communities and Local Government",Homes England,Land And Regeneration Mh,Programmes,BNP PARIBAS REAL ESTATE,IT70743-SERVICE-Norfolk Park 4 & Bluestones,08/02/2018,600,L,80131800,Real estate management services
"Ministry of Housing, Communities and Local Government",Homes England,Land And Regeneration Mh,Programmes,BNP PARIBAS REAL ESTATE,IT70741-SERVICE-Falstaff 2,08/02/2018,600,L,80131800,Real estate management services
"Ministry of Housing, Communities and Local Government",Homes England,Land And Regeneration Mh,Programmes,BNP PARIBAS REAL ESTATE,IT70742-SERVICE-Manor 10 & 11,08/02/2018,600,L,80131800,Real estate management services
"Ministry of Housing, Communities and Local Government",Homes England,Land And Regeneration Mh,Programmes,BNP PARIBAS REAL ESTATE,IT70726-SERVICE-Main Road,08/02/2018,600,L,80131800,Real estate management services
"Ministry of Housing, Communities and Local Government",Homes England,Economic Assets Hub Transition,Economic Assets Hub,BNP PARIBAS REAL ESTATE,TS00109-SERVICE-Valuation Fees (post-contract & ad-hoc),15/02/2018,1500,L,80131800,Real estate management services
"Ministry of Housing, Communities and Local Government",Homes England,Land And Regeneration Mh,Programmes,BNP PARIBAS REAL ESTATE,IT72603-SERVICE-Conniscliffe Rise MS Instruction,23/02/2018,500,L,80131800,Real estate management services
"Ministry of Housing, Communities and Local Government",Homes England,Land And Regeneration Mh,Programmes,BNP PARIBAS REAL ESTATE,IT73769-SERVICE-Project Monitoring Surveyor Services - Former,26/02/2018,500,L,80131800,Real estate management services
"Ministry of Housing, Communities and Local Government",Homes England,Affordable National,Programmes,THE BOND COMPANY,DAP4006-SERVICE-Gallery Room Hire - 08/02/18.  17 Delegates a,08/02/2018,425,S,90111600,Meeting facilities
"Ministry of Housing, Communities and Local Government",Homes England,Estate Management Yorks,North West,G BURLEY & SONS LTD,DAP2983-SERVICE-Northampton (General) - LC156 Contract Extens,14/02/2018,2056.29,S,72101500,Building maintenance and repair services
"Ministry of Housing, Communities and Local Government",Homes England,Estate Management Yorks,North West,G BURLEY & SONS LTD,DAP2761-SERVICE-Maintenance of 10 sites in Peterborough durin,16/02/2018,434.52,S,72101500,Building maintenance and repair services
"Ministry of Housing, Communities and Local Government",Homes England,Estate Management Yorks,North West,G BURLEY & SONS LTD,DAP3105-SERVICE-Interim Maintenance Decemeber 2017- January 2,16/02/2018,717.12,S,72101500,Building maintenance and repair services
"Ministry of Housing, Communities and Local Government",Homes England,Estate Management Yorks,North West,G BURLEY & SONS LTD,DAP3858-SERVICE-Cuckoos Hollow - make safe 2 no. trees.  Remo,22/02/2018,490.65,S,72101500,Building maintenance and repair services
"Ministry of Housing, Communities and Local Government",Homes England,Estate Management Yorks,North West,G BURLEY & SONS LTD,DAP3858-SERVICE-Burystead - to remove the large stem from the,22/02/2018,507.5,S,72101500,Building maintenance and repair services
"Ministry of Housing, Communities and Local Government",Homes England,Estate Management Yorks,North West,G BURLEY & SONS LTD,DAP3858-SERVICE-Welland Road - 3 no. fallen trees to take dow,22/02/2018,522.07,S,72101500,Building maintenance and repair services
"Ministry of Housing, Communities and Local Government",Homes England,Estate Management Yorks,North West,BERRYS,IT74639-SERVICE-Details as per attached letter dated 10 Novem,12/02/2018,9100,S,80131800,Real estate management services
"Ministry of Housing, Communities and Local Government",Homes England,Estate Management Yorks,North West,BERRYS,IT72794-SERVICE-Telford General - Additional Work,13/02/2018,1191.1,S,80131800,Real estate management services
"Ministry of Housing, Communities and Local Government",Homes England,Economic Assets Ne-Y Prog,North East And Yorkshire,BERRYS,"DAP4139-SERVICE-17 Wrest Park, Silsoe - Decorating works",23/02/2018,1800,S,80131800,Real estate management services
"Ministry of Housing, Communities and Local Government",Homes England,Economic Assets Ne-Y Prog,North East And Yorkshire,BLINK TELECOM,DAP3417-SERVICE-Lodge Hill - Call off order for Broadband,16/02/2018,293.12,M,81161700,Telecommunication Services�
"Ministry of Housing, Communities and Local Government",Homes England,It - Rda Transition,Finance & Corporate Services,CARETOWER LTD,DAP3734-SERVICE-100 x Active ID - Mini tokens with clock,07/02/2018,1730,L,81112300,Computer hardware maintenance and support
"Ministry of Housing, Communities and Local Government",Homes England,Economic Assets Ne-Y Prog,North East And Yorkshire,CAMPBELL REITH,IT74020-SERVICE-Demolition and Outline PlanningConsett Magist,05/02/2018,462,S,77101500,Environmental auditing
"Ministry of Housing, Communities and Local Government",Homes England,Economic Assets Ne-Y Prog,North East And Yorkshire,CAMPBELL REITH,IT74020-SERVICE-Demolition and Outline PlanningConsett Magist,05/02/2018,5532.5,S,77101500,Environmental auditing
"Ministry of Housing, Communities and Local Government",Homes England,Economic Assets Nw Prog,North West,CAMPBELL REITH,IT73927-SERVICE-Baxi Demolition Consultants,05/02/2018,3500,S,77101500,Environmental auditing
"Ministry of Housing, Communities and Local Government",Homes England,Spatial Intelligence Telford,Programmes,CAMPBELL REITH,IT74496-SERVICE-AC005-02/Wycombe District Council/Bellfield,12/02/2018,14500,S,77101500,Environmental auditing
"Ministry of Housing, Communities and Local Government",Homes England,Spatial Intelligence Telford,Programmes,CAMPBELL REITH,IT74500-SERVICE-AC085-02/Welwyn Garden City/Link Drive,12/02/2018,2850,S,77101500,Environmental auditing
"Ministry of Housing, Communities and Local Government",Homes England,Spatial Intelligence Telford,Programmes,CAMPBELL REITH,IT74611-SERVICE-AC Local Authority Technical � AC090-04 - For,12/02/2018,13500,S,77101500,Environmental auditing
"Ministry of Housing, Communities and Local Government",Homes England,Spatial Intelligence Telford,Programmes,CAMPBELL REITH,IT74612-SERVICE-Following your submission of a Call for Furth,12/02/2018,13500,S,77101500,Environmental auditing
"Ministry of Housing, Communities and Local Government",Homes England,Spatial Intelligence Telford,Programmes,CAMPBELL REITH,IT74616-SERVICE-AC Local Authority Technical � AC090-07 - Bar,12/02/2018,13500,S,77101500,Environmental auditing
"Ministry of Housing, Communities and Local Government",Homes England,Spatial Intelligence Telford,Programmes,CAMPBELL REITH,IT74638-SERVICE-AC Local Authority Technical � AC090-05 - Lan,12/02/2018,1121,S,77101500,Environmental auditing
"Ministry of Housing, Communities and Local Government",Homes England,Spatial Intelligence Telford,Programmes,CAMPBELL REITH,IT74692-SERVICE-AC005-04/Wycombe DC/Kingsmead,12/02/2018,13500,S,77101500,Environmental auditing
"Ministry of Housing, Communities and Local Government",Homes England,Spatial Intelligence Telford,Programmes,CAMPBELL REITH,IT74647-SERVICE-AC Local Authority Technical � AC020 - Westfi,14/02/2018,13500,S,77101500,Environmental auditing
"Ministry of Housing, Communities and Local Government",Homes England,Spatial Intelligence Telford,Programmes,CAMPBELL REITH,IT74762-SERVICE-AC Local Authority Technical � AC020-01 - For,14/02/2018,13500,S,77101500,Environmental auditing
"Ministry of Housing, Communities and Local Government",Homes England,Spatial Intelligence Telford,Programmes,CAMPBELL REITH,IT74499-SERVICE-AC063-06/Three Rivers/Northwick Road/Bridling,15/02/2018,10088,S,77101500,Environmental auditing
"Ministry of Housing, Communities and Local Government",Homes England,Spatial Intelligence Telford,Programmes,CAMPBELL REITH,IT74499-SERVICE-AC063-06/Three Rivers/Northwick Road/Bridling,15/02/2018,10088,S,77101500,Environmental auditing
"Ministry of Housing, Communities and Local Government",Homes England,Economic Assets S&Sw Prog,South West,CAMPBELL REITH,IT73985-SERVICE-Planning application works at site,15/02/2018,894,S,77101500,Environmental auditing
"Ministry of Housing, Communities and Local Government",Homes England,Economic Assets Ne-Y Prog,North East And Yorkshire,CAMPBELL REITH,IT73846-SERVICE-Wealstun,15/02/2018,10447.18,S,77101500,Environmental auditing
"Ministry of Housing, Communities and Local Government",Homes England,East And South East,East And South East,CAMPBELL REITH,IT74926-SERVICE-Q&R Mill Site Consultancy Commission,16/02/2018,90234.55,S,77101500,Environmental auditing
"Ministry of Housing, Communities and Local Government",Homes England,East And South East,East And South East,CAMPBELL REITH,IT72201-SERVICE-Site Supervision and Contract Administration,16/02/2018,3661.11,S,77101500,Environmental auditing
"Ministry of Housing, Communities and Local Government",Homes England,East And South East,East And South East,CAMPBELL REITH,IT74071-SERVICE-Northstowe Phase 2 Design Code (Pt 2),26/02/2018,12470,S,77101500,Environmental auditing
"Ministry of Housing, Communities and Local Government",Homes England,Economic Assets Ne-Y Prog,North East And Yorkshire,CAMPBELL REITH,IT74035-SERVICE-Former Electrolux site,27/02/2018,83737.35,S,77101500,Environmental auditing
"Ministry of Housing, Communities and Local Government",Homes England,Spatial Intelligence Telford,Programmes,CAMPBELL REITH,IT74764-SERVICE-Lead Consultant,27/02/2018,12348.47,S,77101500,Environmental auditing
"Ministry of Housing, Communities and Local Government",Homes England,Spatial Intelligence Telford,Programmes,CAMPBELL REITH,IT74764-SERVICE-Lead Consultant,27/02/2018,2980.57,S,77101500,Environmental auditing
"Ministry of Housing, Communities and Local Government",Homes England,Spatial Intelligence Telford,Programmes,CAMPBELL REITH,IT74764-SERVICE-Lead Consultant,27/02/2018,24696.94,S,77101500,Environmental auditing
"Ministry of Housing, Communities and Local Government",Homes England,Spatial Intelligence Telford,Programmes,CAMPBELL REITH,IT74764-SERVICE-Lead Consultant,27/02/2018,5961.15,S,77101500,Environmental auditing
"Ministry of Housing, Communities and Local Government",Homes England,Economic Assets S&Sw Prog,South West,CAMPBELL REITH,IT74643-SERVICE-Demolition Admin and Project Management,28/02/2018,4958.63,S,77101500,Environmental auditing
"Ministry of Housing, Communities and Local Government",Homes England,Economic Assets Nw Prog,North West,CARTER JONAS,IT74750-SERVICE-Cost Analysis in respect of Tenders for Pewte,01/02/2018,1995,L,80131800,Real estate management services
"Ministry of Housing, Communities and Local Government",Homes England,Economic Assets Ne-Y Prog,North East And Yorkshire,CARTER JONAS,IT73756-SERVICE-Lead Consultant for bringing forward the Chal,01/02/2018,55942.85,L,80131800,Real estate management services
"Ministry of Housing, Communities and Local Government",Homes England,Economic Assets Ne-Y Prog,North East And Yorkshire,CARTER JONAS,IT73756-SERVICE-Lead Consultant for bringing forward the Chal,02/02/2018,3000,L,80131800,Real estate management services
"Ministry of Housing, Communities and Local Government",Homes England,Land And Regeneration Mh,Programmes,CARTER JONAS,IT74821-SERVICE-Fallowfields,02/02/2018,3750,L,80131800,Real estate management services
"Ministry of Housing, Communities and Local Government",Homes England,Economic Assets Ne-Y Prog,North East And Yorkshire,CARTER JONAS,IT73756-SERVICE-Lead Consultant for bringing forward the Chal,02/02/2018,3000,L,80131800,Real estate management services
"Ministry of Housing, Communities and Local Government",Homes England,Budget 2013 - Midlands Wm,Midlands,CARTER JONAS,IT74624-SERVICE-Birmingham - Sutton - Brassington Avenue,05/02/2018,798.75,L,80131800,Real estate management services
"Ministry of Housing, Communities and Local Government",Homes England,Land And Regeneration Mh,Programmes,CARTER JONAS,IT73672-SERVICE-MS Services for Beckham Place,15/02/2018,1400,L,80131800,Real estate management services
"Ministry of Housing, Communities and Local Government",Homes England,Economic Assets Nw Prog,North West,CARTER JONAS,IT75178-SERVICE-Omega Zones 7E and 7F cost review ,19/02/2018,3300,L,80131800,Real estate management services
"Ministry of Housing, Communities and Local Government",Homes England,Land And Regeneration Mh,Programmes,CARTER JONAS,IT74788-SERVICE-Overview report ,28/02/2018,2000,L,80131800,Real estate management services
"Ministry of Housing, Communities and Local Government",Homes England,Spatial Intelligence Telford,Programmes,CARLISLE CITY COUNCIL,Garden Village Funding,22/02/2018,275000,G,N/A,Grant
"Ministry of Housing, Communities and Local Government",Homes England,Spatial Intelligence Telford,Programmes,CORONA ENERGY,"DAP3994-SERVICE-Supply of Gas at Halifax Magistrates Court, P",05/02/2018,369.9,L,83101600,Oil and gas utilities
"Ministry of Housing, Communities and Local Government",Homes England,Spatial Intelligence Telford,Programmes,CORONA ENERGY,"DAP3994-SERVICE-Supply of Gas at Halifax Magistrates Court, P",05/02/2018,1189.7,L,83101600,Oil and gas utilities
"Ministry of Housing, Communities and Local Government",Homes England,Spatial Intelligence Telford,Programmes,CORONA ENERGY,"DAP3994-SERVICE-Supply of Gas at Halifax Magistrates Court, P",05/02/2018,2022.97,L,83101600,Oil and gas utilities
"Ministry of Housing, Communities and Local Government",Homes England,Comms Transition Budget,Finance & Corporate Services,CORONA ENERGY,DAP1889-SERVICE-BIS ELEMENT,14/02/2018,407.33,L,83101600,Oil and gas utilities
"Ministry of Housing, Communities and Local Government",Homes England,Comms Transition Budget,Finance & Corporate Services,CORONA ENERGY,DAP1889-SERVICE-GAS SUPPLIED TO HCA GATESHEAD,14/02/2018,882.92,L,83101600,Oil and gas utilities
"Ministry of Housing, Communities and Local Government",Homes England,Comms Transition Budget,Finance & Corporate Services,CORONA ENERGY,DOF0370-SERVICE-tenant,14/02/2018,333.26,L,83101600,Oil and gas utilities
"Ministry of Housing, Communities and Local Government",Homes England,Comms Transition Budget,Finance & Corporate Services,CORONA ENERGY,DOF0370-SERVICE-Gas for Arpley Hse meter 8853893504,14/02/2018,808.44,L,83101600,Oil and gas utilities
"Ministry of Housing, Communities and Local Government",Homes England,Economic Assets Ne-Y Prog,North East And Yorkshire,CORONA ENERGY,DAP2348-SERVICE-Gas supply to Wakefield Magistrates Court. Cu,14/02/2018,1029.98,L,83101600,Oil and gas utilities
"Ministry of Housing, Communities and Local Government",Homes England,Economic Assets Ne-Y Prog,North East And Yorkshire,CORONA ENERGY,DAP2334-SERVICE-VAT @ 20%,14/02/2018,588.4,L,83101600,Oil and gas utilities
"Ministry of Housing, Communities and Local Government",Homes England,Public Land and Regeneration,Programmes,CORONA ENERGY,DAM3460-SERVICE-ST JAMES HOSPITAL     Gas bills.,16/02/2018,988.07,L,83101600,Oil and gas utilities
"Ministry of Housing, Communities and Local Government",Homes England,Area Dir Mids Worcs-Shrop-Here,Midlands,CORONA ENERGY,DWM0687-SERVICE-Gas charges @ 20%,16/02/2018,280.99,L,83101600,Oil and gas utilities
"Ministry of Housing, Communities and Local Government",Homes England,Spatial Intelligence Telford,Programmes,CORONA ENERGY,"DAP3994-SERVICE-Supply of Gas at Halifax Magistrates Court, P",16/02/2018,2017.13,L,83101600,Oil and gas utilities
"Ministry of Housing, Communities and Local Government",Homes England,Economic Assets Ne-Y Prog,North East And Yorkshire,CORONA ENERGY,DAM1966-SERVICE-GAS BILL FOR QUEENS MEADOW 20% VAT,,4507.9,,83101600,Oil and gas utilities
"Ministry of Housing, Communities and Local Government",Homes England,East And South East,East And South East,CORONA ENERGY,DAP3072-SERVICE-Brentwood Blood Centre - Gas supply call off,,648,,83101600,Oil and gas utilities
"Ministry of Housing, Communities and Local Government",Homes England,Economic Assets Ne-Y Prog,North East And Yorkshire,CONCEPT DOMESTIC FLOORS LTD,"DAP4307-SERVICE-New flooring at 17 Wrest Park, Silsoe - works",27/02/2018,934.03,S,30161700,Flooring
"Ministry of Housing, Communities and Local Government",Homes England,Economic Assets Ne-Y Prog,North East And Yorkshire,CABLE TRACING SERVICES LTD,DAP3400-SERVICE-Lodge Hill - utility tracing services,26/02/2018,4950,S,72101500,Building maintenance and repair services
"Ministry of Housing, Communities and Local Government",Homes England,Economic Assets Hub Transition,Economic Assets Hub,CHIPRO DEVELOPMENTS,STF - Chipro Developments - L D - Feb 18,09/02/2018,269248,,N/A,Loans
"Ministry of Housing, Communities and Local Government",Homes England,Economic Assets Hub Transition,Economic Assets Hub,CZERO BISHOPS CASTLE LIMITED,THBF STF-Lavender Bank-Feb18,14/02/2018,54708,,N/A,Loans
"Ministry of Housing, Communities and Local Government",Homes England,Area Dir Mids Worcs-Shrop-Here,Midlands,COLLIERS INTERNATIONAL PROPERTY CONSULTANTS,DAP4145-SERVICE-Warwick Bar - Property Management Fee for the,19/02/2018,5135,S,80131800,Real estate management services
"Ministry of Housing, Communities and Local Government",Homes England,East And South East,East And South East,3CPD LTD,"DAP4013-SERVICE-CPD Training Z Moghal, L Bell, S Dougall, G H",08/02/2018,412.5,S,86101800,In service training and manpower development
"Ministry of Housing, Communities and Local Government",Homes England,Economic Assets S&Sw Prog,South West,CHARTERED INSTITUTE OF HOUSING,DAP4084-SERVICE-Lisa Clayton - CIH Blended Learning Level 5 T,12/02/2018,2778,L,94101600,Professional associations
"Ministry of Housing, Communities and Local Government",Homes England,Economic Assets Ne-Y Prog,North East And Yorkshire,CHARTERED INSTITUTE OF HOUSING,DAP4260-SERVICE-CIH Development and Regeneration Course for H,26/02/2018,999,L,94101600,Professional associations
"Ministry of Housing, Communities and Local Government",Homes England,Economic Assets Hub Transition,Economic Assets Hub,CLUBLIGHT DEVELOPMENTS LTD.,STF - Clublight Developments - LD-Feb 18,12/02/2018,303133.23,,N/A,Loans
"Ministry of Housing, Communities and Local Government",Homes England,HCA Investment Credit Risk Man,Programmes,CAPITA BUSINESS SERVICES LTD,DAP3969-SERVICE-P3O Foundation & Practionier Training Course,07/02/2018,1086.5,L,86101800,In service training and manpower development
"Ministry of Housing, Communities and Local Government",Homes England,Budget 2013 - Midlands Wm,Midlands,CITY DEMOLITION CONTRACTORS (BIRMINGHAM) LTD,"DAP4151-SERVICE-Asbestos removal and demolition at York Road,",26/02/2018,204110.35,S,72141500,Land preparation services
"Ministry of Housing, Communities and Local Government",Homes England,Economic Assets S&Sw Prog,South West,C.M.A. (NEMESIS) LTD,DAP4095-SERVICE-Daedalus Waterfront - Annual Pest control for,12/02/2018,285,S,72102100,Pest control
"Ministry of Housing, Communities and Local Government",Homes England,Economic Assets S&Sw Prog,South West,C.M.A. (NEMESIS) LTD,DAP0649-SERVICE-Plot 6 Temple Quarter - rodent control 2017-2,16/02/2018,294,S,72102100,Pest control
"Ministry of Housing, Communities and Local Government",Homes England,Economic Assets S&Sw Prog,South West,C.M.A. (NEMESIS) LTD,DAP4097-SERVICE-Ceramtec Colyton - Installation of hawk kite,19/02/2018,2560,S,72102100,Pest control
"Ministry of Housing, Communities and Local Government",Homes England,Economic Assets S&Sw Prog,South West,C.M.A. (NEMESIS) LTD,DAP4095-SERVICE-Daedalus Waterfront - Annual Pest control for,26/02/2018,285,S,72102100,Pest control
"Ministry of Housing, Communities and Local Government",Homes England,Programme Management Mh,Finance & Corporate Services,CONCUR HOLDINGS (NETHERLANDS) B.V,DAP3199-SERVICE-Quarterly fee Nov - Jan 18,12/02/2018,14140.59,L,43231500,Business function specific software
"Ministry of Housing, Communities and Local Government",Homes England,Economic Assets S&Sw Prog,South West,CLAPHAMS LANDSCAPE SERVICES LTD,DAP3571-SERVICE-Blackberry Hill Hospital Bristol - Landscapni,01/02/2018,1495,S,72101500,Building maintenance and repair services
"Ministry of Housing, Communities and Local Government",Homes England,Economic Assets S&Sw Prog,South West,CLAPHAMS LANDSCAPE SERVICES LTD,"DAP1088-SERVICE-Gateway North Swindon, landscape maintenance",01/02/2018,875,S,72101500,Building maintenance and repair services
"Ministry of Housing, Communities and Local Government",Homes England,Economic Assets S&Sw Prog,South West,CLAPHAMS LANDSCAPE SERVICES LTD,DAP1357-SERVICE-Winterstoke Road Weston Super Mare - June 201,01/02/2018,390,S,72101500,Building maintenance and repair services
"Ministry of Housing, Communities and Local Government",Homes England,Economic Assets S&Sw Prog,South West,CLAPHAMS LANDSCAPE SERVICES LTD,DAP3578-SERVICE-Ashton Gate Bristol - Landscaping Jan - March,01/02/2018,964,S,72101500,Building maintenance and repair services
"Ministry of Housing, Communities and Local Government",Homes England,Economic Assets S&Sw Prog,South West,CLAPHAMS LANDSCAPE SERVICES LTD,DAP3570-SERVICE-Central Ambulance Station Bristol - removal o,16/02/2018,1350,S,72101500,Building maintenance and repair services
"Ministry of Housing, Communities and Local Government",Homes England,Economic Assets Hub Transition,Economic Assets Hub,CLL (RUSKIN ROAD) LTD,STF - Bush Nurseries - Ln Drdn - Feb 18,22/02/2018,96869,,N/A,Loans
"Ministry of Housing, Communities and Local Government",Homes England,Economic Assets S&Sw Prog,South West,CONCEPT BUILDING SERVICES  (SOUTHERN) LTD,DAP0769-SERVICE-Weston Links WSM - Intrusive ground and site,01/02/2018,19314.33,M,72101500,Building maintenance and repair services
"Ministry of Housing, Communities and Local Government",Homes England,Economic Assets S&Sw Prog,South West,CONCEPT BUILDING SERVICES  (SOUTHERN) LTD,DAP4028-SERVICE-Drummond Park - Arranging for R&D survey and,15/02/2018,8372,M,72101500,Building maintenance and repair services
"Ministry of Housing, Communities and Local Government",Homes England,Economic Assets S&Sw Prog,South West,CONCEPT BUILDING SERVICES  (SOUTHERN) LTD,DAP4027-SERVICE-Daedalus Waterfront - Electrical reconciliati,15/02/2018,6180,M,72101500,Building maintenance and repair services
"Ministry of Housing, Communities and Local Government",Homes England,Economic Assets S&Sw Prog,South West,CONCEPT BUILDING SERVICES  (SOUTHERN) LTD,DAP4026-SERVICE-Colt International - Demolition preliminaries,15/02/2018,9683,M,72101500,Building maintenance and repair services
"Ministry of Housing, Communities and Local Government",Homes England,Economic Assets Ne-Y Prog,North East And Yorkshire,CONCEPT BUILDING SERVICES  (SOUTHERN) LTD,DAP4025-SERVICE-North Avon Magistrates Court - Demolition pre,15/02/2018,5467.1,M,72101500,Building maintenance and repair services
"Ministry of Housing, Communities and Local Government",Homes England,Economic Assets S&Sw Prog,South West,CONCEPT BUILDING SERVICES  (SOUTHERN) LTD,DAP4024-SERVICE-Ceramtec Colyton - Analysis of all chemicals,15/02/2018,1209.66,M,72101500,Building maintenance and repair services
"Ministry of Housing, Communities and Local Government",Homes England,Estate Management Yorks,North West,K D CHILDS STONEWORK DEVELOPMENTS,DAP3760-SERVICE-Corby Emergency Hoarding Works following coll,14/02/2018,3500,S,72101500,Building maintenance and repair services
"Ministry of Housing, Communities and Local Government",Homes England,Estate Management Yorks,North West,K D CHILDS STONEWORK DEVELOPMENTS,DAP3760-SERVICE-Materials,14/02/2018,5000,S,72101500,Building maintenance and repair services
"Ministry of Housing, Communities and Local Government",Homes England,East And South East,East And South East,C-ELECT ASSOCIATES LIMITED,DAP3641-SERVICE-Replacement of hot water heaters to toilet an,01/02/2018,400,S,72101500,Building maintenance and repair services
"Ministry of Housing, Communities and Local Government",Homes England,East And South East,East And South East,C-ELECT ASSOCIATES LIMITED,DAP3641-SERVICE-Labour for electrician and plumber,01/02/2018,800,S,72101500,Building maintenance and repair services
"Ministry of Housing, Communities and Local Government",Homes England,Economic Assets Ne-Y Prog,North East And Yorkshire,C-ELECT ASSOCIATES LIMITED,"DAP3938-SERVICE-12480 -  Houghton Grange, carry out frost pre",01/02/2018,634,S,72101500,Building maintenance and repair services
"Ministry of Housing, Communities and Local Government",Homes England,Economic Assets Ne-Y Prog,North East And Yorkshire,C-ELECT ASSOCIATES LIMITED,DAP3938-SERVICE-12530 - Call out to Houghton Grange - repairs,01/02/2018,282.75,S,72101500,Building maintenance and repair services
"Ministry of Housing, Communities and Local Government",Homes England,Economic Assets Ne-Y Prog,North East And Yorkshire,C-ELECT ASSOCIATES LIMITED,DAP3632-SERVICE-Flat roof repair using gyromax paint and poss,01/02/2018,1455,S,72101500,Building maintenance and repair services
"Ministry of Housing, Communities and Local Government",Homes England,South East,East And South East,C-ELECT ASSOCIATES LIMITED,DAM3099-SERVICE-DOVER CONNAUGHT BARRACKS     Call off order,01/02/2018,280,S,72101500,Building maintenance and repair services
"Ministry of Housing, Communities and Local Government",Homes England,Economic Assets Ne-Y Prog,North East And Yorkshire,C-ELECT ASSOCIATES LIMITED,DAP3988-SERVICE-New Boiler,12/02/2018,1840,S,72101500,Building maintenance and repair services
"Ministry of Housing, Communities and Local Government",Homes England,South East,East And South East,C-ELECT ASSOCIATES LIMITED,DAM3099-SERVICE-DOVER CONNAUGHT BARRACKS     Call off order,13/02/2018,490,S,72101500,Building maintenance and repair services
"Ministry of Housing, Communities and Local Government",Homes England,Spatial Intelligence Telford,Programmes,CORNWALL COUNTY COUNCIL,Garden Village Funding,22/02/2018,275000,G,N/A,Grant
"Ministry of Housing, Communities and Local Government",Homes England,Spatial Intelligence Telford,Programmes,CHIPSAWAY CLIVE BARIANA,DAP3974-SERVICE-Bodywork repair to NK63TEO,05/02/2018,320,S,78180100,Vehicle maintenance and repairs services
"Ministry of Housing, Communities and Local Government",Homes England,Economic Assets Ne-Y Prog,North East And Yorkshire,CHESTER & NEWMAN PLUMBING & HEATING SERVICES,"DAP4308-SERVICE-Works to bathroom of number 9 Wrest Park, fol",27/02/2018,1287,S,72101500,Building maintenance and repair services
"Ministry of Housing, Communities and Local Government",Homes England,Area Dir Mids Worcs-Shrop-Here,Midlands,CONTINENTAL LANDSCAPES - GREENHAND,DWM0823-SERVICE-Year 3 extension of NL430-2015-2018,06/02/2018,550.77,L,72101500,Building maintenance and repair services
"Ministry of Housing, Communities and Local Government",Homes England,Economic Assets Nw Prog,North West,CONTINENTAL LANDSCAPES - GREENHAND,DAP3247-SERVICE-Hooton - Year 2 of the EAP.NW.012 contract,08/02/2018,360.08,L,72101500,Building maintenance and repair services
"Ministry of Housing, Communities and Local Government",Homes England,Economic Assets Nw Prog,North West,CONTINENTAL LANDSCAPES - GREENHAND,DAP3247-SERVICE-Innovation Park - Year 2 of the EAP.NW.012 co,08/02/2018,360.96,L,72101500,Building maintenance and repair services
"Ministry of Housing, Communities and Local Government",Homes England,Economic Assets Nw Prog,North West,CONTINENTAL LANDSCAPES - GREENHAND,DAP3247-SERVICE-Croft - Year 2 of the EAP.NW.012 contract,08/02/2018,390.96,L,72101500,Building maintenance and repair services
"Ministry of Housing, Communities and Local Government",Homes England,Economic Assets Nw Prog,North West,CONTINENTAL LANDSCAPES - GREENHAND,DAP3247-SERVICE-Boulevard - Year 2 of the EAP.NW.012 contract,08/02/2018,685.34,L,72101500,Building maintenance and repair services
"Ministry of Housing, Communities and Local Government",Homes England,Estate Management Yorks,North West,CONTINENTAL LANDSCAPES - GREENHAND,DAM3279-SERVICE-WARRINGTON     Warrington landscape maintenan,08/02/2018,786.55,L,72101500,Building maintenance and repair services
"Ministry of Housing, Communities and Local Government",Homes England,Economic Assets Nw Prog,North West,CONTINENTAL LANDSCAPES - GREENHAND,DAP3247-SERVICE-Hooton - Year 2 of the EAP.NW.012 contract,08/02/2018,360.08,L,72101500,Building maintenance and repair services
"Ministry of Housing, Communities and Local Government",Homes England,Economic Assets Nw Prog,North West,CONTINENTAL LANDSCAPES - GREENHAND,DAP3247-SERVICE-Innovation Park - Year 2 of the EAP.NW.012 co,08/02/2018,360.96,L,72101500,Building maintenance and repair services
"Ministry of Housing, Communities and Local Government",Homes England,Economic Assets Nw Prog,North West,CONTINENTAL LANDSCAPES - GREENHAND,DAP3247-SERVICE-Croft - Year 2 of the EAP.NW.012 contract,08/02/2018,390.96,L,72101500,Building maintenance and repair services
"Ministry of Housing, Communities and Local Government",Homes England,Economic Assets Nw Prog,North West,CONTINENTAL LANDSCAPES - GREENHAND,DAP3247-SERVICE-Boulevard - Year 2 of the EAP.NW.012 contract,08/02/2018,685.34,L,72101500,Building maintenance and repair services
"Ministry of Housing, Communities and Local Government",Homes England,Estate Management Yorks,North West,CONTINENTAL LANDSCAPES - GREENHAND,DAM3279-SERVICE-WARRINGTON     Warrington landscape maintenan,08/02/2018,786.55,L,72101500,Building maintenance and repair services
"Ministry of Housing, Communities and Local Government",Homes England,Economic Assets Ne-Y Prog,North East And Yorkshire,CB RICHARD ELLIS,IT75166-SERVICE-North Avon Mag Court rates mitigation strateg,06/02/2018,5819,L,80131800,Real estate management services
"Ministry of Housing, Communities and Local Government",Homes England,Land And Regeneration Mh,Programmes,CB RICHARD ELLIS,IT75155-SERVICE-Sandford ,06/02/2018,8000,L,80131800,Real estate management services
"Ministry of Housing, Communities and Local Government",Homes England,Land And Regeneration Mh,Programmes,CB RICHARD ELLIS,IT72104-SERVICE-Fairbridge Way Monitoring Surveyor,23/02/2018,1677.04,L,80131800,Real estate management services
"Ministry of Housing, Communities and Local Government",Homes England,Economic Assets S&Sw Prog,South West,CB RICHARD ELLIS,IT75396-SERVICE-RATING APPEAL ADVICE 87 Station Road Didcot,23/02/2018,3504,L,80131800,Real estate management services
"Ministry of Housing, Communities and Local Government",Homes England,Budget 2013 - Midlands Wm,Midlands,CB RICHARD ELLIS,IT74897-SERVICE-Plot 4 Lyons Court,28/02/2018,9000,L,80131800,Real estate management services
"Ministry of Housing, Communities and Local Government",Homes England,Economic Assets Nw Prog,North West,CBE BUILDING & MAINTENANCE LTD,DAP4119-SERVICE-To undertake emergency lamp repairs as instru,26/02/2018,2175,S,72102900,Facility maintenance and repair services
"Ministry of Housing, Communities and Local Government",Homes England,Economic Assets Hub Transition,Economic Assets Hub,CANNOCK MILL COHOUSING COLCHESTER LTD,STF - Cannock Mill - Ln Drdn - Feb 18,16/02/2018,328024.38,,N/A,Loans
"Ministry of Housing, Communities and Local Government",Homes England,Economic Assets Nw Prog,North West,CREST ENVIRONMENTAL LTD,DAP4088-SERVICE-Removal of asbestos material from defined are,21/02/2018,525,S,72141500,Land preparation services
"Ministry of Housing, Communities and Local Government",Homes England,Economic Assets Hub Transition,Economic Assets Hub,CHARTER HOUSE PROPERTY LIMITED,THBF STF-The Panorama-Feb18,28/02/2018,228400.06,,N/A,Loans
"Ministry of Housing, Communities and Local Government",Homes England,East And Se Cambs Herts And Bu,East And South East,CLEANKILL,DAM3371-SERVICE-OAKINGTON NORTHSTOWE     To carry out Pest Co,15/02/2018,299,S,72102100,Pest control
"Ministry of Housing, Communities and Local Government",Homes England,Economic Assets S&Sw Prog,South West,CHERWELL DISTRICT COUNCIL,DAP3947-SERVICE-Oxford Street - Vacant NNDR and CT,01/02/2018,10385.94,G,80131500,Lease and rental of property or building
"Ministry of Housing, Communities and Local Government",Homes England,Economic Assets Ne-Y Prog,North East And Yorkshire,CHANNEL ENGINEERING LTD,DAP4108-SERVICE-Lodge Hill - call off order,21/02/2018,4000,S,72101500,Building maintenance and repair services
"Ministry of Housing, Communities and Local Government",Homes England,Economic Assets S&Sw Prog,South West,CEDARDALE ARBORICULTURAL SPECIALISTS,DAP2207-SERVICE-Park Prewett:,01/02/2018,790,S,72101500,Building maintenance and repair services
"Ministry of Housing, Communities and Local Government",Homes England,East And South East,East And South East,CEDARDALE ARBORICULTURAL SPECIALISTS,DAP2203-SERVICE-Crown raise branches on Lime trees on road le,01/02/2018,420,S,72101500,Building maintenance and repair services
"Ministry of Housing, Communities and Local Government",Homes England,East And South East,East And South East,CEDARDALE ARBORICULTURAL SPECIALISTS,DAP2203-SERVICE-Crown raise to 6m on 23 Lime trees along Gray,01/02/2018,575,S,72101500,Building maintenance and repair services
"Ministry of Housing, Communities and Local Government",Homes England,East And South East,East And South East,CEDARDALE ARBORICULTURAL SPECIALISTS,DAP2203-SERVICE-Graylingwell: Removal of basal epicormic grow,01/02/2018,805,S,72101500,Building maintenance and repair services
"Ministry of Housing, Communities and Local Government",Homes England,East And South East,East And South East,CEDARDALE ARBORICULTURAL SPECIALISTS,DAP2203-SERVICE-Remove dead wood in Lime tree group along Gra,01/02/2018,805,S,72101500,Building maintenance and repair services
"Ministry of Housing, Communities and Local Government",Homes England,East And South East,East And South East,CEDARDALE ARBORICULTURAL SPECIALISTS,DAP2570-SERVICE-Crown raise and clear debris on footpath  lea,01/02/2018,360,S,72101500,Building maintenance and repair services
"Ministry of Housing, Communities and Local Government",Homes England,Estate Management Yorks,North West,CARTWRIGHT LANDSCAPES,"DAM3489-SERVICE-STOCKSBRIDGE ROAD, CORBY     Long grass 2 cut",09/02/2018,616.11,S,72101500,Building maintenance and repair services
"Ministry of Housing, Communities and Local Government",Homes England,Public Land and Regeneration,Programmes,CARTWRIGHT LANDSCAPES,DAP0448-SERVICE-Wrest Park - LM&C Works 2017-2018 as per Cont,09/02/2018,557.42,S,72101500,Building maintenance and repair services
"Ministry of Housing, Communities and Local Government",Homes England,Comms Transition Budget,Finance & Corporate Services,ENGIE FM LIMITED,DAP0338-SERVICE-Tenant proportion,01/02/2018,950.85,L,72102900,Facility maintenance and repair services
"Ministry of Housing, Communities and Local Government",Homes England,Comms Transition Budget,Finance & Corporate Services,ENGIE FM LIMITED,"DAP0338-SERVICE-Electrical, Mechanical and Public Health",01/02/2018,2306.61,L,72102900,Facility maintenance and repair services
"Ministry of Housing, Communities and Local Government",Homes England,Comms Transition Budget,Finance & Corporate Services,ENGIE FM LIMITED,DAP0340-SERVICE-BIS/SFA tenant proportion,01/02/2018,926.94,L,72102900,Facility maintenance and repair services
"Ministry of Housing, Communities and Local Government",Homes England,Comms Transition Budget,Finance & Corporate Services,ENGIE FM LIMITED,"DAP0340-SERVICE-Electrical, Mechanical and Public Health Plan",01/02/2018,2009.18,L,72102900,Facility maintenance and repair services
"Ministry of Housing, Communities and Local Government",Homes England,Comms Transition Budget,Finance & Corporate Services,ENGIE FM LIMITED,DAP0168-SERVICE-Supply & install of new heating boiler to,12/02/2018,2581.45,L,72102900,Facility maintenance and repair services
"Ministry of Housing, Communities and Local Government",Homes England,Comms Transition Budget,Finance & Corporate Services,ENGIE FM LIMITED,DAP1532-SERVICE-Annual car park barrier service within HCA Wa,21/02/2018,303.77,L,72102900,Facility maintenance and repair services
"Ministry of Housing, Communities and Local Government",Homes England,Spatial Intelligence Telford,Programmes,CR BUILDING SERVICES LIMITED,DAP3108-SERVICE-De-commission the system altogether. This wou,14/02/2018,1130,S,72101500,Building maintenance and repair services
"Ministry of Housing, Communities and Local Government",Homes England,Spatial Intelligence Telford,Programmes,CR BUILDING SERVICES LIMITED,DAP3108-SERVICE-To have the utilities disconnected/isolated a,14/02/2018,1186.25,S,72101500,Building maintenance and repair services
"Ministry of Housing, Communities and Local Government",Homes England,Economic Assets Ne-Y Prog,North East And Yorkshire,DERBYSHIRE COUNTY COUNCIL,A61 S38 AGREEMENT DCC LEGAL FEES,20/02/2018,1000,G,N/A,Grant
"Ministry of Housing, Communities and Local Government",Homes England,Economic Assets Ne-Y Prog,North East And Yorkshire,DERBYSHIRE COUNTY COUNCIL,A61 COMMUTED SUM AT THE AVENUE,20/02/2018,321545.08,G,N/A,Grant
"Ministry of Housing, Communities and Local Government",Homes England,It - Rda Transition,Finance & Corporate Services,OASIS UK NORTH LIMITED,DGC1157-SERVICE-Media transportaion services and secure stora,09/02/2018,1076.73,L,81111200,Data services
"Ministry of Housing, Communities and Local Government",Homes England,Land And Regeneration Mh,Programmes,DRIVERS JONAS DELOITTE,IT74707-SERVICE-HIF: Assessment Support,16/02/2018,119105.93,L,80131800,Real estate management services
"Ministry of Housing, Communities and Local Government",Homes England,Communications Allerton,Executive Office,GORKANA GROUP LTD,DBP0543-SERVICE-Gorkana press cuttings 2017/18,06/02/2018,876.05,L,82101500,Print advertising
"Ministry of Housing, Communities and Local Government",Homes England,Economic Assets Ne-Y Prog,North East And Yorkshire,CUSHMAN & WAKEFIELD DEBENHAM TIE LEUNG,IT74352-SERVICE-Brentwood Blood Centre Manging Agent,01/02/2018,6750,L,80131800,Real estate management services
"Ministry of Housing, Communities and Local Government",Homes England,Spatial Intelligence Telford,Programmes,CUSHMAN & WAKEFIELD DEBENHAM TIE LEUNG,IT74305-SERVICE-AC Local Authority DVA - Site Ref AC030 19 ,01/02/2018,2188,L,80131800,Real estate management services
"Ministry of Housing, Communities and Local Government",Homes England,Economic Assets Nw Prog,North West,CUSHMAN & WAKEFIELD DEBENHAM TIE LEUNG,IT74626-SERVICE-Agent fee for completion of drawdown for phas,01/02/2018,13103,L,80131800,Real estate management services
"Ministry of Housing, Communities and Local Government",Homes England,Economic Assets Nw Prog,North West,CUSHMAN & WAKEFIELD DEBENHAM TIE LEUNG,IT74789-SERVICE-Marketing and disposal of Ingersley Vale,06/02/2018,4950,L,80131800,Real estate management services
"Ministry of Housing, Communities and Local Government",Homes England,Economic Assets Hub Transition,Economic Assets Hub,CUSHMAN & WAKEFIELD DEBENHAM TIE LEUNG,TS00110-SERVICE-Initial Monitoring Surveyor Report,07/02/2018,1500,L,80131800,Real estate management services
"Ministry of Housing, Communities and Local Government",Homes England,Land And Regeneration Mh,Programmes,CUSHMAN & WAKEFIELD DEBENHAM TIE LEUNG,IT72660-SERVICE-Petersfield,07/02/2018,800,L,80131800,Real estate management services
"Ministry of Housing, Communities and Local Government",Homes England,Land And Regeneration Mh,Programmes,CUSHMAN & WAKEFIELD DEBENHAM TIE LEUNG,IT74356-SERVICE-14-16 Ship Hill,07/02/2018,650,L,80131800,Real estate management services
"Ministry of Housing, Communities and Local Government",Homes England,Land And Regeneration Mh,Programmes,CUSHMAN & WAKEFIELD DEBENHAM TIE LEUNG,IT73781-SERVICE-Monitoring Surveyor Appointment for THBF deve,07/02/2018,700,L,80131800,Real estate management services
"Ministry of Housing, Communities and Local Government",Homes England,Economic Assets Nw Prog,North West,CUSHMAN & WAKEFIELD DEBENHAM TIE LEUNG,IT74892-SERVICE-Marketing Land Off Ladybank Avenue,07/02/2018,4365,L,80131800,Real estate management services
"Ministry of Housing, Communities and Local Government",Homes England,Economic Assets Nw Prog,North West,CUSHMAN & WAKEFIELD DEBENHAM TIE LEUNG,IT74411-SERVICE-Red Book Valuation - Former Housing Action Tr,07/02/2018,4500,L,80131800,Real estate management services
"Ministry of Housing, Communities and Local Government",Homes England,Spatial Intelligence Telford,Programmes,CUSHMAN & WAKEFIELD DEBENHAM TIE LEUNG,IT74284-SERVICE-AC Local Authority DVA - Site Ref No AC061-03,07/02/2018,2188,L,80131800,Real estate management services
"Ministry of Housing, Communities and Local Government",Homes England,Land And Regeneration Mh,Programmes,CUSHMAN & WAKEFIELD DEBENHAM TIE LEUNG,IT72179-SERVICE-Project Monitoring Surveyor Services - The Or,08/02/2018,700,L,80131800,Real estate management services
"Ministry of Housing, Communities and Local Government",Homes England,Land And Regeneration Mh,Programmes,CUSHMAN & WAKEFIELD DEBENHAM TIE LEUNG,IT72306-SERVICE-MS Reporting Services for THBF,08/02/2018,800,L,80131800,Real estate management services
"Ministry of Housing, Communities and Local Government",Homes England,Economic Assets Ne-Y Prog,North East And Yorkshire,CUSHMAN & WAKEFIELD DEBENHAM TIE LEUNG,IT75018-SERVICE-Negotiation of covenant releases North Seaton,08/02/2018,1500,L,80131800,Real estate management services
"Ministry of Housing, Communities and Local Government",Homes England,Budget 2013 - Midlands Wm,Midlands,CUSHMAN & WAKEFIELD DEBENHAM TIE LEUNG,IT74403-SERVICE-Telecoms Mast Lease Negotiations - Fenny Comp,09/02/2018,2000,L,80131800,Real estate management services
"Ministry of Housing, Communities and Local Government",Homes England,Budget 2013 - Midlands Wm,Midlands,CUSHMAN & WAKEFIELD DEBENHAM TIE LEUNG,IT75157-SERVICE-Property Advice Fenny Compton Warwickshire,13/02/2018,14000,L,80131800,Real estate management services
"Ministry of Housing, Communities and Local Government",Homes England,Economic Assets Ne-Y Prog,North East And Yorkshire,CUSHMAN & WAKEFIELD DEBENHAM TIE LEUNG,IT75187-SERVICE-Bicester Magistrates Court Managing Agency,15/02/2018,4800,L,80131800,Real estate management services
"Ministry of Housing, Communities and Local Government",Homes England,Budget 2013 - Midlands Wm,Midlands,CUSHMAN & WAKEFIELD DEBENHAM TIE LEUNG,IT73597-SERVICE-Facilities Management at Washwood Heath,16/02/2018,3800,L,80131800,Real estate management services
"Ministry of Housing, Communities and Local Government",Homes England,Budget 2013 - Midlands Wm,Midlands,CUSHMAN & WAKEFIELD DEBENHAM TIE LEUNG,IT74735-SERVICE-Mile Bank Road- technical asessment ,20/02/2018,3500,L,80131800,Real estate management services
"Ministry of Housing, Communities and Local Government",Homes England,Area Dir Cumbria Lancs Skelmer,North West,CUSHMAN & WAKEFIELD DEBENHAM TIE LEUNG,IT72694-SERVICE-AC Preliminary Work,20/02/2018,1990,L,80131800,Real estate management services
"Ministry of Housing, Communities and Local Government",Homes England,Land And Regeneration Mh,Programmes,CUSHMAN & WAKEFIELD DEBENHAM TIE LEUNG,IT72179-SERVICE-Project Monitoring Surveyor Services - The Or,21/02/2018,700,L,80131800,Real estate management services
"Ministry of Housing, Communities and Local Government",Homes England,Spatial Intelligence Telford,Programmes,CUSHMAN & WAKEFIELD DEBENHAM TIE LEUNG,IT74999-SERVICE-AC128-01 Grange Park,27/02/2018,2000,L,80131800,Real estate management services
"Ministry of Housing, Communities and Local Government",Homes England,Spatial Intelligence Telford,Programmes,CUSHMAN & WAKEFIELD DEBENHAM TIE LEUNG,IT74998-SERVICE-AC107-13 Pennine Road,27/02/2018,2000,L,80131800,Real estate management services
"Ministry of Housing, Communities and Local Government",Homes England,Spatial Intelligence Telford,Programmes,CUSHMAN & WAKEFIELD DEBENHAM TIE LEUNG,IT74997-SERVICE-AC107-02 Cowtoot Lane,27/02/2018,2000,L,80131800,Real estate management services
"Ministry of Housing, Communities and Local Government",Homes England,East And South East,East And South East,CUSHMAN & WAKEFIELD DEBENHAM TIE LEUNG,IT71834-SERVICE-Interface Land,27/02/2018,7500,L,80131800,Real estate management services
"Ministry of Housing, Communities and Local Government",Homes England,Economic Assets Hub Transition,Economic Assets Hub,DEEBLE VENTURES TWO LIMITED,THBF STF-Smethwick-Feb18,23/02/2018,1045707,,N/A,Loans
"Ministry of Housing, Communities and Local Government",Homes England,Economic Assets Nw Prog,North West,DWF LLP,IS13095-SERVICE-Northern Balancing Pond at the Kingsway Busin,02/02/2018,1850,L,80121600,Business law services
"Ministry of Housing, Communities and Local Government",Homes England,Economic Assets Ne-Y Prog,North East And Yorkshire,DWF LLP,IS12810-SERVICE-Eldon Whins,05/02/2018,346.9,L,80121600,Business law services
"Ministry of Housing, Communities and Local Government",Homes England,Economic Assets Ne-Y Prog,North East And Yorkshire,DWF LLP,IS12810-SERVICE-Land known as Eldon Whins,05/02/2018,1000,L,80121600,Business law services
"Ministry of Housing, Communities and Local Government",Homes England,Budget 2013 - Midlands Wm,Midlands,DWF LLP,IS11419-SERVICE-Former Royal Hospital Site  - Disbursements,05/02/2018,756,L,80121600,Business law services
"Ministry of Housing, Communities and Local Government",Homes England,Budget 2013 - Midlands Wm,Midlands,DWF LLP,IS11419-SERVICE-Former Royal Hospital Site,05/02/2018,1455.25,L,80121600,Business law services
"Ministry of Housing, Communities and Local Government",Homes England,Ne-Y North East Washington,North East And Yorkshire,DWF LLP,IS12458-SERVICE-Former Evans Easy Space Incubation Units & Ev,07/02/2018,825,L,80121600,Business law services
"Ministry of Housing, Communities and Local Government",Homes England,Ne-Y North East Washington,North East And Yorkshire,DWF LLP,IS12458-SERVICE-Former Evans Easy Space Incubation Units & Ev,07/02/2018,981.6,L,80121600,Business law services
"Ministry of Housing, Communities and Local Government",Homes England,Economic Assets Ne-Y Prog,North East And Yorkshire,DWF LLP,IS10971-SERVICE-Plot 12,07/02/2018,340,L,80121600,Business law services
"Ministry of Housing, Communities and Local Government",Homes England,Ne-Y North East Washington,North East And Yorkshire,DWF LLP,IS10164-SERVICE-Building Agreement Eastern portion of the for,07/02/2018,643,L,80121600,Business law services
"Ministry of Housing, Communities and Local Government",Homes England,Economic Assets Ne-Y Prog,North East And Yorkshire,DWF LLP,IS13275-SERVICE-Brookvale Phase 1B - disposal through a build,07/02/2018,4000,L,80121600,Business law services
"Ministry of Housing, Communities and Local Government",Homes England,Ne-Yh Sheffield And Humb Ne-Y,North East And Yorkshire,DWF LLP,IS12645-SERVICE-Plot L,07/02/2018,1902,L,80121600,Business law services
"Ministry of Housing, Communities and Local Government",Homes England,Spatial Intelligence Telford,Programmes,DWF LLP,IS13281-SERVICE-Land at Hardingstone,07/02/2018,550,L,80121600,Business law services
"Ministry of Housing, Communities and Local Government",Homes England,Budget 2013 - Midlands Wm,Midlands,DWF LLP,IS12997-SERVICE-Junction Works,07/02/2018,3012.9,L,80121600,Business law services
"Ministry of Housing, Communities and Local Government",Homes England,Ne-Y North East Washington,North East And Yorkshire,DWF LLP,IS12708-SERVICE-Goole 36,07/02/2018,1047.5,L,80121600,Business law services
"Ministry of Housing, Communities and Local Government",Homes England,Economic Assets Ne-Y Prog,North East And Yorkshire,DWF LLP,IS13278-SERVICE-Carr Lodge Phase 2 -  disposal through a Buil,07/02/2018,10000,L,80121600,Business law services
"Ministry of Housing, Communities and Local Government",Homes England,Area Dir Mids Worcs-Shrop-Here,Midlands,DWF LLP,IS12559-SERVICE-Former Smallwood Health Centre Site,08/02/2018,2000,L,80121600,Business law services
"Ministry of Housing, Communities and Local Government",Homes England,Economic Assets Hub Transition,Economic Assets Hub,DWF LLP,"TS00062-SERVICE-27559 - Hockley Homes Ltd, Virginia Drive, Lo",08/02/2018,500,L,80121600,Business law services
"Ministry of Housing, Communities and Local Government",Homes England,Area Dir Mids Worcs-Shrop-Here,Midlands,DWF LLP,IS12559-SERVICE-Former Smallwood Health Centre Site,08/02/2018,5986,L,80121600,Business law services
"Ministry of Housing, Communities and Local Government",Homes England,Economic Assets S&Sw Prog,South West,DWF LLP,IS12794-SERVICE-Drummond Park,08/02/2018,10433.69,L,80121600,Business law services
"Ministry of Housing, Communities and Local Government",Homes England,Ne-Y North East Washington,North East And Yorkshire,DWF LLP,IS13194-SERVICE-Access Land,08/02/2018,450,L,80121600,Business law services
"Ministry of Housing, Communities and Local Government",Homes England,Economic Assets Ne-Y Prog,North East And Yorkshire,DWF LLP,IS12238-SERVICE-Building Agreement Disposal of a site at Sedg,08/02/2018,5767.5,L,80121600,Business law services
"Ministry of Housing, Communities and Local Government",Homes England,Economic Assets Ne-Y Prog,North East And Yorkshire,DWF LLP,IS13069-SERVICE-Castlegate Marine Club North Shore Stockton,08/02/2018,450,L,80121600,Business law services
"Ministry of Housing, Communities and Local Government",Homes England,Economic Assets Nw Prog,North West,DWF LLP,IS13214-SERVICE-Substation Lease relating to Plot T2 (JD Spor,08/02/2018,850,L,80121600,Business law services
"Ministry of Housing, Communities and Local Government",Homes England,Economic Assets Ne-Y Prog,North East And Yorkshire,DWF LLP,IS13293-SERVICE-ERDF advice required relating to Treasury app,12/02/2018,4947,L,80121600,Business law services
"Ministry of Housing, Communities and Local Government",Homes England,Economic Assets Nw Prog,North West,DWF LLP,IS13097-SERVICE-Bickershaw Colliery (South) PCS 18698,14/02/2018,800.88,L,80121600,Business law services
"Ministry of Housing, Communities and Local Government",Homes England,Economic Assets Hub Transition,Economic Assets Hub,DWF LLP,"TS00092-SERVICE-27559 - Hockley Homes Ltd, Virginia Drive, Lo",16/02/2018,1500,L,80121600,Business law services
"Ministry of Housing, Communities and Local Government",Homes England,Public Land and Regeneration,Programmes,DWF LLP,IS11787-SERVICE-Seacroft Hospital Land,19/02/2018,3204.9,L,80121600,Business law services
"Ministry of Housing, Communities and Local Government",Homes England,Economic Assets Ne-Y Prog,North East And Yorkshire,DWF LLP,IS11557-SERVICE-Prudhoe Hospital,19/02/2018,765,L,80121600,Business law services
"Ministry of Housing, Communities and Local Government",Homes England,Economic Assets Hub Transition,Economic Assets Hub,DWF LLP,TS00058-SERVICE-27559 - Cannock Mill Cohousing Colchester Ltd,19/02/2018,1250,L,80121600,Business law services
"Ministry of Housing, Communities and Local Government",Homes England,Economic Assets Nw Prog,North West,DWF LLP,IS12982-SERVICE-Wirral International Business Park - Plot 2 -,20/02/2018,5689.4,L,80121600,Business law services
"Ministry of Housing, Communities and Local Government",Homes England,Budget 2013 - Midlands Wm,Midlands,DWF LLP,IS10823-SERVICE-James Bridge - (EZ Site),20/02/2018,2114.17,L,80121600,Business law services
"Ministry of Housing, Communities and Local Government",Homes England,East And Se Essex And Kent,East And South East,DWF LLP,IS10447-SERVICE-Endeavour Drive 16c,23/02/2018,2067.5,L,80121600,Business law services
"Ministry of Housing, Communities and Local Government",Homes England,Area Dir Mids Worcs-Shrop-Here,Midlands,DWF LLP,IS11596-SERVICE-Recode to 3414 20%,26/02/2018,965.8,L,80121600,Business law services
"Ministry of Housing, Communities and Local Government",Homes England,Comms Transition Budget,Finance & Corporate Services,DEAN TAXI LIMITED,DAP1916-SERVICE-Taxi Services to HCA Gateshead -12 month peri,08/02/2018,375.2,S,78111800,Passenger road transportation
"Ministry of Housing, Communities and Local Government",Homes England,Economic Assets S&Sw Prog,South West,DATARA MANAGEMENT SOLUTIONS LIMITED,DAP0373-SERVICE-Bristol and Bath Science Park - Call off orde,06/02/2018,5000,S,80131800,Real estate management services
"Ministry of Housing, Communities and Local Government",Homes England,Economic Assets Ne-Y Prog,North East And Yorkshire,DWW CONTRACTING SERVICES LTD,DAP3924-SERVICE-Secure steps at Consett Magistrates Court,08/02/2018,655,S,72101500,Building maintenance and repair services
"Ministry of Housing, Communities and Local Government",Homes England,Economic Assets Ne-Y Prog,North East And Yorkshire,DWW CONTRACTING SERVICES LTD,DAP3862-SERVICE-Removal of asbestos and all other fly tipping,08/02/2018,980,S,72101500,Building maintenance and repair services
"Ministry of Housing, Communities and Local Government",Homes England,Spatial Intelligence Telford,Programmes,DERBY CITY COUNCIL,Garden Village Funding,22/02/2018,101000,G,N/A,Grant
"Ministry of Housing, Communities and Local Government",Homes England,Budget 2013 - Midlands Wm,Midlands,DEREK LATHAM & CO LIMITED,"DAP3930-SERVICE-Heritage report for IMEX Business Park, Burto",05/02/2018,4350,S,80131800,Real estate management services
"Ministry of Housing, Communities and Local Government",Homes England,Comms Transition Budget,Finance & Corporate Services,DEPARTMENT OF EDUCATION,"DAP4020-SERVICE-Service charges (1st Apr to 30th Jun, 1st Jul",05/02/2018,49734.41,G,80131500,Lease and rental of property or building
"Ministry of Housing, Communities and Local Government",Homes England,Comms Transition Budget,Finance & Corporate Services,DEPARTMENT OF EDUCATION,"DAP4020-SERVICE-Service charges (1st Apr to 30th Jun, 1st Jul",05/02/2018,85011.28,G,80131500,Lease and rental of property or building
"Ministry of Housing, Communities and Local Government",Homes England,Comms Transition Budget,Finance & Corporate Services,DEPARTMENT OF EDUCATION,"DAP4020-SERVICE-Service charges (1st Apr to 30th Jun, 1st Jul",05/02/2018,85011.28,G,80131500,Lease and rental of property or building
"Ministry of Housing, Communities and Local Government",Homes England,It - Rda Transition,Finance & Corporate Services,DEPOEL MANAGED SERVICES LTD,DAP2384-SERVICE - Technical Architect. For 120,01/02/2018,2829.85,L,80111600,Temporary personnel services
"Ministry of Housing, Communities and Local Government",Homes England,It - Rda Transition,Finance & Corporate Services,DEPOEL MANAGED SERVICES LTD,DAP2390-SERVICE- Business Analyst. For 120 days (s,01/02/2018,2008.96,L,80111600,Temporary personnel services
"Ministry of Housing, Communities and Local Government",Homes England,It - Rda Transition,Finance & Corporate Services,DEPOEL MANAGED SERVICES LTD,DAP0374-SERVICE - TMS .Net Developer,01/02/2018,2260.8,L,80111600,Temporary personnel services
"Ministry of Housing, Communities and Local Government",Homes England,It - Rda Transition,Finance & Corporate Services,DEPOEL MANAGED SERVICES LTD,DAP0385-SERVICE - IMS Test Analyst,01/02/2018,1944.75,L,80111600,Temporary personnel services
"Ministry of Housing, Communities and Local Government",Homes England,It - Rda Transition,Finance & Corporate Services,DEPOEL MANAGED SERVICES LTD,DAP0386-SERVICE- TMS Test Analyst,01/02/2018,1944.75,L,80111600,Temporary personnel services
"Ministry of Housing, Communities and Local Government",Homes England,It - Rda Transition,Finance & Corporate Services,DEPOEL MANAGED SERVICES LTD,DAP2387-SERVICE - TMS .Net Developer. For 120 da,01/02/2018,2728.7,L,80111600,Temporary personnel services
"Ministry of Housing, Communities and Local Government",Homes England,It - Rda Transition,Finance & Corporate Services,DEPOEL MANAGED SERVICES LTD,DAP2388-SERVICE - IMS .Net Developer. For 120 da,01/02/2018,2501.05,L,80111600,Temporary personnel services
"Ministry of Housing, Communities and Local Government",Homes England,It - Rda Transition,Finance & Corporate Services,DEPOEL MANAGED SERVICES LTD,DAP2398-SERVICE - TMS .Net Developer. For 120 d,01/02/2018,2728.7,L,80111600,Temporary personnel services
"Ministry of Housing, Communities and Local Government",Homes England,It - Rda Transition,Finance & Corporate Services,DEPOEL MANAGED SERVICES LTD,DAP2384-SERVICE- Technical Architect. For 120,01/02/2018,2829.85,L,80111600,Temporary personnel services
"Ministry of Housing, Communities and Local Government",Homes England,It - Rda Transition,Finance & Corporate Services,DEPOEL MANAGED SERVICES LTD,DAP2390-SERVICE - Business Analyst. For 120 days (s,01/02/2018,2511.2,L,80111600,Temporary personnel services
"Ministry of Housing, Communities and Local Government",Homes England,It - Rda Transition,Finance & Corporate Services,DEPOEL MANAGED SERVICES LTD,DAP3357-SERVICE- from 13th January - De Poel,01/02/2018,2260.8,L,80111600,Temporary personnel services
"Ministry of Housing, Communities and Local Government",Homes England,It - Rda Transition,Finance & Corporate Services,DEPOEL MANAGED SERVICES LTD,DAP2387-SERVICE - TMS .Net Developer. For 120 da,01/02/2018,2728.7,L,80111600,Temporary personnel services
"Ministry of Housing, Communities and Local Government",Homes England,It - Rda Transition,Finance & Corporate Services,DEPOEL MANAGED SERVICES LTD,DAP2388-SERVICE - IMS .Net Developer. For 120 da,01/02/2018,2501.05,L,80111600,Temporary personnel services
"Ministry of Housing, Communities and Local Government",Homes England,It - Rda Transition,Finance & Corporate Services,DEPOEL MANAGED SERVICES LTD,DAP2398-SERVICE- TMS .Net Developer. For 120 d,01/02/2018,2728.7,L,80111600,Temporary personnel services
"Ministry of Housing, Communities and Local Government",Homes England,It - Rda Transition,Finance & Corporate Services,DEPOEL MANAGED SERVICES LTD,DAP0995-SERVICE Contract until 30/06/17,02/02/2018,625.61,L,80111600,Temporary personnel services
"Ministry of Housing, Communities and Local Government",Homes England,It - Rda Transition,Finance & Corporate Services,DEPOEL MANAGED SERVICES LTD,DAP3379-SERVICE- from 13th January - De Poel,06/02/2018,1944.75,L,80111600,Temporary personnel services
"Ministry of Housing, Communities and Local Government",Homes England,It - Rda Transition,Finance & Corporate Services,DEPOEL MANAGED SERVICES LTD,DAP3380-SERVICE- from 13th January - De Poel,06/02/2018,1944.75,L,80111600,Temporary personnel services
"Ministry of Housing, Communities and Local Government",Homes England,It - Rda Transition,Finance & Corporate Services,DEPOEL MANAGED SERVICES LTD,DAP2384-SERVICE- Technical Architect. For 120,07/02/2018,2829.85,L,80111600,Temporary personnel services
"Ministry of Housing, Communities and Local Government",Homes England,It - Rda Transition,Finance & Corporate Services,DEPOEL MANAGED SERVICES LTD,DAP2390-SERVICE- Business Analyst. For 120 days (s,07/02/2018,2511.2,L,80111600,Temporary personnel services
"Ministry of Housing, Communities and Local Government",Homes England,It - Rda Transition,Finance & Corporate Services,DEPOEL MANAGED SERVICES LTD,DAP3379-SERVICE- from 13th January - De Poel,07/02/2018,1944.75,L,80111600,Temporary personnel services
"Ministry of Housing, Communities and Local Government",Homes England,It - Rda Transition,Finance & Corporate Services,DEPOEL MANAGED SERVICES LTD,DAP3380-SERVICE - from 13th January - De Poel,07/02/2018,1944.75,L,80111600,Temporary personnel services
"Ministry of Housing, Communities and Local Government",Homes England,It - Rda Transition,Finance & Corporate Services,DEPOEL MANAGED SERVICES LTD,DAP2387-SERVICE - TMS .Net Developer. For 120 da,07/02/2018,2728.7,L,80111600,Temporary personnel services
"Ministry of Housing, Communities and Local Government",Homes England,It - Rda Transition,Finance & Corporate Services,DEPOEL MANAGED SERVICES LTD,DAP2388-SERVICE - IMS .Net Developer. For 120 da,07/02/2018,2501.05,L,80111600,Temporary personnel services
"Ministry of Housing, Communities and Local Government",Homes England,It - Rda Transition,Finance & Corporate Services,DEPOEL MANAGED SERVICES LTD,DAP2398-SERVICE - TMS .Net Developer. For 120 d,07/02/2018,2728.7,L,80111600,Temporary personnel services
"Ministry of Housing, Communities and Local Government",Homes England,It - Rda Transition,Finance & Corporate Services,DEPOEL MANAGED SERVICES LTD,DAP0995-SERVICE- Contract until 30/06/17,07/02/2018,500.48,L,80111600,Temporary personnel services
"Ministry of Housing, Communities and Local Government",Homes England,It - Rda Transition,Finance & Corporate Services,DEPOEL MANAGED SERVICES LTD,DAP3357-SERVICE- from 13th January - De Poel,08/02/2018,2260.8,L,80111600,Temporary personnel services
"Ministry of Housing, Communities and Local Government",Homes England,It - Rda Transition,Finance & Corporate Services,DEPOEL MANAGED SERVICES LTD,DAP0995-SERVICE- Contract until 30/06/17,12/02/2018,500.48,L,80111600,Temporary personnel services
"Ministry of Housing, Communities and Local Government",Homes England,It - Rda Transition,Finance & Corporate Services,DEPOEL MANAGED SERVICES LTD,DAP3357-SERVICE - from 13th January - De Poel,16/02/2018,2260.8,L,80111600,Temporary personnel services
"Ministry of Housing, Communities and Local Government",Homes England,It - Rda Transition,Finance & Corporate Services,DEPOEL MANAGED SERVICES LTD,DAP2384-SERVICE- Technical Architect. For 120,19/02/2018,2829.85,L,80111600,Temporary personnel services
"Ministry of Housing, Communities and Local Government",Homes England,It - Rda Transition,Finance & Corporate Services,DEPOEL MANAGED SERVICES LTD,DAP2390-SERVICE- - Business Analyst. For 120 days (s,19/02/2018,2008.96,L,80111600,Temporary personnel services
"Ministry of Housing, Communities and Local Government",Homes England,It - Rda Transition,Finance & Corporate Services,DEPOEL MANAGED SERVICES LTD,DAP3379-SERVICE - from 13th January - De Poel,19/02/2018,1944.75,L,80111600,Temporary personnel services
"Ministry of Housing, Communities and Local Government",Homes England,It - Rda Transition,Finance & Corporate Services,DEPOEL MANAGED SERVICES LTD,DAP3380-SERVICE - from 13th January - De Poel,19/02/2018,1555.8,L,80111600,Temporary personnel services
"Ministry of Housing, Communities and Local Government",Homes England,It - Rda Transition,Finance & Corporate Services,DEPOEL MANAGED SERVICES LTD,DAP2387-SERVICE - TMS .Net Developer. For 120 da,19/02/2018,2728.7,L,80111600,Temporary personnel services
"Ministry of Housing, Communities and Local Government",Homes England,It - Rda Transition,Finance & Corporate Services,DEPOEL MANAGED SERVICES LTD,DAP2388-SERVICE - IMS .Net Developer. For 120 da,19/02/2018,2501.05,L,80111600,Temporary personnel services
"Ministry of Housing, Communities and Local Government",Homes England,It - Rda Transition,Finance & Corporate Services,DEPOEL MANAGED SERVICES LTD,DAP2398-SERVICE - TMS .Net Developer. For 120 d,19/02/2018,2728.7,L,80111600,Temporary personnel services
"Ministry of Housing, Communities and Local Government",Homes England,It - Rda Transition,Finance & Corporate Services,DEPOEL MANAGED SERVICES LTD,DAP3357-SERVICE - from 13th January - De Poel,21/02/2018,2260.8,L,80111600,Temporary personnel services
"Ministry of Housing, Communities and Local Government",Homes England,It - Rda Transition,Finance & Corporate Services,DEPOEL MANAGED SERVICES LTD,DAP2398-SERVICE - TMS .Net Developer. For 120 d,22/02/2018,2182.96,L,80111600,Temporary personnel services
"Ministry of Housing, Communities and Local Government",Homes England,It - Rda Transition,Finance & Corporate Services,DEPOEL MANAGED SERVICES LTD,DAP0385-SERVICE - IMS Test Analyst,22/02/2018,1944.75,L,80111600,Temporary personnel services
"Ministry of Housing, Communities and Local Government",Homes England,It - Rda Transition,Finance & Corporate Services,DEPOEL MANAGED SERVICES LTD,DAP0386-SERVICE- TMS Test Analyst,22/02/2018,1944.75,L,80111600,Temporary personnel services
"Ministry of Housing, Communities and Local Government",Homes England,It - Rda Transition,Finance & Corporate Services,DEPOEL MANAGED SERVICES LTD,DAP2384-SERVICE - Technical Architect. For 120,22/02/2018,2263.88,L,80111600,Temporary personnel services
"Ministry of Housing, Communities and Local Government",Homes England,It - Rda Transition,Finance & Corporate Services,DEPOEL MANAGED SERVICES LTD,DAP2390-SERVICE- Business Analyst. For 120 days (s,22/02/2018,2008.96,L,80111600,Temporary personnel services
"Ministry of Housing, Communities and Local Government",Homes England,It - Rda Transition,Finance & Corporate Services,DEPOEL MANAGED SERVICES LTD,DAP2390-SERVICE- Business Analyst. For 120 days (s,22/02/2018,2511.2,L,80111600,Temporary personnel services
"Ministry of Housing, Communities and Local Government",Homes England,It - Rda Transition,Finance & Corporate Services,DEPOEL MANAGED SERVICES LTD,DAP2398-SERVICE- TMS .Net Developer. For 120 d,22/02/2018,2728.7,L,80111600,Temporary personnel services
"Ministry of Housing, Communities and Local Government",Homes England,It - Rda Transition,Finance & Corporate Services,DEPOEL MANAGED SERVICES LTD,DAP2390-SERVICE - Business Analyst. For 120 days (s,26/02/2018,2511.2,L,80111600,Temporary personnel services
"Ministry of Housing, Communities and Local Government",Homes England,It - Rda Transition,Finance & Corporate Services,DEPOEL MANAGED SERVICES LTD,DAP2398-SERVICE- TMS .Net Developer. For 120 d,26/02/2018,2728.7,L,80111600,Temporary personnel services
"Ministry of Housing, Communities and Local Government",Homes England,It - Rda Transition,Finance & Corporate Services,DEPOEL MANAGED SERVICES LTD,DAP2384-SERVICE- Technical Architect. For 120,26/02/2018,2829.85,L,80111600,Temporary personnel services
"Ministry of Housing, Communities and Local Government",Homes England,It - Rda Transition,Finance & Corporate Services,DEPOEL MANAGED SERVICES LTD,DAP3379-SERVICE - from 13th January - De Poel,26/02/2018,1944.75,L,80111600,Temporary personnel services
"Ministry of Housing, Communities and Local Government",Homes England,It - Rda Transition,Finance & Corporate Services,DEPOEL MANAGED SERVICES LTD,DAP3380-SERVICE- from 13th January - De Poel,26/02/2018,1944.75,L,80111600,Temporary personnel services
"Ministry of Housing, Communities and Local Government",Homes England,It - Rda Transition,Finance & Corporate Services,DEPOEL MANAGED SERVICES LTD,DAP2388-SERVICE- IMS .Net Developer. For 120 da,26/02/2018,2501.05,L,80111600,Temporary personnel services
"Ministry of Housing, Communities and Local Government",Homes England,Economic Assets Hub Transition,Economic Assets Hub,DEVON PROPERTY DEVELOPMENTS LTD,STF - Old Savoy Cinema - L D - Feb 18,26/02/2018,70000,,N/A,Loans
"Ministry of Housing, Communities and Local Government",Homes England,Economic Assets S&Sw Prog,South West,BEN DADDOW,DAP3982-SERVICE-Tripos Bude - attend site with SSE and WPD to,06/02/2018,650,S,72101500,Building maintenance and repair services
"Ministry of Housing, Communities and Local Government",Homes England,Programme Management Mh,Finance & Corporate Services,EVERSHEDS (CLIENT ACCOUNT),CPO CLAIM,27/02/2018,23622.28,,N/A,CPO
"Ministry of Housing, Communities and Local Government",Homes England,Economic Assets Nw Prog,North West,EVERSHEDS (CLIENT ACCOUNT),CPO CLAIM,27/02/2018,207900,,N/A,CPO
"Ministry of Housing, Communities and Local Government",Homes England,Land And Regeneration Mh,Programmes,EVERSHEDS LLP,IS11870-SERVICE-Kickstart - Ice Plant Manchester,08/02/2018,2239.3,L,80121600,Business law services
"Ministry of Housing, Communities and Local Government",Homes England,Economic Assets Ne-Y Prog,North East And Yorkshire,EBBSFLEET DEVELOPMENT CORPORATION,DAP2910-SERVICE-Secondment Costs - Ramendeep Thandi,28/02/2018,11943.52,Non Procurement Other,Non Procurement Other,Non Procurement Other
"Ministry of Housing, Communities and Local Government",Homes England,It - Rda Transition,Finance & Corporate Services,DB GROUP LTD T/A ESUASIVE,DAP3081-SERVICE-Services to support the replacement of CRM v4,06/02/2018,2726.25,L,43231500,Business function specific software
"Ministry of Housing, Communities and Local Government",Homes England,Ne-Yh Sheffield And Humb Ne-Y,North East And Yorkshire,REMARKABLE INTERNET,DYH0263-SERVICE-Annual hosting of Avenue Project - 2017/2018,09/02/2018,299,,81112105,World wide web WWW site operation host services�
"Ministry of Housing, Communities and Local Government",Homes England,It - Rda Transition,Finance & Corporate Services,EXCITECH LTD,DAP3841-SERVICE-Maintenance Renewal - 1 x 3ds Max Maintenance,05/02/2018,640,L,43231500,Business function specific software
"Ministry of Housing, Communities and Local Government",Homes England,Economic Assets S&Sw Prog,South West,ENQUIN ENVIRONMENTAL LIMITED,DAP4102-SERVICE-Steam Mills Cinderford - Continued monthly at,12/02/2018,407.5,S,80131800,Real estate management services
"Ministry of Housing, Communities and Local Government",Homes England,Economic Assets S&Sw Prog,South West,ENQUIN ENVIRONMENTAL LIMITED,DAP4102-SERVICE-Steam Mills Cinderford - Continued monthly at,15/02/2018,407.5,S,80131800,Real estate management services
"Ministry of Housing, Communities and Local Government",Homes England,Economic Assets S&Sw Prog,South West,ENQUIN ENVIRONMENTAL LIMITED,DAP3831-SERVICE-Small & Tidmas - Asbestos Monitoring for Cons,27/02/2018,1500,S,80131800,Real estate management services
"Ministry of Housing, Communities and Local Government",Homes England,Spatial Intelligence Telford,Programmes,AMEC FOSTER WHEELER & INFASTRUCTURE UK LTD,IT74523-SERVICE-AC Local Authority Technical Due Diligence -,07/02/2018,11986.5,L,80131800,Real estate management services
"Ministry of Housing, Communities and Local Government",Homes England,Spatial Intelligence Telford,Programmes,AMEC FOSTER WHEELER & INFASTRUCTURE UK LTD,IT74676-SERVICE-Technical DD Works By AMEC,07/02/2018,11652,L,80131800,Real estate management services
"Ministry of Housing, Communities and Local Government",Homes England,Spatial Intelligence Telford,Programmes,AMEC FOSTER WHEELER & INFASTRUCTURE UK LTD,IT74533-SERVICE-Accelerated Construction - Local Authority te,07/02/2018,13062.99,L,80131800,Real estate management services
"Ministry of Housing, Communities and Local Government",Homes England,East And South East,East And South East,AMEC FOSTER WHEELER & INFASTRUCTURE UK LTD,IT73379-SERVICE-Towergate A,13/02/2018,5000,L,80131800,Real estate management services
"Ministry of Housing, Communities and Local Government",Homes England,East And Se Cambs Herts And Bu,East And South East,AMEC FOSTER WHEELER & INFASTRUCTURE UK LTD,IT72967-SERVICE-Marchmont Farm,16/02/2018,15000,L,80131800,Real estate management services
"Ministry of Housing, Communities and Local Government",Homes England,East And Se Essex And Kent,East And South East,AMEC FOSTER WHEELER & INFASTRUCTURE UK LTD,IT72276-SERVICE-Planning Strategy Works - Lodge Hill / Off Si,21/02/2018,8078.2,L,80131800,Real estate management services
"Ministry of Housing, Communities and Local Government",Homes England,East And Se Essex And Kent,East And South East,AMEC FOSTER WHEELER & INFASTRUCTURE UK LTD,IT72277-SERVICE-Planning Strategy Works - NCL Sites,21/02/2018,16438.43,L,80131800,Real estate management services
"Ministry of Housing, Communities and Local Government",Homes England,East And Se Essex And Kent,East And South East,AMEC FOSTER WHEELER & INFASTRUCTURE UK LTD,IT72279-SERVICE-Planning Strategy Works - Masterplanning,21/02/2018,9028.31,L,80131800,Real estate management services
"Ministry of Housing, Communities and Local Government",Homes England,East And Se Essex And Kent,East And South East,AMEC FOSTER WHEELER & INFASTRUCTURE UK LTD,IT72280-SERVICE-Planning Strategy Works - Highways and Transp,21/02/2018,1547.26,L,80131800,Real estate management services
"Ministry of Housing, Communities and Local Government",Homes England,East And Se Essex And Kent,East And South East,AMEC FOSTER WHEELER & INFASTRUCTURE UK LTD,IT72282-SERVICE-Planning Strategy Works - Meetings,21/02/2018,9050.84,L,80131800,Real estate management services
"Ministry of Housing, Communities and Local Government",Homes England,East And Se Essex And Kent,East And South East,AMEC FOSTER WHEELER & INFASTRUCTURE UK LTD,IT72278-SERVICE-Planning Strategy Works - Town Planning,22/02/2018,26393.51,L,80131800,Real estate management services
"Ministry of Housing, Communities and Local Government",Homes England,Comms Transition Budget,Finance & Corporate Services,EDE'S (UK) LTD.,DAP3216-SERVICE-Installation of a homeworker workstation and,05/02/2018,504.75,L,72102900,Facility maintenance and repair services
"Ministry of Housing, Communities and Local Government",Homes England,Economic Assets Ne-Y Prog,North East And Yorkshire,ENVIROCHEM ANALYTICAL LABORATORIES LTD,"DAP3180-SERVICE-North Avon Magistrates Court,Yate, Bristol.",26/02/2018,9028.31,L,77101500,Environmental auditing
"Ministry of Housing, Communities and Local Government",Homes England,Economic Assets Nw Prog,North West,ELECTRICITY NORTH WEST LIMITED,"DAP3732-SERVICE-Diversion at Baxi, Wyre Street, Padiham - Pro",26/02/2018,2788.35,S,72101500,Building maintenance and repair services
"Ministry of Housing, Communities and Local Government",Homes England,Facilities Allerton Bywater,Finance & Corporate Services,REED BUSINESS INFORMATION LIMITED,DAP4010-SERVICE-Recruitment - 1 job adverts - Senior Planning,14/02/2018,1950,M,82101500,Print advertising
"Ministry of Housing, Communities and Local Government",Homes England,Facilities Allerton Bywater,Finance & Corporate Services,EDENRED (UK GROUP) LTD,DAP1901-SERVICE-Instant Recognition Scheme,06/02/2018,700,L,14111803,Vouchers
"Ministry of Housing, Communities and Local Government",Homes England,Budget 2013 - Midlands Wm,Midlands,ENVIRONMENTAL RESOURCES MANAGEMENT,DAP4152-SERVICE-Professional fees in respect of letter of rel,16/02/2018,1521.6,M,77101500,Environmental auditing
"Ministry of Housing, Communities and Local Government",Homes England,It - Rda Transition,Finance & Corporate Services,EE LTD,DAP0517-SERVICE-Monthly mobile bill x 3 ,09/02/2018,7434.58,L,83101600,Mobile communications services
"Ministry of Housing, Communities and Local Government",Homes England,Economic Assets Nw Prog,North West,EA FORMBY (NW) LIMITED,DAP3628-SERVICE-Scrubland clearance works to areas of East La,15/02/2018,9653.43,S,72101500,Building maintenance and repair services
"Ministry of Housing, Communities and Local Government",Homes England,Spatial Intelligence Telford,Programmes,ENGINE OF THE NORTH,Garden Village Funding,22/02/2018,188000,,N/A,Grant
"Ministry of Housing, Communities and Local Government",Homes England,Spatial Intelligence Telford,Programmes,EAST NORTHAMPTONSHIRE COUNCIL,Garden Village Funding,22/02/2018,275000,G,N/A,Grant
"Ministry of Housing, Communities and Local Government",Homes England,Economic Assets Nw Prog,North West,ECOLOGICAL LAND MANGEMENT LTD,DAP3436-SERVICE-Hollingworth - To carry out vegetation cleara,22/02/2018,4180,S,72101500,Building maintenance and repair services
"Ministry of Housing, Communities and Local Government",Homes England,Economic Assets Hub Transition,Economic Assets Hub,ENJOY HOMES LTD,STF - Rectory Road - Ln Drdn - Feb 18,13/02/2018,120000,,N/A,Loans
"Ministry of Housing, Communities and Local Government",Homes England,Economic Assets Hub Transition,Economic Assets Hub,EDG PROPERTY COVENTRY LTD,STF - EDG Property - Ln Drdn - Feb 18,20/02/2018,321342,,N/A,Loans
"Ministry of Housing, Communities and Local Government",Homes England,Estate Management Yorks,North West,ENERGY ASSETS LIMITED,"DAP3630-SERVICE-Remove Gas Supply From Kinderhaven, Gardiners",28/02/2018,3245.5,M,72101500,Building maintenance and repair services
"Ministry of Housing, Communities and Local Government",Homes England,Economic Assets Hub Transition,Economic Assets Hub,ERRIS HOMES (BARNSLEY)LTD,STF - Erris Homes - Ln Drdn - Feb 18,26/02/2018,742001.38,,N/A,Loans
"Ministry of Housing, Communities and Local Government",Homes England,Estate Management Yorks,North West,ENVIRONMENTAL DESIGN,"DAP3556-SERVICE-Netteswell, Harlow -",06/02/2018,286,S,72101500,Building maintenance and repair services
"Ministry of Housing, Communities and Local Government",Homes England,Economic Assets Hub Transition,Economic Assets Hub,EARLS COURT PARTNERSHIP LIMITED,LTF - Earls Court - Ln Drdn - Feb 18,23/02/2018,705523,,N/A,Loans
"Ministry of Housing, Communities and Local Government",Homes England,East And South East,East And South East,AECOM LIMITED,IT73396-SERVICE-Wrest Park (Silsoe) - PLanning/ costs assessm,01/02/2018,4000,L,72101500,Building maintenance and repair services
"Ministry of Housing, Communities and Local Government",Homes England,Land And Regeneration Mh,Programmes,AECOM LIMITED,IT73269-SERVICE-Stowford Mill,01/02/2018,1500,L,72101500,Building maintenance and repair services
"Ministry of Housing, Communities and Local Government",Homes England,Economic Assets Nw Prog,North West,AECOM LIMITED,IT75168-SERVICE-Altcar Lane Drainage Review,01/02/2018,1500,L,72101500,Building maintenance and repair services
"Ministry of Housing, Communities and Local Government",Homes England,Economic Assets Ne-Y Prog,North East And Yorkshire,AECOM LIMITED,IT73580-SERVICE-Houghton Grange - Provision of Planning & Tec,02/02/2018,16555.58,L,72101500,Building maintenance and repair services
"Ministry of Housing, Communities and Local Government",Homes England,Economic Assets Ne-Y Prog,North East And Yorkshire,AECOM LIMITED,IT73581-SERVICE-Houghton Grange - Provision of Planning & Tec,02/02/2018,1976.77,L,72101500,Building maintenance and repair services
"Ministry of Housing, Communities and Local Government",Homes England,Economic Assets Ne-Y Prog,North East And Yorkshire,AECOM LIMITED,IT73581-SERVICE-Houghton Grange - Provision of Planning & Tec,02/02/2018,1895.57,L,72101500,Building maintenance and repair services
"Ministry of Housing, Communities and Local Government",Homes England,Economic Assets Ne-Y Prog,North East And Yorkshire,AECOM LIMITED,IT73982-SERVICE-Houghton Grange - Principal Designer for Demo,02/02/2018,369.07,L,72101500,Building maintenance and repair services
"Ministry of Housing, Communities and Local Government",Homes England,East And Se Cambs Herts And Bu,East And South East,AECOM LIMITED,IT73909-SERVICE-Below Ground Services Survey,02/02/2018,3571.03,L,72101500,Building maintenance and repair services
"Ministry of Housing, Communities and Local Government",Homes England,Economic Assets Ne-Y Prog,North East And Yorkshire,AECOM LIMITED,IT73582-SERVICE-Houghton Grange - Provision of Planning & Tec,02/02/2018,7870.45,L,72101500,Building maintenance and repair services
"Ministry of Housing, Communities and Local Government",Homes England,Area Dir Cumbria Lancs Skelmer,North West,AECOM LIMITED,IT74131-SERVICE-HCA NW FIxed Term Consultancy Support,02/02/2018,5126,L,72101500,Building maintenance and repair services
"Ministry of Housing, Communities and Local Government",Homes England,Spatial Intelligence Telford,Programmes,AECOM LIMITED,IT74797-SERVICE-SPSL Due Diligence - 12323 - Fossets Farm,07/02/2018,13758.38,L,72101500,Building maintenance and repair services
"Ministry of Housing, Communities and Local Government",Homes England,Economic Assets Nw Prog,North West,AECOM LIMITED,IT74067-SERVICE-North West OA Accelerated Delivery team: Cons,07/02/2018,2625,L,72101500,Building maintenance and repair services
"Ministry of Housing, Communities and Local Government",Homes England,Land And Regeneration Mh,Programmes,AECOM LIMITED,IT75132-SERVICE-Project Monitoring Services at Wing,13/02/2018,1591.56,L,72101500,Building maintenance and repair services
"Ministry of Housing, Communities and Local Government",Homes England,Economic Assets Ne-Y Prog,North East And Yorkshire,AECOM LIMITED,IT73701-SERVICE-Tecnical support to planning at Chalgrove,13/02/2018,19793.67,L,72101500,Building maintenance and repair services
"Ministry of Housing, Communities and Local Government",Homes England,Spatial Intelligence Telford,Programmes,AECOM LIMITED,IT74833-SERVICE-SPSL Due Diligence - 5905 Preston Barton Hall,15/02/2018,2696.75,L,72101500,Building maintenance and repair services
"Ministry of Housing, Communities and Local Government",Homes England,South West Of Eng-Glouc-Oxford,South West,AECOM LIMITED,IT73952-SERVICE-Cost consultancy fees,15/02/2018,1182.4,L,72101500,Building maintenance and repair services
"Ministry of Housing, Communities and Local Government",Homes England,Economic Assets Ne-Y Prog,North East And Yorkshire,AECOM LIMITED,IT74784-SERVICE-Floating Pennyworh Removal - Attentuation Lag,16/02/2018,1980,L,72101500,Building maintenance and repair services
"Ministry of Housing, Communities and Local Government",Homes England,Ne-Y North East Washington,North East And Yorkshire,AECOM LIMITED,IT72504-SERVICE-Balancing Lagoon,16/02/2018,2491.25,L,72101500,Building maintenance and repair services
"Ministry of Housing, Communities and Local Government",Homes England,Economic Assets Ne-Y Prog,North East And Yorkshire,AECOM LIMITED,IT75029-SERVICE-Coney Green Attentuation Lagoon - Stages 1,16/02/2018,3370.5,L,72101500,Building maintenance and repair services
"Ministry of Housing, Communities and Local Government",Homes England,Economic Assets Ne-Y Prog,North East And Yorkshire,AECOM LIMITED,IT73580-SERVICE-Houghton Grange - Provision of Planning & Tec,20/02/2018,15062.39,L,72101500,Building maintenance and repair services
"Ministry of Housing, Communities and Local Government",Homes England,Economic Assets Ne-Y Prog,North East And Yorkshire,AECOM LIMITED,IT73581-SERVICE-Houghton Grange - Provision of Planning & Tec,20/02/2018,2280.97,L,72101500,Building maintenance and repair services
"Ministry of Housing, Communities and Local Government",Homes England,East And Se Cambs Herts And Bu,East And South East,AECOM LIMITED,IT73909-SERVICE-Below Ground Services Survey,20/02/2018,7346.04,L,72101500,Building maintenance and repair services
"Ministry of Housing, Communities and Local Government",Homes England,Economic Assets Ne-Y Prog,North East And Yorkshire,AECOM LIMITED,IT73980-SERVICE-Houghton Grange - Hazardous Material Surveys,20/02/2018,20539,L,72101500,Building maintenance and repair services
"Ministry of Housing, Communities and Local Government",Homes England,Economic Assets Ne-Y Prog,North East And Yorkshire,AECOM LIMITED,IT73582-SERVICE-Houghton Grange - Provision of Planning & Tec,20/02/2018,17800.81,L,72101500,Building maintenance and repair services
"Ministry of Housing, Communities and Local Government",Homes England,Economic Assets S&Sw Prog,South West,AECOM LIMITED,IT74986-SERVICE-St Oswald Due Diligence,22/02/2018,10007.77,L,72101500,Building maintenance and repair services
"Ministry of Housing, Communities and Local Government",Homes England,East And South East,East And South East,AECOM LIMITED,IT75019-SERVICE-Newt Survey,22/02/2018,3330,L,72101500,Building maintenance and repair services
"Ministry of Housing, Communities and Local Government",Homes England,LIF LS Loans Private additions,Programmes,AECOM LIMITED,IT71864-SERVICE-Project monitoring of Chilmington Green infra,22/02/2018,2271,L,72101500,Building maintenance and repair services
"Ministry of Housing, Communities and Local Government",Homes England,East And South East,East And South East,AECOM LIMITED,IT73396-SERVICE-Wrest Park (Silsoe) - PLanning/ costs assessm,22/02/2018,4000,L,72101500,Building maintenance and repair services
"Ministry of Housing, Communities and Local Government",Homes England,Economic Assets Nw Prog,North West,AECOM LIMITED,IT74893-SERVICE-Harras Moor Site Investigation,22/02/2018,3967.19,L,72101500,Building maintenance and repair services
"Ministry of Housing, Communities and Local Government",Homes England,Economic Assets Ne-Y Prog,North East And Yorkshire,AECOM LIMITED,IT73753-SERVICE-Former Pirbright Institute,23/02/2018,37816.52,L,72101500,Building maintenance and repair services
"Ministry of Housing, Communities and Local Government",Homes England,Public Land and Regeneration,Programmes,AECOM LIMITED,IT71939-SERVICE-SPSL Technical Due Diligence (Bat Surveys) - ,26/02/2018,7885,L,72101500,Building maintenance and repair services
"Ministry of Housing, Communities and Local Government",Homes England,Spatial Intelligence Telford,Programmes,AECOM LIMITED,IT74374-SERVICE-SPSL Due Diligence - 12434 - Wolverhampton &,26/02/2018,2790,L,72101500,Building maintenance and repair services
"Ministry of Housing, Communities and Local Government",Homes England,Land And Regeneration Mh,Programmes,AECOM LIMITED,IT73876-SERVICE-The Homes and Communities Agency(`HCA�)requir,26/02/2018,7330,L,72101500,Building maintenance and repair services
"Ministry of Housing, Communities and Local Government",Homes England,Economic Assets Nw Prog,North West,AECOM LIMITED,IT75130-SERVICE-Topgraphical Survey,26/02/2018,1490.63,L,72101500,Building maintenance and repair services
"Ministry of Housing, Communities and Local Government",Homes England,Spatial Intelligence Telford,Programmes,AECOM LIMITED,IT75407-SERVICE-SPSL Technical Due Diligence: COPD site,27/02/2018,16962.1,L,72101500,Building maintenance and repair services
"Ministry of Housing, Communities and Local Government",Homes England,Land And Regeneration Mh,Programmes,FRIENDS HOUSE,DAP3878-SERVICE-Sandwich Lunch x 50,01/02/2018,645.83,S,90111600,Meeting facilities
"Ministry of Housing, Communities and Local Government",Homes England,Land And Regeneration Mh,Programmes,FRIENDS HOUSE,DAP3878-SERVICE-Room Hire,01/02/2018,945,S,90111600,Meeting facilities
"Ministry of Housing, Communities and Local Government",Homes England,Economic Assets S&Sw Prog,South West,FOXLEYS LTD,DAP3849-SERVICE-Julians Garage Didcot - Blanket order to cove,12/02/2018,280,S,72101500,Building maintenance and repair services
"Ministry of Housing, Communities and Local Government",Homes England,Economic Assets S&Sw Prog,South West,FOXLEYS LTD,DAP3849-SERVICE-Julians Garage Didcot - Blanket order to cove,12/02/2018,281.4,S,72101500,Building maintenance and repair services
"Ministry of Housing, Communities and Local Government",Homes England,Economic Assets S&Sw Prog,South West,FOXLEYS LTD,DAP3849-SERVICE-Julians Garage Didcot - Blanket order to cove,12/02/2018,1750,S,72101500,Building maintenance and repair services
"Ministry of Housing, Communities and Local Government",Homes England,Economic Assets S&Sw Prog,South West,FOXLEYS LTD,DAP3849-SERVICE-Julians Garage Didcot - Blanket order to cove,12/02/2018,1997,S,72101500,Building maintenance and repair services
"Ministry of Housing, Communities and Local Government",Homes England,Economic Assets S&Sw Prog,South West,FOXLEYS LTD,DAP3849-SERVICE-Julians Garage Didcot - Blanket order to cove,12/02/2018,960,S,72101500,Building maintenance and repair services
"Ministry of Housing, Communities and Local Government",Homes England,Economic Assets S&Sw Prog,South West,FOXLEYS LTD,DAP3849-SERVICE-Julians Garage Didcot - Blanket order to cove,12/02/2018,1740,S,72101500,Building maintenance and repair services
"Ministry of Housing, Communities and Local Government",Homes England,Economic Assets S&Sw Prog,South West,FOXLEYS LTD,DAP3849-SERVICE-Julians Garage Didcot - Blanket order to cove,12/02/2018,1181.85,S,72101500,Building maintenance and repair services
"Ministry of Housing, Communities and Local Government",Homes England,Economic Assets S&Sw Prog,South West,FOXLEYS LTD,DAP3849-SERVICE-Julians Garage Didcot - Blanket order to cove,12/02/2018,281.8,S,72101500,Building maintenance and repair services
"Ministry of Housing, Communities and Local Government",Homes England,Economic Assets S&Sw Prog,South West,FOXLEYS LTD,DAP3882-SERVICE-Julians garage Didcot - Helpdesk call off ord,27/02/2018,980,S,72101500,Building maintenance and repair services
"Ministry of Housing, Communities and Local Government",Homes England,Mk Development Control Mk,Midlands,SAVILLS UK LIMITED,IT71878-SERVICE-Upton Park - S106 Viability Review,07/02/2018,2800,L,80131800,Real estate management services
"Ministry of Housing, Communities and Local Government",Homes England,Mk Development Control Mk,Midlands,SAVILLS UK LIMITED,IT71931-SERVICE-Upton Park - general negotiation advice to pr,07/02/2018,1700,L,80131800,Real estate management services
"Ministry of Housing, Communities and Local Government",Homes England,Budget 2013 - Midlands Wm,Midlands,SAVILLS UK LIMITED,IT74426-SERVICE-Perry Barr - Athletes Village Framework,14/02/2018,9000,L,80131800,Real estate management services
"Ministry of Housing, Communities and Local Government",Homes England,Land And Regeneration Mh,Programmes,SAVILLS UK LIMITED,IT74918-SERVICE-Desktop Valuation - Land in Leigh on Sea,15/02/2018,3000,L,80131800,Real estate management services
"Ministry of Housing, Communities and Local Government",Homes England,LIF LS Loans Private additions,Programmes,SAVILLS UK LIMITED,IT68821-SERVICE-LSIF - NW Bicester,19/02/2018,2600,L,80131800,Real estate management services
"Ministry of Housing, Communities and Local Government",Homes England,Budget 2013 - Midlands Wm,Midlands,SAVILLS UK LIMITED,IT74569-SERVICE-Perry Barr - Pub Red Book and QS Costings,20/02/2018,1500,L,80131800,Real estate management services
"Ministry of Housing, Communities and Local Government",Homes England,Economic Assets S&Sw Prog,South West,SAVILLS UK LIMITED,IT75276-SERVICE-Accoustic Survey along haul road,21/02/2018,3550,L,80131800,Real estate management services
"Ministry of Housing, Communities and Local Government",Homes England,Land And Regeneration Mh,Programmes,SAVILLS UK LIMITED,IT74652-SERVICE-Hogmoor road,22/02/2018,7750,L,80131800,Real estate management services
"Ministry of Housing, Communities and Local Government",Homes England,Land And Regeneration Mh,Programmes,SAVILLS UK LIMITED,IT75412-SERVICE-Project Judge,23/02/2018,10000,L,80131800,Real estate management services
"Ministry of Housing, Communities and Local Government",Homes England,Spatial Intelligence Telford,Programmes,SAVILLS UK LIMITED,IT75006-SERVICE-AC113-06 - Pinfold Avenue - AC Local Authorit,26/02/2018,3100,L,80131800,Real estate management services
"Ministry of Housing, Communities and Local Government",Homes England,Spatial Intelligence Telford,Programmes,SAVILLS UK LIMITED,IT75007-SERVICE-AC113-07 Victoria Avenue East Freshfields � A,26/02/2018,3000,L,80131800,Real estate management services
"Ministry of Housing, Communities and Local Government",Homes England,Spatial Intelligence Telford,Programmes,SAVILLS UK LIMITED,IT75008-SERVICE-Your primary point of contact will be Phil Co,26/02/2018,3000,L,80131800,Real estate management services
"Ministry of Housing, Communities and Local Government",Homes England,Spatial Intelligence Telford,Programmes,SAVILLS UK LIMITED,IT75009-SERVICE-AC114-01 Former St Mary's School,26/02/2018,3100,L,80131800,Real estate management services
"Ministry of Housing, Communities and Local Government",Homes England,Spatial Intelligence Telford,Programmes,SAVILLS UK LIMITED,IT75010-SERVICE-AC114-04 Pemberton Primary Playing Field,26/02/2018,3000,L,80131800,Real estate management services
"Ministry of Housing, Communities and Local Government",Homes England,Spatial Intelligence Telford,Programmes,SAVILLS UK LIMITED,IT75011-SERVICE-AC114-07 Alexandra Colliery,26/02/2018,3000,L,80131800,Real estate management services
"Ministry of Housing, Communities and Local Government",Homes England,Spatial Intelligence Telford,Programmes,SAVILLS UK LIMITED,IT75012-SERVICE-AC114-10 Sites on Worsley Mesnes estate,26/02/2018,3000,L,80131800,Real estate management services
"Ministry of Housing, Communities and Local Government",Homes England,Spatial Intelligence Telford,Programmes,SAVILLS UK LIMITED,IT75020-SERVICE-AC114-16 Westwood Park,26/02/2018,3000,L,80131800,Real estate management services
"Ministry of Housing, Communities and Local Government",Homes England,Spatial Intelligence Telford,Programmes,SAVILLS UK LIMITED,IT75083-SERVICE-AC115-02 - Land off Heywood Old Road,26/02/2018,3000,L,80131800,Real estate management services
"Ministry of Housing, Communities and Local Government",Homes England,Spatial Intelligence Telford,Programmes,SAVILLS UK LIMITED,IT75106-SERVICE-AC115-09 - Dean Street (PHASE 2),26/02/2018,3100,L,80131800,Real estate management services
"Ministry of Housing, Communities and Local Government",Homes England,Spatial Intelligence Telford,Programmes,SAVILLS UK LIMITED,IT75144-SERVICE-AC112-01 - Blacktone Fields,26/02/2018,5100,L,80131800,Real estate management services
"Ministry of Housing, Communities and Local Government",Homes England,Spatial Intelligence Telford,Programmes,SAVILLS UK LIMITED,IT74217-SERVICE-Following your submission of a Call for Furth,27/02/2018,8153.74,L,80131800,Real estate management services
"Ministry of Housing, Communities and Local Government",Homes England,Economic Assets Hub Transition,Economic Assets Hub,FAIRBRIDGE DEVELOPMENTS LTD,THBF LTF-Fairbridge Way-Feb18,22/02/2018,178556.67,,N/A,Loans
"Ministry of Housing, Communities and Local Government",Homes England,It - Rda Transition,Finance & Corporate Services,QUBE GLOBAL SOFTWARE LIMITED,DAP3902-SERVICE-Annual Support and Maintenance - Horizon - Qu,01/02/2018,24620.57,L,81112200,Software maintenance and support
"Ministry of Housing, Communities and Local Government",Homes England,Economic Assets S&Sw Prog,South West,R FOX T/A SOUTHCOAST MAINTENANCE,DAP3329-SERVICE-Tipner Greyhound site - Winter site clearance,01/02/2018,2670,S,72101500,Building maintenance and repair services
"Ministry of Housing, Communities and Local Government",Homes England,Economic Assets S&Sw Prog,South West,R FOX T/A SOUTHCOAST MAINTENANCE,DAP3983-SERVICE-Colt International - Final site demobilsation,09/02/2018,2200,S,72101500,Building maintenance and repair services
"Ministry of Housing, Communities and Local Government",Homes England,Economic Assets S&Sw Prog,South West,R FOX T/A SOUTHCOAST MAINTENANCE,DAP2975-SERVICE-Daedalus - Helpdesk call off order,09/02/2018,310,S,72101500,Building maintenance and repair services
"Ministry of Housing, Communities and Local Government",Homes England,Economic Assets S&Sw Prog,South West,R FOX T/A SOUTHCOAST MAINTENANCE,DAP3633-SERVICE-Daedalus Waterfront - Sundry building repairs,12/02/2018,476,S,72101500,Building maintenance and repair services
"Ministry of Housing, Communities and Local Government",Homes England,Economic Assets S&Sw Prog,South West,R FOX T/A SOUTHCOAST MAINTENANCE,DAP3328-SERVICE-Daedalus Waterfront - Monthly PPM works Nov 2,26/02/2018,1952,S,72101500,Building maintenance and repair services
"Ministry of Housing, Communities and Local Government",Homes England,Economic Assets S&Sw Prog,South West,R FOX T/A SOUTHCOAST MAINTENANCE,DAP3097-SERVICE-St James Hospital - Call off order for helpde,26/02/2018,2491,S,72101500,Building maintenance and repair services
"Ministry of Housing, Communities and Local Government",Homes England,Economic Assets Ne-Y Prog,North East And Yorkshire,FALCON SECURITY,DAP3621-SERVICE-Houghton Grange - provision of security servi,02/02/2018,18425.8,M,92121500,Guard services
"Ministry of Housing, Communities and Local Government",Homes England,East And South East,East And South East,FALCON SECURITY,DAP1084-SERVICE-Oakington Barracks - To the provision of mann,02/02/2018,19437.3,M,92121500,Guard services
"Ministry of Housing, Communities and Local Government",Homes England,Economic Assets Ne-Y Prog,North East And Yorkshire,FALCON SECURITY,DAP3621-SERVICE-Houghton Grange - provision of security servi,05/02/2018,16374.28,M,92121500,Guard services
"Ministry of Housing, Communities and Local Government",Homes England,Estate Management Yorks,North West,FIRST NATIONAL SERVICES LTD,"DAP3721-SERVICE-Croppings Farm - attend to plumbing issue, pr",01/02/2018,571.8,S,72102900,Facility maintenance and repair services
"Ministry of Housing, Communities and Local Government",Homes England,Spatial Intelligence Telford,Programmes,FIRST CHOICE CLEANING & MAINTENANCE LTD,DAP3733-SERVICE-General Property Mainentance at Stafford Magi,21/02/2018,350,S,72153501,Building exterior cleaning service  
"Ministry of Housing, Communities and Local Government",Homes England,Spatial Intelligence Telford,Programmes,FIRST CHOICE CLEANING & MAINTENANCE LTD,DAP3733-SERVICE-General Property Mainentance at Stafford Magi,21/02/2018,540,S,72153501,Building exterior cleaning service  
"Ministry of Housing, Communities and Local Government",Homes England,Budget 2013 - Midlands Wm,Midlands,FIRST CHOICE CLEANING & MAINTENANCE LTD,DAP3733-SERVICE-General Grounds Maintenance at Melton Mowbray,21/02/2018,1050,S,72153501,Building exterior cleaning service  
"Ministry of Housing, Communities and Local Government",Homes England,Economic Assets Ne-Y Prog,North East And Yorkshire,FIRST CHOICE CLEANING & MAINTENANCE LTD,DAP4215-SERVICE-Hinckley Magistrates Court:,21/02/2018,410,S,72153501,Building exterior cleaning service  
"Ministry of Housing, Communities and Local Government",Homes England,Economic Assets Ne-Y Prog,North East And Yorkshire,FIRST CHOICE CLEANING & MAINTENANCE LTD,DAP3733-SERVICE-General Grounds Maintenance and various works,21/02/2018,1250,S,72153501,Building exterior cleaning service  
"Ministry of Housing, Communities and Local Government",Homes England,Economic Assets Ne-Y Prog,North East And Yorkshire,FIRST CHOICE CLEANING & MAINTENANCE LTD,DAP4211-SERVICE-Luddington:,21/02/2018,4425,S,72153501,Building exterior cleaning service  
"Ministry of Housing, Communities and Local Government",Homes England,Economic Assets Ne-Y Prog,North East And Yorkshire,FIRST CHOICE CLEANING & MAINTENANCE LTD,DAP4211-SERVICE-Luddington:,21/02/2018,3725,S,72153501,Building exterior cleaning service  
"Ministry of Housing, Communities and Local Government",Homes England,Budget 2013 - Midlands Wm,Midlands,FIRST CHOICE CLEANING & MAINTENANCE LTD,DAP3932-SERVICE-Pioneer Park,21/02/2018,1250,S,72153501,Building exterior cleaning service  
"Ministry of Housing, Communities and Local Government",Homes England,Economic Assets Ne-Y Prog,North East And Yorkshire,FIRST CHOICE CLEANING & MAINTENANCE LTD,DAP4210-SERVICE-Washwood Heath,21/02/2018,2900,S,72153501,Building exterior cleaning service  
"Ministry of Housing, Communities and Local Government",Homes England,Public Land and Regeneration,Programmes,FIRST CHOICE CLEANING & MAINTENANCE LTD,DWM0611-SERVICE-General grounds maintenance,21/02/2018,850,S,72153501,Building exterior cleaning service  
"Ministry of Housing, Communities and Local Government",Homes England,Economic Assets Ne-Y Prog,North East And Yorkshire,FIRST CHOICE CLEANING & MAINTENANCE LTD,DAP4213-SERVICE-Ashby:,21/02/2018,1250,S,72153501,Building exterior cleaning service  
"Ministry of Housing, Communities and Local Government",Homes England,Economic Assets Ne-Y Prog,North East And Yorkshire,FIRST CHOICE CLEANING & MAINTENANCE LTD,DAP4214-SERVICE-Burton Magistrates Court:,21/02/2018,540,S,72153501,Building exterior cleaning service  
"Ministry of Housing, Communities and Local Government",Homes England,Economic Assets Ne-Y Prog,North East And Yorkshire,FIRST CHOICE CLEANING & MAINTENANCE LTD,DAP4214-SERVICE-Burton Magistrates Court:,21/02/2018,910,S,72153501,Building exterior cleaning service  
"Ministry of Housing, Communities and Local Government",Homes England,Economic Assets Ne-Y Prog,North East And Yorkshire,FIRST CHOICE CLEANING & MAINTENANCE LTD,DAP4214-SERVICE-Burton Magistrates Court:,21/02/2018,450,S,72153501,Building exterior cleaning service  
"Ministry of Housing, Communities and Local Government",Homes England,Spatial Intelligence Telford,Programmes,FIRST CHOICE CLEANING & MAINTENANCE LTD,DAP3733-SERVICE-General Grounds Maintenance at Chalfont Drive,21/02/2018,650,S,72153501,Building exterior cleaning service  
"Ministry of Housing, Communities and Local Government",Homes England,Economic Assets S&Sw Prog,South West,FRISKA LTD.,DAP3684-SERVICE-BBSP Catering,20/02/2018,2066.21,S,90101600,Banquet and catering services
"Ministry of Housing, Communities and Local Government",Homes England,Economic Assets S&Sw Prog,South West,FP MAILING LTD,DAP3551-SERVICE-Franking Posting for BBSP Tenants,20/02/2018,2500,S,78102200,Postal and small parcel and courier services
"Ministry of Housing, Communities and Local Government",Homes England,Economic Assets Hub Transition,Economic Assets Hub,FLOUR DEVELOPMENTS LIMITED,BtR - Flour Developments - L D - Feb 18,01/02/2018,760247.04,,N/A,Loans
"Ministry of Housing, Communities and Local Government",Homes England,Economic Assets Hub Transition,Economic Assets Hub,FLOUR DEVELOPMENTS LIMITED,BTR-Flour-Ln Drawdown-Feb18,20/02/2018,650847.41,,N/A,Loans
"Ministry of Housing, Communities and Local Government",Homes England,Spatial Intelligence Telford,Programmes,FLINT BISHOP LLP,TRANSFER WESTBRIDGE DAY NURSERY,12/02/2018,250000,,N/A,Acquisitions
"Ministry of Housing, Communities and Local Government",Homes England,Regulation,North East And Yorkshire,KAPLAN FINANCIAL,DAP3776-SERVICE-Exams,09/02/2018,285,M,86101800,In service training and manpower development
"Ministry of Housing, Communities and Local Government",Homes England,Regulation,North East And Yorkshire,KAPLAN FINANCIAL,DAP3776-SERVICE-Andrew Wilson CIMA Professional Qualification,09/02/2018,1837.98,M,86101800,In service training and manpower development
"Ministry of Housing, Communities and Local Government",Homes England,Facilities Allerton Bywater,Finance & Corporate Services,KAPLAN FINANCIAL,DAP4221-SERVICE-AAT Training costs Rebecca Jeffrey,28/02/2018,1790.02,M,86101800,In service training and manpower development
"Ministry of Housing, Communities and Local Government",Homes England,Estate Management Yorks,North West,F T GEARING L/S LTD,DAP1130-SERVICE-Paradise Fields - Annual Maintenance - Hedge,05/02/2018,395.23,M,72101500,Building maintenance and repair services
"Ministry of Housing, Communities and Local Government",Homes England,Estate Management Yorks,North West,F T GEARING L/S LTD,DAP1130-SERVICE-Paradise Fields - Annual Maintenance - Hedge,14/02/2018,395.23,M,72101500,Building maintenance and repair services
"Ministry of Housing, Communities and Local Government",Homes England,Economic Assets Hub Transition,Economic Assets Hub,GVA GRIMLEY,TS00086-SERVICE-Valuation Fees (pre-approval),01/02/2018,3000,L,80131800,Real estate management services
"Ministry of Housing, Communities and Local Government",Homes England,Economic Assets Hub Transition,Economic Assets Hub,GVA GRIMLEY,TS00085-SERVICE-Valuation Fees (pre-approval),01/02/2018,1500,L,80131800,Real estate management services
"Ministry of Housing, Communities and Local Government",Homes England,Economic Assets Hub Transition,Economic Assets Hub,GVA GRIMLEY,TS00088-SERVICE-Valuation Fees (pre-contract),01/02/2018,3750,L,80131800,Real estate management services
"Ministry of Housing, Communities and Local Government",Homes England,Economic Assets Ne-Y Prog,North East And Yorkshire,GVA GRIMLEY,IT74808-SERVICE-As set out in email to David Craig dated 6 De,02/02/2018,1500,L,80131800,Real estate management services
"Ministry of Housing, Communities and Local Government",Homes England,Economic Assets Hub Transition,Economic Assets Hub,GVA GRIMLEY,TS00117-SERVICE-Valuation Fees (pre-approval),05/02/2018,3250,L,80131800,Real estate management services
"Ministry of Housing, Communities and Local Government",Homes England,Affordable National,Programmes,GVA GRIMLEY,IT72417-SERVICE-ATLAS Viability support to large projects,06/02/2018,5470,L,80131800,Real estate management services
"Ministry of Housing, Communities and Local Government",Homes England,Economic Assets Ne-Y Prog,North East And Yorkshire,GVA GRIMLEY,IT75195-SERVICE-Valuation Advice relating to the Kershaw farm,07/02/2018,3000,L,80131800,Real estate management services
"Ministry of Housing, Communities and Local Government",Homes England,Economic Assets Ne-Y Prog,North East And Yorkshire,GVA GRIMLEY,IT75195-SERVICE-Valuation Advice relating to the Kershaw farm,07/02/2018,3000,L,80131800,Real estate management services
"Ministry of Housing, Communities and Local Government",Homes England,Public Land and Regeneration,Programmes,GVA GRIMLEY,IT71849-SERVICE-Standish House Planning Monitoring,07/02/2018,1540,L,80131800,Real estate management services
"Ministry of Housing, Communities and Local Government",Homes England,South West Of Eng-Glouc-Oxford,South West,GVA GRIMLEY,IT75181-SERVICE-Blackberry Hill/Cedar House - Appraisal evalu,08/02/2018,3000,L,80131800,Real estate management services
"Ministry of Housing, Communities and Local Government",Homes England,Budget 2013 - Midlands Wm,Midlands,GVA GRIMLEY,IT73809-SERVICE-Propery Inspections,09/02/2018,533.33,L,80131800,Real estate management services
"Ministry of Housing, Communities and Local Government",Homes England,Budget 2013 - Midlands Wm,Midlands,GVA GRIMLEY,IT75291-SERVICE-Fees for Planning Due Diligence,19/02/2018,3686.4,L,80131800,Real estate management services
"Ministry of Housing, Communities and Local Government",Homes England,Spatial Intelligence Telford,Programmes,GVA GRIMLEY,IT75068-SERVICE-AC Local Authority DVA - Site Ref AC055-06,21/02/2018,3650,L,80131800,Real estate management services
"Ministry of Housing, Communities and Local Government",Homes England,Spatial Intelligence Telford,Programmes,GVA GRIMLEY,IT75069-SERVICE-AC Local Authority DVA - Site Ref AC055-09,21/02/2018,3650,L,80131800,Real estate management services
"Ministry of Housing, Communities and Local Government",Homes England,Spatial Intelligence Telford,Programmes,GVA GRIMLEY,IT75070-SERVICE-AC Local Authority DVA - Site Ref AC055-08,21/02/2018,3650,L,80131800,Real estate management services
"Ministry of Housing, Communities and Local Government",Homes England,Spatial Intelligence Telford,Programmes,GVA GRIMLEY,IT75074-SERVICE-AC Local Authority DVA - Site Ref AC055-03,21/02/2018,3650,L,80131800,Real estate management services
"Ministry of Housing, Communities and Local Government",Homes England,Spatial Intelligence Telford,Programmes,GVA GRIMLEY,IT75072-SERVICE-AC Local Authority DVA - Site Ref AC055-05,21/02/2018,3650,L,80131800,Real estate management services
"Ministry of Housing, Communities and Local Government",Homes England,Economic Assets Nw Prog,North West,GVA GRIMLEY,IT74641-SERVICE-Valuation advice for land acquisitions,23/02/2018,3500,L,80131800,Real estate management services
"Ministry of Housing, Communities and Local Government",Homes England,Budget 2013 - Midlands Wm,Midlands,GVA GRIMLEY,IT74949-SERVICE-Stafford Magistrates Court,26/02/2018,3950,L,80131800,Real estate management services
"Ministry of Housing, Communities and Local Government",Homes England,Land And Regeneration Mh,Programmes,GVA GRIMLEY,IT74987-SERVICE-Drakelow Park red book valuation,27/02/2018,15000,L,80131800,Real estate management services
"Ministry of Housing, Communities and Local Government",Homes England,Economic Assets Hub Transition,Economic Assets Hub,GVA GRIMLEY,TS00113-SERVICE-Valuation Fees (pre-approval),28/02/2018,3000,L,80131800,Real estate management services
"Ministry of Housing, Communities and Local Government",Homes England,Economic Assets Ne-Y Prog,North East And Yorkshire,GVA GRIMLEY,IT75179-SERVICE-Red Book valuation for Skegness magistrates c,28/02/2018,2500,L,80131800,Real estate management services
"Ministry of Housing, Communities and Local Government",Homes England,Economic Assets Ne-Y Prog,North East And Yorkshire,GREENFINGERS LANDSCAPES LIMITED,DAP2915-SERVICE-Cowpen Lane - Ad hoc grass cutting to 100mm i,08/02/2018,480,M,72101500,Building maintenance and repair services
"Ministry of Housing, Communities and Local Government",Homes England,Economic Assets Ne-Y Prog,North East And Yorkshire,GREENFINGERS LANDSCAPES LIMITED,DAP2916-SERVICE-Meadowfield - Ad hoc grass cutting to 100mm i,08/02/2018,793,M,72101500,Building maintenance and repair services
"Ministry of Housing, Communities and Local Government",Homes England,Economic Assets Ne-Y Prog,North East And Yorkshire,GREENFINGERS LANDSCAPES LIMITED,DAP2918-SERVICE-Nelson - Ad hoc grass cutting to 100mm includ,08/02/2018,2453,M,72101500,Building maintenance and repair services
"Ministry of Housing, Communities and Local Government",Homes England,Economic Assets Ne-Y Prog,North East And Yorkshire,GREENFINGERS LANDSCAPES LIMITED,DAP2920-SERVICE-West Hartford - Ad hoc grass cutting to 100mm,08/02/2018,624,M,72101500,Building maintenance and repair services
"Ministry of Housing, Communities and Local Government",Homes England,Economic Assets Ne-Y Prog,North East And Yorkshire,GREENFINGERS LANDSCAPES LIMITED,DAP2985-SERVICE-2017-2018 Oakesway 9275.68 (772.97 monthly),09/02/2018,772.97,M,72101500,Building maintenance and repair services
"Ministry of Housing, Communities and Local Government",Homes England,Economic Assets Ne-Y Prog,North East And Yorkshire,GREENFINGERS LANDSCAPES LIMITED,DAP2985-SERVICE-2017-2018 Oakesway 9275.68 (772.97 monthly),16/02/2018,742.53,M,72101500,Building maintenance and repair services
"Ministry of Housing, Communities and Local Government",Homes England,Economic Assets Ne-Y Prog,North East And Yorkshire,GREENFINGERS LANDSCAPES LIMITED,DAP2917-SERVICE-Sedge - Ad hoc grass cutting to 100mm includi,28/02/2018,474,M,72101500,Building maintenance and repair services
"Ministry of Housing, Communities and Local Government",Homes England,Economic Assets Hub Transition,Economic Assets Hub,GLASSHOUSES123 LIMITED,STF - Glasshouses Mill - Ln Drd - Feb 18,21/02/2018,184792,,N/A,Loans
"Ministry of Housing, Communities and Local Government",Homes England,Economic Assets Hub Transition,Economic Assets Hub,GREGORY ROBINSON DEVELOPMENTS LTD,STF - Gregory Robinson - Ln Dd - Jan 18,01/02/2018,105017.8,,N/A,Loans
"Ministry of Housing, Communities and Local Government",Homes England,Economic Assets Hub Transition,Economic Assets Hub,GOLDEN ASH HOMES LIMITED,STF - Golden Ash - Ln Drdn - Feb 18,20/02/2018,45884,,N/A,Loans
"Ministry of Housing, Communities and Local Government",Homes England,Economic Assets S&Sw Prog,South West,GRITIT LTD,DAP3186-SERVICE-Julians Garage - Public Car Park Didcot - Win,07/02/2018,269.4,M,72153501,Building exterior cleaning service  
"Ministry of Housing, Communities and Local Government",Homes England,Economic Assets S&Sw Prog,South West,GRITIT LTD,DAP3186-SERVICE-Julians Garage - Public Car Park Didcot - Win,07/02/2018,1526.6,M,72153501,Building exterior cleaning service  
"Ministry of Housing, Communities and Local Government",Homes England,Economic Assets S&Sw Prog,South West,GRITIT LTD,DAP3186-SERVICE-Julians Garage - Public Car Park Didcot - Win,07/02/2018,898,M,72153501,Building exterior cleaning service  
"Ministry of Housing, Communities and Local Government",Homes England,Economic Assets Hub Transition,Economic Assets Hub,GINNIS PROPERTIES LIMITED,THBF STF-Deer Park Ripley-Feb18,22/02/2018,348629,,N/A,Loans
"Ministry of Housing, Communities and Local Government",Homes England,HCA Investment Credit Risk Man,Programmes,PARTNERSHIP MEDIA GROUP LTD T/A GOVNET COMMUN,DAP4101-SERVICE-Effective Briefings and Submissions course,13/02/2018,4940,M,86101800,In service training and manpower development
"Ministry of Housing, Communities and Local Government",Homes England,Reg Frame & Strat- Manchester,North East And Yorkshire,PARTNERSHIP MEDIA GROUP LTD T/A GOVNET COMMUN,DAP4287-SERVICE-Effective Briefings and Submissions course,28/02/2018,6915,M,86101800,In service training and manpower development
"Ministry of Housing, Communities and Local Government",Homes England,Reg Frame & Strat- Manchester,North East And Yorkshire,PARTNERSHIP MEDIA GROUP LTD T/A GOVNET COMMUN,DAP4288-SERVICE-Effective Briefings and Submissions course,28/02/2018,790,M,86101800,In service training and manpower development
"Ministry of Housing, Communities and Local Government",Homes England,Public Land and Regeneration,Programmes,GREENFIELDS GARDEN SERVICES LTD,DSW0447-SERVICE-Standish Hospital - Grounds Maintenance,15/02/2018,654.69,S,72101500,Building maintenance and repair services
"Ministry of Housing, Communities and Local Government",Homes England,Public Land and Regeneration,Programmes,GREENFIELDS GARDEN SERVICES LTD,DSW0447-SERVICE-Standish Hospital - Grounds Maintenance,26/02/2018,654.69,S,72101500,Building maintenance and repair services
"Ministry of Housing, Communities and Local Government",Homes England,Economic Assets S&Sw Prog,South West,GET LANDSCAPED,DSW0770-SERVICE-As above (cost centre change),15/02/2018,337.09,S,72101500,Building maintenance and repair services
"Ministry of Housing, Communities and Local Government",Homes England,Economic Assets S&Sw Prog,South West,GET LANDSCAPED,DSW0770-SERVICE-As above (cost centre change),26/02/2018,337.09,S,72101500,Building maintenance and repair services
"Ministry of Housing, Communities and Local Government",Homes England,East And South East,East And South East,G.D.C LIMITED,"DAP2829-SERVICE-Puny Drain, South Lynn:",06/02/2018,318,S,72101500,Building maintenance and repair services
"Ministry of Housing, Communities and Local Government",Homes England,Corporate Assurance-Mh,Finance & Corporate Services,HAYS ACCOUNTANCY & FINANCE,DAP3672-SERVICE-Temporary Member of Staff from 2 Jan 2018 to,14/02/2018,836.15,L,80111600,Temporary personnel services
"Ministry of Housing, Communities and Local Government",Homes England,Corporate Assurance-Mh,Finance & Corporate Services,HAYS ACCOUNTANCY & FINANCE,DAP3672-SERVICE-Temporary Member of Staff from 2 Jan 2018 to,14/02/2018,836.15,L,80111600,Temporary personnel services
"Ministry of Housing, Communities and Local Government",Homes England,Land And Regeneration Mh,Programmes,HAYS ACCOUNTANCY & FINANCE,DAP2674-SERVICE - Mortgage Administration Cont,15/02/2018,23907.55,L,80111600,Temporary personnel services
"Ministry of Housing, Communities and Local Government",Homes England,Land And Regeneration Mh,Programmes,HAYS ACCOUNTANCY & FINANCE,DAP2674-SERVICE - Mortgage Administration Cont,21/02/2018,11511.04,L,80111600,Temporary personnel services
"Ministry of Housing, Communities and Local Government",Homes England,Corporate Assurance-Mh,Finance & Corporate Services,HAYS ACCOUNTANCY & FINANCE,DAP3672-SERVICE-Temporary Member of Staff from 2 Jan 2018 to,28/02/2018,836.15,L,80111600,Temporary personnel services
"Ministry of Housing, Communities and Local Government",Homes England,Corporate Assurance-Mh,Finance & Corporate Services,HAYS ACCOUNTANCY & FINANCE,DAP3672-SERVICE-Temporary Member of Staff from 2 Jan 2018 to,28/02/2018,836.15,L,80111600,Temporary personnel services
"Ministry of Housing, Communities and Local Government",Homes England,Corporate Assurance-Mh,Finance & Corporate Services,HAYS ACCOUNTANCY & FINANCE,DAP3672-SERVICE-Temporary Member of Staff from 2 Jan 2018 to,28/02/2018,836.15,L,80111600,Temporary personnel services
"Ministry of Housing, Communities and Local Government",Homes England,Spatial Intelligence Telford,Programmes,ARCADIS CONSULTING (UK) LIMITED,IT74424-SERVICE-Inspection of Tall Buildings,06/02/2018,20250,L,811001500,Civil Engineering
"Ministry of Housing, Communities and Local Government",Homes England,Ftbi South East,East And South East,ARCADIS CONSULTING (UK) LIMITED,IT73760-SERVICE-Highways and Infrastructure Contract Administ,08/02/2018,9780,L,811001500,Civil Engineering
"Ministry of Housing, Communities and Local Government",Homes England,Spatial Intelligence Telford,Programmes,ARCADIS CONSULTING (UK) LIMITED,IT74538-SERVICE-AC Local Authority Technical DD�  Site Ref AC,22/02/2018,11049.59,L,811001500,Civil Engineering
"Ministry of Housing, Communities and Local Government",Homes England,Spatial Intelligence Telford,Programmes,ARCADIS CONSULTING (UK) LIMITED,IT74495-SERVICE-AC139-08b/Central Bedfordshire Council/Flitwi,22/02/2018,9969.59,L,811001500,Civil Engineering
"Ministry of Housing, Communities and Local Government",Homes England,Spatial Intelligence Telford,Programmes,ARCADIS CONSULTING (UK) LIMITED,IT74562-SERVICE-AC Local Authority Technical DD � Site Ref AC,22/02/2018,15584.8,L,811001500,Civil Engineering
"Ministry of Housing, Communities and Local Government",Homes England,Area Dir Cumbria Lancs Skelmer,North West,ARCADIS CONSULTING (UK) LIMITED,IT72265-SERVICE-HCA Clawback Options Appraisal at Cuerden,22/02/2018,1500,L,811001500,Civil Engineering
"Ministry of Housing, Communities and Local Government",Homes England,Budget 2013 - Midlands Wm,Midlands,ARCADIS CONSULTING (UK) LIMITED,IT73554-SERVICE-Royal Hospital - Public Realm Design,26/02/2018,12136.04,L,811001500,Civil Engineering
"Ministry of Housing, Communities and Local Government",Homes England,Spatial Intelligence Telford,Programmes,ARCADIS CONSULTING (UK) LIMITED,IT74466-SERVICE-Technical Due Diligence - AC LA AC066-05 - Ma,27/02/2018,12369.59,L,811001500,Civil Engineering
"Ministry of Housing, Communities and Local Government",Homes England,Comms Transition Budget,Finance & Corporate Services,HARTWRIGHT STARK LTD,DAP3997-SERVICE-Design Advisory services Windsor House,06/02/2018,10000,S,80131800,Real estate management services
"Ministry of Housing, Communities and Local Government",Homes England,Economic Assets Hub Transition,Economic Assets Hub,KEEPMOAT HOMES LIMITED,STF - Central Park - Ln Drdn - Feb 18,27/02/2018,104296,,N/A,Loans
"Ministry of Housing, Communities and Local Government",Homes England,Economic Assets Hub Transition,Economic Assets Hub,HEYWOOD DEVELOPMENTS (BROCKHOLES) LTD,STF - Mill Moor Road - Ln Drdn - Jan 18,01/02/2018,38820,,N/A,Loans
"Ministry of Housing, Communities and Local Government",Homes England,Economic Assets S&Sw Prog,South West,HENDERSON & TAYLOR FM LIMITED,DAP3778-SERVICE-Standish - Removal of area of horsetail follo,26/02/2018,495,S,72101500,Building maintenance and repair services
"Ministry of Housing, Communities and Local Government",Homes England,Economic Assets Ne-Y Prog,North East And Yorkshire,CH2M HILL UNITED,IT69894-SERVICE-Meadowfield Feasibility Review and Scoping St,26/02/2018,2087.5,L,81121500,Economic analysis
"Ministry of Housing, Communities and Local Government",Homes England,Economic Assets Ne-Y Prog,North East And Yorkshire,CH2M HILL UNITED,IT73605-SERVICE-Demolition at North East Industrial Estate,26/02/2018,2420,L,81121500,Economic analysis
"Ministry of Housing, Communities and Local Government",Homes England,Economic Assets Hub Transition,Economic Assets Hub,HORNCASTLE GROUPL PLC,LTF - Land off Moor Rd - Ln Dd - Feb 18,05/02/2018,240089.93,,N/A,Loans
"Ministry of Housing, Communities and Local Government",Homes England,Economic Assets Hub Transition,Economic Assets Hub,HOLLINS HOMES (WHITCHURCH) LIMITED,STF - Chester Road - Ln Drdn - Feb 18,26/02/2018,156696,,N/A,Loans
"Ministry of Housing, Communities and Local Government",Homes England,Comms Transition Budget,Finance & Corporate Services,HAYMARKET MEDIA GROUP,DAP3569-SERVICE-12 months Corporate Subscription to Planning,13/02/2018,2130,L,55101500,Printed publications
"Ministry of Housing, Communities and Local Government",Homes England,Economic Assets Hub Transition,Economic Assets Hub,H & S DEVELOPMENT (SOMERTON) LTD,STF - H&S Development - Ln Drdn - Feb 18,22/02/2018,32387,,N/A,Loans
"Ministry of Housing, Communities and Local Government",Homes England,Capital Grant to RPs,East And South East,THE ABBEYFIELD SOCIETY,Daily IMS payment,08/02/2018,23936,,N/A,Grant
"Ministry of Housing, Communities and Local Government",Homes England,Economic Assets Hub Transition,Economic Assets Hub,HOPTON BUILD (YORKSHIRE) LIMITED,STF - Hopton Build - Ln Drdn - Feb 18,16/02/2018,66100,,N/A,Loans
"Ministry of Housing, Communities and Local Government",Homes England,Capital Grant to RPs,East And South East,CENTREPOINT,Daily IMS payment,07/03/2018,35089,,N/A,Grant
"Ministry of Housing, Communities and Local Government",Homes England,Capital Grant to RPs,East And South East,CENTREPOINT,Daily IMS payment,07/03/2018,35089,,N/A,Grant
"Ministry of Housing, Communities and Local Government",Homes England,Capital Grant to RPs,East And South East,CENTREPOINT,Daily IMS payment,07/03/2018,35089,,N/A,Grant
"Ministry of Housing, Communities and Local Government",Homes England,Economic Assets Hub Transition,Economic Assets Hub,HORNCASTLE GROUP PLC,LTF - Land off Moor Rd - Ln Dd - Feb 18,05/02/2018,128265,,N/A,Loans
"Ministry of Housing, Communities and Local Government",Homes England,Economic Assets Hub Transition,Economic Assets Hub,HODSON DEVELOPMENTS (ASHFORD) LTD.,LTF - Hodson Developments - L D - Feb 18,23/02/2018,420216.17,,N/A,Loans
"Ministry of Housing, Communities and Local Government",Homes England,Capital Grant to RPs,East And South East,RAPPORT HOUSING AND CARE,Daily IMS payment,05/03/2018,120000,,N/A,Grant
"Ministry of Housing, Communities and Local Government",Homes England,Capital Grant to RPs,East And South East,RAPPORT HOUSING AND CARE,Daily IMS payment,05/03/2018,335580,,N/A,Grant
"Ministry of Housing, Communities and Local Government",Homes England,Estate Management Yorks,North West,HULTONS LANDSCAPES,DAP2494-SERVICE-Year 3 Central Lancashire Term Landscape  Mai,01/02/2018,2216.52,S,72101500,Building maintenance and repair services
"Ministry of Housing, Communities and Local Government",Homes England,Estate Management Yorks,North West,HULTONS LANDSCAPES,DAM2741-SERVICE-RUNCORN     Delivery of Year 2 of Runcorn sit,06/02/2018,1130.38,S,72101500,Building maintenance and repair services
"Ministry of Housing, Communities and Local Government",Homes England,Estate Management Yorks,North West,HULTONS LANDSCAPES,DAP3283-SERVICE-Initial two years of NL440 Merseyside Landsca,06/02/2018,948.08,S,72101500,Building maintenance and repair services
"Ministry of Housing, Communities and Local Government",Homes England,Estate Management Yorks,North West,HULTONS LANDSCAPES,DAM2741-SERVICE-RUNCORN     Delivery of Year 2 of Runcorn sit,14/02/2018,1130.38,S,72101500,Building maintenance and repair services
"Ministry of Housing, Communities and Local Government",Homes England,Estate Management Yorks,North West,HULTONS LANDSCAPES,DAP2494-SERVICE-Year 3 Central Lancashire Term Landscape  Mai,23/02/2018,2106.36,S,72101500,Building maintenance and repair services
"Ministry of Housing, Communities and Local Government",Homes England,Estate Management Yorks,North West,HULTONS LANDSCAPES,DAP2494-SERVICE-Year 3 Central Lancashire Term Landscape  Mai,23/02/2018,2216.52,S,72101500,Building maintenance and repair services
"Ministry of Housing, Communities and Local Government",Homes England,Estate Management Yorks,North West,HULTONS LANDSCAPES,DAP3238-SERVICE-Removal of 3 No. bonfires from various locati,23/02/2018,450,S,72101500,Building maintenance and repair services
"Ministry of Housing, Communities and Local Government",Homes England,Estate Management Yorks,North West,HULTONS LANDSCAPES,DAP3871-SERVICE-Various landscape improvement works across Sk,23/02/2018,1515,S,72101500,Building maintenance and repair services
"Ministry of Housing, Communities and Local Government",Homes England,Estate Management Yorks,North West,HULTONS LANDSCAPES,DAP2494-SERVICE-Year 3 Central Lancashire Term Landscape  Mai,23/02/2018,2216.52,S,72101500,Building maintenance and repair services
"Ministry of Housing, Communities and Local Government",Homes England,Budget 2013 - Midlands Wm,Midlands,T HODGSON PLANT HIRE,DAP3895-SERVICE-Lea Castle - Building 9. Soft strip and disma,01/02/2018,1799.5,S,72102900,Facility maintenance and repair services
"Ministry of Housing, Communities and Local Government",Homes England,Budget 2013 - Midlands Wm,Midlands,T HODGSON PLANT HIRE,DAP4168-SERVICE-Dolphin House - Remove surplus office furnitu,19/02/2018,395,S,72102900,Facility maintenance and repair services
"Ministry of Housing, Communities and Local Government",Homes England,Budget 2013 - Midlands Wm,Midlands,T HODGSON PLANT HIRE,"DAP4171-SERVICE-Lea Castle - North Sub, strip out all redunda",19/02/2018,695,S,72102900,Facility maintenance and repair services
"Ministry of Housing, Communities and Local Government",Homes England,Budget 2013 - Midlands Wm,Midlands,T HODGSON PLANT HIRE,DAP4172-SERVICE-Park Lane Cradley - make safe further section,19/02/2018,297,S,72102900,Facility maintenance and repair services
"Ministry of Housing, Communities and Local Government",Homes England,Economic Assets Ne-Y Prog,North East And Yorkshire,HEWITSONS SOLICITORS,IS11945-SERVICE-Brookvale Phase 1,01/02/2018,640,M,80121600,Business law services
"Ministry of Housing, Communities and Local Government",Homes England,South West,South West,HEWITSONS SOLICITORS,IS06851-SERVICE-Former CompAir Holman site,02/02/2018,350,M,80121600,Business law services
"Ministry of Housing, Communities and Local Government",Homes England,South East,East And South East,HEWITSONS SOLICITORS,IS06026-SERVICE-Graylingwell Hospital,02/02/2018,1120,M,80121600,Business law services
"Ministry of Housing, Communities and Local Government",Homes England,Mk Development Control Mk,Midlands,HEWITSONS SOLICITORS,IS12318-SERVICE-Kingsmead South Sites 1 & 2,02/02/2018,560,M,80121600,Business law services
"Ministry of Housing, Communities and Local Government",Homes England,East And Se Essex And Kent,East And South East,HEWITSONS SOLICITORS,IS06025-SERVICE-Leybourne Grange,02/02/2018,1890,M,80121600,Business law services
"Ministry of Housing, Communities and Local Government",Homes England,Public Land and Regeneration,Programmes,HEWITSONS SOLICITORS,IS12558-SERVICE-Redevelopment of Moorgreen Hospital,02/02/2018,800,M,80121600,Business law services
"Ministry of Housing, Communities and Local Government",Homes England,Ad West Mids West Birmingham,Midlands,HEWITSONS SOLICITORS,IS11741-SERVICE-Telford Millenium Community Phase - TW Dev,02/02/2018,800,M,80121600,Business law services
"Ministry of Housing, Communities and Local Government",Homes England,East And Se Essex And Kent,East And South East,HEWITSONS SOLICITORS,IS07965-SERVICE-Severalls Hospital,02/02/2018,2060,M,80121600,Business law services
"Ministry of Housing, Communities and Local Government",Homes England,Ne-Yh Nrth - West Yorks Ne-Y,North East And Yorkshire,HEWITSONS SOLICITORS,IS11021-SERVICE-Millennium Community,05/02/2018,560,M,80121600,Business law services
"Ministry of Housing, Communities and Local Government",Homes England,Ne-Yh Sheffield And Humb Ne-Y,North East And Yorkshire,HEWITSONS SOLICITORS,IS09885-SERVICE-Carr Lodge Phase 1A,05/02/2018,960,M,80121600,Business law services
"Ministry of Housing, Communities and Local Government",Homes England,Public Land and Regeneration,Programmes,HEWITSONS SOLICITORS,IS12423-SERVICE-Louisburg Barracks,05/02/2018,5760,M,80121600,Business law services
"Ministry of Housing, Communities and Local Government",Homes England,South West Hants-Iow-Dorset-Bu,South West,HEWITSONS SOLICITORS,IS12534-SERVICE-Quebec Barracks,05/02/2018,760,M,80121600,Business law services
"Ministry of Housing, Communities and Local Government",Homes England,Land And Regeneration Mh,Programmes,HEWITSONS SOLICITORS,"TS00032-SERVICE-27559 - Parkside Homes Norfolk Ltd, Parkside",05/02/2018,800,M,80121600,Business law services
"Ministry of Housing, Communities and Local Government",Homes England,Ne-Yh Sheffield And Humb Ne-Y,North East And Yorkshire,HEWITSONS SOLICITORS,IS12679-SERVICE-Askern,06/02/2018,800,M,80121600,Business law services
"Ministry of Housing, Communities and Local Government",Homes England,Area Dir Cumbria Lancs Skelmer,North West,HEWITSONS SOLICITORS,IS10444-SERVICE-Lancaster Moor Hospital - New Build Developme,06/02/2018,400,M,80121600,Business law services
"Ministry of Housing, Communities and Local Government",Homes England,Economic Assets Ne-Y Prog,North East And Yorkshire,HEWITSONS SOLICITORS,IS11945-SERVICE-Brookvale Phase 1,07/02/2018,960,M,80121600,Business law services
"Ministry of Housing, Communities and Local Government",Homes England,East And Se Cambs Herts And Bu,East And South East,HEWITSONS SOLICITORS,IS11793-SERVICE-Spencers Park Phase 1,07/02/2018,1920,M,80121600,Business law services
"Ministry of Housing, Communities and Local Government",Homes England,Economic Assets S&Sw Prog,South West,HEWITSONS SOLICITORS,IS12811-SERVICE-Plot Sales and Disposal - Plots Y & Z3 (Zero,07/02/2018,750,M,80121600,Business law services
"Ministry of Housing, Communities and Local Government",Homes England,Area Dir Cumbria Lancs Skelmer,North West,HEWITSONS SOLICITORS,IS12802-SERVICE-Eastway,08/02/2018,640,M,80121600,Business law services
"Ministry of Housing, Communities and Local Government",Homes England,South West Of Eng-Glouc-Oxford,South West,HEWITSONS SOLICITORS,IS10000-SERVICE-DISPOSAL FEES - GLOUCESTER COLLEGE,08/02/2018,1200,M,80121600,Business law services
